{"text_format":"1","workbook":"xlsx","n_sheets":9,"sheets":["Планировщик медосмотров","Mefical_exam_form","List_contingent","List_names","Psychiatric_exam_form","Dangerous_factors","Прихиатрич перечень","Psychiatric_factors","Лист6"],"not_rendered":{"charts":0,"images":0,"macros":1,"external_links":0,"defined_names":41,"comments":1,"pivot_tables":0},"unopened":[],"bounds":{"document_bytes":16777216,"sheet_cells":100000,"rows_first":2000,"rows_last":500,"rows_between":2000,"halvings":0,"cell_chars":16384,"cell_head_chars":4096},"cells_cut":0,"cells_raw":0,"read":"whole","date_system":"1900"}

{"sheet":"Планировщик медосмотров","index":0,"n_rows":25,"n_cols":18,"rows_kept":25,"cut":false,"hidden":false,"merged":[[12,0,13,0],[12,1,13,1],[12,2,13,2],[12,4,13,4],[6,1,6,2],[12,3,13,3],[9,1,9,2],[8,1,8,2],[7,1,7,2],[5,3,5,4],[2,3,2,4],[1,3,1,4],[6,3,6,4],[12,8,13,8],[12,7,13,7],[12,6,13,6],[12,9,13,9],[12,10,12,15],[12,5,13,5],[12,16,12,17],[1,1,1,2],[2,1,2,2],[3,1,3,2],[9,3,9,4],[10,3,10,4],[3,3,3,4],[4,3,4,4],[7,3,7,4],[8,3,8,4],[10,1,10,2],[4,1,4,2],[5,1,5,2]]}
["Планировщик периодических медосмотров",null,null,"Система Охрана Труда (vip.1otruda.ru)"]
["Организация ","ООО «Альфа»",null,"Год проведения медосмотра",null,2021]
["Руководитель","Громов П.В.",null,"Название клиники, фактический адрес, код ОГРН",null,"ООО \"Здоровье\", г. Москва, ул, Лесная, д. 1, 1027101410830"]
["Генеральный директор ","Петров С.К.",null,"Электронная почта мед.организации",null,"bolnitca@ttyy.ru"]
["ОГРН организации","123456789102",null,"Контактный телефон мед.организации",null,"111-11-11"]
["ОКВЭД","22.45.23",null,"Должность уполномоченного представителя",null,"Инспектор кадров"]
["Специалист по охране труда","Иванов И.П.",null,"ФИО уполномоченного представителя",null,"Савельева Инна Петровна"]
["Руководитель службы охраны труда","Белов А.П.",null,"Электронная почта организации / предприятия",null,"organizatcia@y.ru"]
["Менеджер по персоналу  ","Соловьева П.А.",null,"Контактный телефон организации / предприятия",null,"222-22-22"]
["Председатель комитета по охране труда","Андриянова П.В.",null,"Дата направления на медосмотр",null,"04 июня 2021 г."]
[null,null,null,"Порядковый номер направления на медосмотр",null,1]
[]
["Цех, участок, структурное подразделение","Профессия (должность)","Фамилия, имя, отчество","Номер страхового медицинского полиса обязательного и (или) добровольного медицинского страхования","Пол","Дата рождения","Стаж (лет)","Периодичность медосмотров","Дата предыдущего медосмотра","Перечень выполняемых работ (раздел VI Приложения к Приказу 29н)","Вредные и (или) опасные факторы (разделы I-V Приложения к Приказу 29н)",null,null,null,null,null,"Данные для обязательного психиатрического освидетельствования"]
[null,null,null,null,null,null,null,null,null,null,"Химические ","Биологические","Аэрозоли преимущественно фиброгенного действия и пыли","Физические","Факторы трудового процесса","№ пункта по приказу Минздрава России от 28 января 2021 г. № 29н","Дата прохождения психиатрического освидетельствования","Виды деятельности, при осуществлении которых проводится психиатрическое освидетельствование"]
["Column1","Column2","Column3","Column32","Column4","Column5","Column6","Column7","Column8","Column9","Column10","Column11","Column112","Column12","Column13","Column14","Столбец1","Столбец2"]
["Производственный цех","Механик","Андреев Андрей Иванович",null,"муж","1999-08-04","1 год","1 раз в 2 года","2014-10-01",null,null,null,null,null,null,null,"2011-10-01"]
["Транспортный цех","Механик","Афанасьев Георгий Петрович",null,"муж","1983-03-08","6 лет","1 раз в 2 года","2016-12-13","6. Работы на высоте:","1.3. Альдегиды алифатические (предельные и непредельные) и ароматические (формальдегидАКРО, ацетальдегид, проп-2-ен-1-аль (акролеин), бензальдегид, бензол-1,2-дикарбальдегид (фталевый альдегид)","2.2. Ферментные препаратыА, биостимуляторы","3.1.4. Кремнийсодержащие аэрозоли: - с содержанием кристаллического диоксида кремнияК - с содержанием аморфного диоксида кремния в виде аэрозоля дезинтеграции и конденсации - кремний карбид, кремний нитрид, волокнистый карбид кремнияФА","4.2.2. Электромагнитное поле радиочастотного диапазона (10 кГц - 300 ГГц)","5.2. Напряженность трудового процесса (сенсорные нагрузки), в том числе:","Прил.: 1.3., 2.2., 3.1.4., 4.2.2., 5.2., 6.",null,"1. Деятельность, связанная с управлением транспортными средствами или управлением движением транспортных средств по профессиям и должностям согласно перечню работ, профессий, должностей, непосредственно связанных с управлением транспортными средствами или управлением движением транспортных средств"]
["Транспортный цех","Механик","Афанасьев Георгий Петрович",null,"муж","1990-12-18","6 лет","1 раз в 2 года","2016-12-13",null,null,null,null,null,null,null,"2017-01-01"]
["Транспортный цех","Начальник участка","Афанасьев Георгий Петрович",null,"муж","1990-12-18","6 лет","1 раз в 2 года","2016-12-13"]
["Транспортный цех","Агроном","Афанасьев Георгий Петрович",null,"муж","1990-12-18","6 лет","1 раз в 2 года","2016-12-13"]
["Транспортный цех","Уборщик","Афанасьев Георгий Петрович",null,"муж","1990-12-18","6 лет","1 раз в 2 года","2016-12-13"]
["Транспортный цех","Механик","Афанасьев Георгий Петрович",null,"муж","1990-12-18","6 лет","1 раз в 2 года","2016-12-13"]
["Транспортный цех","Товаровед","Афанасьев Георгий Петрович",null,"муж","1990-12-18","6 лет","1 раз в 2 года","2016-12-13"]
["Транспортный цех","Водитель","Сидоров Алексей Михайлович",77777777777,"муж","1977-04-23","5 лет","1 раз в год","2016-12-13","6.1. Работы с высоким риском падения работника с высоты, а также работы на высоте без применения средств подмащивания, выполняемые на высоте 5 м и более; работы, выполняемые на площадках на расстоянии менее 2 м от неогражденных (при отсутствии защитных ограждений) перепадов по высоте более 5 м либо при высоте ограждений, составляющей менее 1,1 м\r\n11. Работы в особых географических регионах с местами проведения работ, транспортная доступность которых от медицинских учреждений, оказывающих специализированную медицинскую помощь в экстренной форме, превышает 60 минут, а именно:\r\n6.2. Прочие работы, относящиеся в соответствии с законодательством по охране труда к работам на высоте\r\n7. Работа лифтера на лифтах скоростных (от 2,0 до 4,0 м/с) и высокоскоростных (свыше 4,0 м/с) при внутреннем сопровождении лифта\r\n8. Работы в качестве крановщика (машиниста крана, машинист крана автомобильного)","1.3. Альдегиды алифатические (предельные и непредельные) и ароматические (формальдегидАКРО, ацетальдегид, проп-2-ен-1-аль (акролеин), бензальдегид, бензол-1,2-дикарбальдегид (фталевый альдегид)\r\n1.5. Алюминий и его соединения, в том числе:\r\n1.5.1. Алюмоплатиновые катализаторыА","2.3. Аллергены для диагностики и леченияА, компоненты и препараты крови, иммунобиологические препаратыА\r\n2.4.1. Возбудители инфекционных заболеваний патогенные микроорганизмы I группы патогенности и возбудители особо опасных инфекций","3.1.4. Кремнийсодержащие аэрозоли: - с содержанием кристаллического диоксида кремнияК - с содержанием аморфного диоксида кремния в виде аэрозоля дезинтеграции и конденсации - кремний карбид, кремний нитрид, волокнистый карбид кремнияФА","4.2.1. Электромагнитное излучение оптического диапазона (ультрафиолетовое излучениеК, лазерное излучение)\r\n4.2.3. Электрическое и магнитное поле промышленной частоты (50 Гц)","5.2.1. Работы с оптическими приборами (более 50% времени смены)","Прил.: 1.3., 1.5., 1.5.1., 2.3., 2.4.1., 3.1.4., 4.2.1., 4.2.3., 5.2.1., 6.1., 6.2., 7., 8., 11.",null,"1. Деятельность, связанная с управлением транспортными средствами или управлением движением транспортных средств по профессиям и должностям согласно перечню работ, профессий, должностей, непосредственно связанных с управлением транспортными средствами или управлением движением транспортных средств"]
["Производственный цех","Сборщик","Сидорова Марья Михайловна",null,"жен","1983-03-08","10 лет","1 раз в 2 года","2015-10-01","1. Работы на высоте, верхолазные работы, а также работы по обслуживанию подъемных сооружений, включая:\r\n4. Работы в особых географических регионах со значительным удалением мест проведения работ от медицинских учреждений, оказывающих специализированную медицинскую помощь, включая:\r\n4.1. Работы в нефтяной и газовой промышленности, выполняемые в районах Крайнего Севера и приравненных к ним местностях, пустынных и других отдаленных и недостаточно обжитых районах, а также при морском бурении\r\n1.1. Работы в качестве крановщика (машиниста крана)",null,"2.3. Аллергены для диагностики и леченияА, компоненты и препараты крови, иммунобиологические препаратыА",null,null,null,"Прил.: 2.3.","2009-12-13"]

{"sheet":"Mefical_exam_form","index":1,"n_rows":43,"n_cols":5,"rows_kept":43,"cut":false,"hidden":true,"merged":[[22,0,22,7],[42,0,42,8],[25,2,25,7],[27,2,27,7],[29,2,29,7],[36,2,36,7],[39,0,39,3],[34,2,34,7],[32,2,32,7],[40,0,40,3],[0,0,0,5],[9,1,9,7],[10,1,10,7],[11,1,11,6],[21,0,21,7],[14,2,14,7],[16,2,16,7],[20,6,20,7],[17,2,17,7],[2,1,2,3],[4,0,5,8],[8,1,8,7],[7,1,7,7],[1,0,1,5]]}
[]
["(наименование организации (предприятия),\nформа собственности, отрасль экономики, электронная почта, контактный телефон)"]
["Код ОГРН"]
[]
["Направление на %3 медицинский осмотр \n(обследование) № %1 от %2 "]
[]
[]
["Направляется в"]
[null,"  (наименование медицинской организации, фактический адрес, код по ОГРН, электронная почта, контактный телефон)"]
["1. Ф.И.О."]
["2. Дата рождения"]
[null,"(число, месяц, год)"]
["3. Пол работника"]
["4. Номер страхового медицинского полиса обязательного и (или) добровольного"]
["  медицинского страхования"]
["5. Поступающий на работу/Работающий"]
["6. Структурное подразделение"]
["7. Должность (профессия)"]
[]
["8. Стаж работы в том виде работы, в котором работник освидетельствуется"]
[]
[]
[]
["9. Вредные и (или) опасные вещества и производственные факторы:"]
["9.1. Химические факторы"]
[null,null,"(номер пункта или пунктов Приложения*, перечислить)"]
["9.2. Биологические факторы"]
[null,null,"(номер пункта или пунктов Приложения*, перечислить)"]
["9.3. Аэрозоли преимущественно "]
["фиброгенного действия",null,"(номер пункта или пунктов Приложения*, перечислить)"]
["(АПФД) и пыли"]
["9.4. Физические факторы"]
[null,null,"(номер пункта или пунктов Приложения*, перечислить)"]
["9.5. Факторы трудового"]
["процесса",null,"(номер пункта или пунктов Приложения*, перечислить)"]
["10. Выполняемая работа"]
[null,null,"(номер пункта или пунктов Приложения*, перечислить)"]
[]
[]
["(должность уполномоченного представителя)"]
["(Ф.И.О.)"]
[null,null,null,null,"(подпись уполномоченного представителя)"]
["* Приложение к Порядку проведения обязательных предварительных и периодических\nмедицинских осмотров работников, предусмотренных частью четвертой статьи 213 ТК РФ, утвержденному приказом Минздрава РФ от 28.01.2021 № 29н."]

{"sheet":"List_contingent","index":2,"n_rows":15,"n_cols":8,"rows_kept":15,"cut":false,"hidden":true,"merged":[[5,0,5,7],[11,2,11,3],[12,2,12,3],[14,2,14,3],[6,7,7,7],[6,0,7,0],[6,1,7,1],[6,6,7,6],[6,2,7,5],[8,2,8,5],[9,2,9,5]]}
[null,null,null,null,null,null,"«Утверждаю»"]
[null,null,null,null,null,null,"Генеральный директор"]
[]
[null,null,null,null,null,null,null,"2017-08-12"]
[]
["СПИСОК %3 ОСМОТРАМ В %1 в %2 году"]
["№ п/п","Наименование цеха, участка","Профессия",null,null,null,"Вредные работы, вредные или опасные производственные факторы","№ пункта по приказу Минздрава России от 28 января 2021 г. № 29н"]
[]
[1,2,3,null,null,null,4,5]
[]
[]
[null,"Список составили:","Руководитель службы охраны труда"]
[null,null,"Менеджер по персоналу "]
[]
[null,"Список согласован:","Председатель комитета по охране труда "]

{"sheet":"List_names","index":3,"n_rows":15,"n_cols":11,"rows_kept":15,"cut":false,"hidden":true,"merged":[[11,3,11,6],[14,3,14,6],[0,9,0,12],[3,9,3,12],[4,0,5,13],[10,1,10,2],[12,1,15,2],[13,3,13,4],[1,10,1,12],[2,10,2,12],[10,3,10,6]]}
[null,null,null,null,null,null,null,null,null,"«Утверждаю»"]
[null,null,null,null,null,null,null,null,null,"Генеральный директор","ООО «Газпожнефтьсервис»"]
[null,null,null,null,null,null,null,null,null,"                                                                                                                                                                                                      ______________________Кузнецов И.Н.                                                                                          "]
[null,null,null,null,null,null,null,null,null,"2017-08-12"]
["ПОИМЕННЫЙ СПИСОК РАБОТНИКОВ, ПОДЛЕЖАЩИХ ПЕРИОДИЧЕСКОМУ МЕДИЦИНСКОМУ ОСМОТРУ В %1 в %2 году"]
[]
["№ п/п","Ф. И. О. (полностью)","Дата рождения","Пол","Стаж работы в данной профессии на данном предприятии (лет, мес.)","Дата предыдущего медосмотра","Наименование цеха, участка","Профессия","Вредные работы, вредные или опасные производственные факторы","№ пункта по  приказу Минздрава России от 28 января 2021 г. № 29н","Периодичность медосмотров"]
[1,2,3,4,5,6,7,8,9,10,11]
[]
[]
[null,"Список составили:",null,"Руководитель службы охраны труда ________________________"]
[null,null,null,"Менеджер по персоналу                    __________________________"]
[null,"Список согласован:"]
[]
[null,null,null,"Председатель комитета по охране труда  ___________________"]

{"sheet":"Psychiatric_exam_form","index":4,"n_rows":26,"n_cols":7,"rows_kept":26,"cut":false,"hidden":true,"merged":[[15,0,15,1],[15,2,15,7],[12,2,12,7],[13,2,13,7],[12,0,12,1],[13,0,13,1],[22,0,22,3],[2,1,2,3],[6,0,7,8],[8,1,8,7],[18,0,18,7],[19,0,19,1],[20,0,20,1],[9,1,9,7],[21,0,21,1],[11,1,11,7],[21,3,21,4],[20,3,20,4],[21,6,21,7],[20,6,20,7],[16,6,16,7],[16,0,16,5],[3,0,3,7],[0,0,0,7],[1,0,1,7],[4,0,4,7],[10,1,10,7]]}
[]
["(наименование организации (предприятия), форма собственности, электронная почта, контактный телефон)"]
["Код ОГРН"]
[]
["Наименование медицинской организации, фактический адрес местонахождения, код ОГРН, электронная почта, контактный телефон"]
[]
["Направление №%1 на обязательное психиатрическое освидетельствование\n от %2 "]
[]
["1. Ф.И.О."]
["2. Дата рождения"]
[null,"(число, месяц, год)"]
["3. Пол работника"]
["4. Наименование структурного подразделения работодателя (при наличии), в котором работник осуществляет отдельный вид (виды) деятельности"]
["5. Наименование должности (профессии) работника, направляемого на освидетельствование"]
[]
["6. Вид (виды) деятельности, осуществляемый работником в соответствии с Приложением № 2 к Приказу Минздрава России от 20.05.2022 № 342н «Об утверждении порядка прохождения обязательного психиатрического освидетельствования работниками, осуществляющими отдельные виды деятельности, его периодичности, а также видов деятельности, при осуществлении которых проводится психиатрическое освидетельствование»"]
["7. Сведения о заключениях, выданных по результатам обязательных предварительных и (или) периодических медицинских осмотров работников, предусмотренных статьей 220 Трудового кодекса Российской Федерации ",null,null,null,null,null,"отсутствуют"]
[]
["в соответствии со статьей 220 Трудового кодекса Российской Федерации направляется на обязательное психиатрическое освидетельствование с целью определения его (ее) пригодности по состоянию психического здоровья к осуществлению отдельных видов деятельности, при осуществлении которых проводится психиатрическое освидетельствование, утвержденных Приказом Минздрава России от 20.05.2022 № 342н «Об утверждении порядка прохождения обязательного психиатрического освидетельствования работниками, осуществляющими отдельные виды деятельности, его периодичности, а также видов деятельности, при осуществлении которых проводится психиатрическое освидетельствование»."]
["Инспектор кадров"]
[]
["(должностное лицо)",null,null,"(подпись)",null,null,"(дата)"]
[]
["Дата"]
[]
["М. П."]

{"sheet":"Dangerous_factors","index":5,"n_rows":233,"n_cols":5,"rows_kept":233,"cut":false,"hidden":true,"merged":[]}
["Наименование вредных и (или) опасных производственных факторов с номером подпункта","Номер подпункта по приказу Минздравсоцразвития России от 12.04.2011 №302н","Наименование вредных и (или) опасных производственных факторов ","Длина строки","Строка длиной 50 символов"]
["Химические факторы",null,null,{"$f":"LEN(C2)","v":0},"Химические факторы"]
[{"$f":"CONCATENATE(B3,\" \",C3, )","v":"1.1. Азота неорганические соединения (в том числе азота оксидыО, азота диоксидО)"},"1.1.","Азота неорганические соединения (в том числе азота оксидыО, азота диоксидО)",75,{"$f":"LEFT(A3,50)","v":"1.1. Азота неорганические соединения (в том числе "}]
[{"$f":"CONCATENATE(B4,\" \",C4)","v":"1.2. Азотсодержащие органические соединения (в том числе амины, амиды, анилиды, гидразин и его производные, нитросоединения и прочие производные: NN-диметилацетамидР, NN-диметилформамидР, капролактамАР (гексагидро-2Н-азепин-2-он)"},"1.2.","Азотсодержащие органические соединения (в том числе амины, амиды, анилиды, гидразин и его производные, нитросоединения и прочие производные: NN-диметилацетамидР, NN-диметилформамидР, капролактамАР (гексагидро-2Н-азепин-2-он)",224,{"$f":"LEFT(A4,50)","v":"1.2. Азотсодержащие органические соединения (в том"}]
["1.3. Альдегиды алифатические (предельные и непредельные) и ароматические (формальдегидАКРО, ацетальдегид, проп-2-ен-1-аль (акролеин), бензальдегид, бензол-1,2-дикарбальдегид (фталевый альдегид)","1.3.","Альдегиды алифатические (предельные и непредельные) и ароматические (формальдегидАКРО, ацетальдегид, проп-2-ен-1-аль (акролеин), бензальдегид, бензол-1,2-дикарбальдегид (фталевый альдегид)",188,"1.3. Альдегиды алифатические (предельные и непреде"]
["1.4. Альдегиды и кетоны галогенопроизводные (хлорбензальдегид (4-хлорбензальдегид), фторацетон, хлорацетофенон)","1.4.","Альдегиды и кетоны галогенопроизводные (хлорбензальдегид (4-хлорбензальдегид), фторацетон, хлорацетофенон)",106,"1.4. Альдегиды и кетоны галогенопроизводные (хлорб"]
["1.5. Алюминий и его соединения, в том числе:","1.5.","Алюминий и его соединения, в том числе:",39,"1.5. Алюминий и его соединения, в том числе:"]
["1.5.1. Алюмоплатиновые катализаторыА","1.5.1.","Алюмоплатиновые катализаторыА",29,"1.5.1. Алюмоплатиновые катализаторыА"]
["1.6. Бериллий и его соединенияАКР","1.6.","Бериллий и его соединенияАКР",28,"1.6. Бериллий и его соединенияАКР"]
["1.7.  Бор и его соединения, в том числе:","1.7. ","Бор и его соединения, в том числе:",34,"1.7.  Бор и его соединения, в том числе:"]
["1.7.1.  Борная кислота, бор нитридФ, бор трифторидО, тетраБор карбидФ, тетраБор трисилицидФ","1.7.1. ","Борная кислота, бор нитридФ, бор трифторидО, тетраБор карбидФ, тетраБор трисилицидФ",83,"1.7.1.  Борная кислота, бор нитридФ, бор трифторид"]
["1.7.2. БороводородыО","1.7.2.","БороводородыО",13,"1.7.2. БороводородыО"]
["1.8. Галогены, в том числе:","1.8.","Галогены, в том числе:",22,"1.8. Галогены, в том числе:"]
["1.8.1. ХлорО:","1.8.1.","ХлорО:",6,"1.8.1. ХлорО:"]
["1.8.1.1. Хлора неорганические соединения (гидрохлоридО, кислоты, оксиды)","1.8.1.1.","Хлора неорганические соединения (гидрохлоридО, кислоты, оксиды)",63,"1.8.1.1. Хлора неорганические соединения (гидрохло"]
["1.8.1.2. Хлорсодержащие органические соединения","1.8.1.2.","Хлорсодержащие органические соединения",38,"1.8.1.2. Хлорсодержащие органические соединения"]
["1.8.2. БромАО","1.8.2.","БромАО",6,"1.8.2. БромАО"]
["1.8.2.1. Брома неорганические соединения (бромАО)","1.8.2.1.","Брома неорганические соединения (бромАО)",40,"1.8.2.1. Брома неорганические соединения (бромАО)"]
["1.8.2.2. Бромсодержащие органические соединения (в том числе бромбензол, бромгексан, бромметан)","1.8.2.2.","Бромсодержащие органические соединения (в том числе бромбензол, бромгексан, бромметан)",86,"1.8.2.2. Бромсодержащие органические соединения (в"]
["1.8.3. Йод","1.8.3.","Йод",3,"1.8.3. Йод"]
["1.8.3.1. Йода неорганические соединения (йод, оксиды, кислоты и прочие)","1.8.3.1.","Йода неорганические соединения (йод, оксиды, кислоты и прочие)",62,"1.8.3.1. Йода неорганические соединения (йод, окси"]
["1.8.3.2. Йодсодержащие органические соединения (в том числе йодбензол, йодметилбензол)","1.8.3.2.","Йодсодержащие органические соединения (в том числе йодбензол, йодметилбензол)",77,"1.8.3.2. Йодсодержащие органические соединения (в "]
["1.8.4. ФторО","1.8.4.","ФторО",5,"1.8.4. ФторО"]
["1.8.4.1. Фтора неорганические соединения (в том числе фторО, гидрофторидРО, аммоний фторидР, соединения металлов с фтором: барий дифторидР, калий фторидР, литий фторидР, натрий фторидР, криолитР, олово фторидР)","1.8.4.1.","Фтора неорганические соединения (в том числе фторО, гидрофторидРО, аммоний фторидР, соединения металлов с фтором: барий дифторидР, калий фторидР, литий фторидР, натрий фторидР, криолитР, олово фторидР)",201,"1.8.4.1. Фтора неорганические соединения (в том чи"]
["1.8.4.2. Фторорганические соединения и фторхлорорганические соединения (в том числе дихлорфторметан, дихлорфторметилбензол, фторхлорэтан)","1.8.4.2.","Фторорганические соединения и фторхлорорганические соединения (в том числе дихлорфторметан, дихлорфторметилбензол, фторхлорэтан)",128,"1.8.4.2. Фторорганические соединения и фторхлорорг"]
["1.9. Карбонилдихлорид (фосген)О","1.9.","Карбонилдихлорид (фосген)О",26,"1.9. Карбонилдихлорид (фосген)О"]
["1.10. Гидразин и его производные: фенилгидразин гидрохлорид, борингидразин, диметилгидразин (гептил)К","1.10.","Гидразин и его производные: фенилгидразин гидрохлорид, борингидразин, диметилгидразин (гептил)К",95,"1.10. Гидразин и его производные: фенилгидразин ги"]
["1.11. Дибензодиоксины полихлорированные (ПХДД), дибензофураны полихлорированные, 2,3,4,7,8-пентахлордибензофуран, бифенилы полибромированные и полихлорированныеК, 2,3,7,8-тетрахлордибензо-пара-диоксинК, 3,3',4,4',5-пентахлорбифенил (ПХБ-126)К, диметилкарбамоилхлоридК","1.11.","Дибензодиоксины полихлорированные (ПХДД), дибензофураны полихлорированные, 2,3,4,7,8-пентахлордибензофуран, бифенилы полибромированные и полихлорированныеК, 2,3,7,8-тетрахлордибензо-пара-диоксинК, 3,3',4,4',5-пентахлорбифенил (ПХБ-126)К, диметилкарбамоилхлоридК",261,"1.11. Дибензодиоксины полихлорированные (ПХДД), ди"]
["1.12. Кадмий и его соединенияК, кадмий ртуть теллур (твердый раствор)К, октадеканоат кадмияК","1.12.","Кадмий и его соединенияК, кадмий ртуть теллур (твердый раствор)К, октадеканоат кадмияК",86,"1.12. Кадмий и его соединенияК, кадмий ртуть теллу"]
["1.13. Карбонилы металлов, в том числе железо пентакарбонил, кобальт гидридотетракарбонилАО","1.13.","Карбонилы металлов, в том числе железо пентакарбонил, кобальт гидридотетракарбонилАО",84,"1.13. Карбонилы металлов, в том числе железо пента"]
["1.14. Кетоны, в том числе:","1.14.","Кетоны, в том числе:",20,"1.14. Кетоны, в том числе:"]
["1.14.1. Кетоны алифатические, ароматические 1-фенилэтанон (ацетофенон), пентан-2-он (метилэтилкетон)","1.14.1.","Кетоны алифатические, ароматические 1-фенилэтанон (ацетофенон), пентан-2-он (метилэтилкетон)",92,"1.14.1. Кетоны алифатические, ароматические 1-фени"]
["1.14.2. Пропан","1.14.2.","Пропан",6,"1.14.2. Пропан"]
["1.15.  Кислоты органические: метановая (муравьиная), этановая (уксусная), бутановая (масляная), пропионовая, 1-метилбутановая (изовалериановая), этадионовая кислота дигидрат (щавелевая), 4-метилпентановая (изокапроновая), проп-2-еновая (акриловая), бензойная и прочие; синтетические жирные кислоты; в том числе:","1.15."," Кислоты органические: метановая (муравьиная), этановая (уксусная), бутановая (масляная), пропионовая, 1-метилбутановая (изовалериановая), этадионовая кислота дигидрат (щавелевая), 4-метилпентановая (изокапроновая), проп-2-еновая (акриловая), бензойная и прочие; синтетические жирные кислоты; в том числе:",305,"1.15.  Кислоты органические: метановая (муравьиная"]
["1.15.1. Бензол-1,3-дикарбоноваяА (изофталевая) и бензол-1,4-дикарбоноваяА (терефталевая) кислоты","1.15.1.","Бензол-1,3-дикарбоноваяА (изофталевая) и бензол-1,4-дикарбоноваяА (терефталевая) кислоты",88,"1.15.1. Бензол-1,3-дикарбоноваяА (изофталевая) и б"]
["1.16. Кремния органические соединенияА (силаны), в том числе трихлор(хлорметил) силан, фенилтрихлорсилан, трихлорсилан","1.16.","Кремния органические соединенияА (силаны), в том числе трихлор(хлорметил) силан, фенилтрихлорсилан, трихлорсилан",112,"1.16. Кремния органические соединенияА (силаны), в"]
["1.17. МарганецР и его соединения, в том числе марганец карбонат гидратАР, марганец нитрат гексагидратАР, марганец сульфат пентагидратА, марганец трикарбонилциклопентадиенР","1.17.","МарганецР и его соединения, в том числе марганец карбонат гидратАР, марганец нитрат гексагидратАР, марганец сульфат пентагидратА, марганец трикарбонилциклопентадиенР",165,"1.17. МарганецР и его соединения, в том числе марг"]
["1.18. Медь, золото, серебро и их соединения, в том числе:","1.18.","Медь, золото, серебро и их соединения, в том числе:",51,"1.18. Медь, золото, серебро и их соединения, в том"]
["1.18.1. Медь и ее соединения","1.18.1.","Медь и ее соединения",20,"1.18.1. Медь и ее соединения"]
["1.18.2. ЗолотоА и его соединения","1.18.2.","ЗолотоА и его соединения",24,"1.18.2. ЗолотоА и его соединения"]
["1.18.3. СереброР и его соединения","1.18.3.","СереброР и его соединения",25,"1.18.3. СереброР и его соединения"]
["1.19. Металлы щелочные, щелочноземельные, редкоземельные и их соединения, в том числе:","1.19.","Металлы щелочные, щелочноземельные, редкоземельные и их соединения, в том числе:",80,"1.19. Металлы щелочные, щелочноземельные, редкозем"]
["1.19.1. Натрий, калий, литий, рубидий, цезий, цезиевая соль хлорированного бисдикарбонил кобальта и прочие; кальций, магний, стронций, барий, магнид медиФ, магний додекаборид; лантан, иттрий, скандий, церий и их соединения","1.19.1.","Натрий, калий, литий, рубидий, цезий, цезиевая соль хлорированного бисдикарбонил кобальта и прочие; кальций, магний, стронций, барий, магнид медиФ, магний додекаборид; лантан, иттрий, скандий, церий и их соединения",214,"1.19.1. Натрий, калий, литий, рубидий, цезий, цези"]
["1.19.2. КобальтА, молибден, вольфрамФ, танталФ, ниобийФ и их соединения","1.19.2.","КобальтА, молибден, вольфрамФ, танталФ, ниобийФ и их соединения",63,"1.19.2. КобальтА, молибден, вольфрамФ, танталФ, ни"]
["1.19.3. Ванадий, европий, иттрий, оксид фосфат (люминофор Л-43 (ванадат иттрия фосфат)Р","1.19.3.","Ванадий, европий, иттрий, оксид фосфат (люминофор Л-43 (ванадат иттрия фосфат)Р",79,"1.19.3. Ванадий, европий, иттрий, оксид фосфат (лю"]
["1.20. РтутьР и ее соединения: ртутьР; металлоорганические соединения (ртуть неорганические соединения и прочие); органические соединения ртути","1.20.","РтутьР и ее соединения: ртутьР; металлоорганические соединения (ртуть неорганические соединения и прочие); органические соединения ртути",136,"1.20. РтутьР и ее соединения: ртутьР; металлоорган"]
["1.21. Мышьяк и его неорганическиеКР и органические соединения","1.21.","Мышьяк и его неорганическиеКР и органические соединения",55,"1.21. Мышьяк и его неорганическиеКР и органические"]
["1.22. Никель и его соединенияАК, гептаникель гексасульфидАК, никель тетракарбонилАКО, никель хром гексагидрофосфатАК, никеля солиАК","1.22.","Никель и его соединенияАК, гептаникель гексасульфидАК, никель тетракарбонилАКО, никель хром гексагидрофосфатАК, никеля солиАК",125,"1.22. Никель и его соединенияАК, гептаникель гекса"]
["1.23. ОзонО","1.23.","ОзонО",5,"1.23. ОзонО"]
["1.24. Оксиды органические и перекиси: эпоксиэтанКР (этилена оксид), 1,2-эпоксипропанК (пропилена оксид), (хлорметил) оксиранАК (эпихлоргидрин)","1.24.","Оксиды органические и перекиси: эпоксиэтанКР (этилена оксид), 1,2-эпоксипропанК (пропилена оксид), (хлорметил) оксиранАК (эпихлоргидрин)",136,"1.24. Оксиды органические и перекиси: эпоксиэтанКР"]
["1.25. Олово и его соединения","1.25.","Олово и его соединения",22,"1.25. Олово и его соединения"]
["1.26. Платиновые металлы и их соединения: рутений, родий, палладийА, диАммоний дихлорпалладийА, осмий, иридий, платина, диАммоний гексахлорплатинатА","1.26.","Платиновые металлы и их соединения: рутений, родий, палладийА, диАммоний дихлорпалладийА, осмий, иридий, платина, диАммоний гексахлорплатинатА",142,"1.26. Платиновые металлы и их соединения: рутений,"]
["1.27. Свинец, в том числе:","1.27.","Свинец, в том числе:",20,"1.27. Свинец, в том числе:"]
["1.27.1. Свинец и его неорганические соединенияРК","1.27.1.","Свинец и его неорганические соединенияРК",40,"1.27.1. Свинец и его неорганические соединенияРК"]
["1.27.2. Свинца органические соединения: тетраэтилсвинецО, 1,4-дигидрооксибензол свинец аддукт","1.27.2.","Свинца органические соединения: тетраэтилсвинецО, 1,4-дигидрооксибензол свинец аддукт",85,"1.27.2. Свинца органические соединения: тетраэтилс"]
["1.28. Селен, теллур и их соединения","1.28.","Селен, теллур и их соединения",29,"1.28. Селен, теллур и их соединения"]
["1.29. Серы соединения, в том числе:","1.29.","Серы соединения, в том числе:",29,"1.29. Серы соединения, в том числе:"]
["1.29.1. Серы оксиды, кислоты","1.29.1.","Серы оксиды, кислоты",20,"1.29.1. Серы оксиды, кислоты"]
["1.29.2. Дигидросульфид (сероводород)О, дигидросульфидО (сероводород) смесь с углеводородами C1-5","1.29.2.","Дигидросульфид (сероводород)О, дигидросульфидО (сероводород) смесь с углеводородами C1-5",88,"1.29.2. Дигидросульфид (сероводород)О, дигидросуль"]
["1.29.3. Углерод дисульфидР (сероуглерод)","1.29.3.","Углерод дисульфидР (сероуглерод)",32,"1.29.3. Углерод дисульфидР (сероуглерод)"]
["1.29.4. Серусодержащие органические соединения: тиолы (меркаптаны), тиоамиды: метантиол (метилмеркаптан), этантиол (этилмеркаптан)","1.29.4.","Серусодержащие органические соединения: тиолы (меркаптаны), тиоамиды: метантиол (метилмеркаптан), этантиол (этилмеркаптан)",122,"1.29.4. Серусодержащие органические соединения: ти"]
["1.29.5. ТетраметилтиопероксидикарбондиамидА (тиурам Д)","1.29.5.","ТетраметилтиопероксидикарбондиамидА (тиурам Д)",46,"1.29.5. ТетраметилтиопероксидикарбондиамидА (тиура"]
["1.30. Спирты, в том числе:","1.30.","Спирты, в том числе:",20,"1.30. Спирты, в том числе:"]
["1.30.1. Алифатические одно- и многоатомные, ароматические спирты и их производные: этанол, бутан-1-ол, бутан-2-ол, бутанол, метанол, пропан-1-ол, пропан-2-ол, 2-(Проп-2-енокси) этанол, 2-этоксиэтанолР, бензилкарбинолР, этан-1,2-диол (этиленгликоль), пропан-2-диол (пропиленгликоль)","1.30.1.","Алифатические одно- и многоатомные, ароматические спирты и их производные: этанол, бутан-1-ол, бутан-2-ол, бутанол, метанол, пропан-1-ол, пропан-2-ол, 2-(Проп-2-енокси) этанол, 2-этоксиэтанолР, бензилкарбинолР, этан-1,2-диол (этиленгликоль), пропан-2-диол (пропиленгликоль)",273,"1.30.1. Алифатические одно- и многоатомные, аромат"]
["1.31. СурьмаР и ее соединения","1.31.","СурьмаР и ее соединения",23,"1.31. СурьмаР и ее соединения"]
["1.32. Таллий, индий, галлий и их соединения","1.32.","Таллий, индий, галлий и их соединения",{"$f":"LEN(C66)","v":37},"1.32. Таллий, индий, галлий и их соединения"]
["1.33. ТитанФ, цирконий, гафний, германий и их соединения","1.33.","ТитанФ, цирконий, гафний, германий и их соединения",50,"1.33. ТитанФ, цирконий, гафний, германий и их соед"]
[{"$f":"CONCATENATE(B68,\" \",C68)","v":"1.34. Углеводородов алифатических галогенопроизводные, в том числе:"},"1.34.","Углеводородов алифатических галогенопроизводные, в том числе:",61,{"$f":"LEFT(A68,50)","v":"1.34. Углеводородов алифатических галогенопроизвод"}]
["1.34.1. ДихлорметанР (хлористый метилен), 1,2-дихлорэтан, тетрахлорметан (четыреххлористый углерод)Р, трихлорметан (хлороформ), хлорметанР (хлористый метил), бромэтан, трихлорэтан, трихлорэтен, 1 и 2-хлорбута-1,3-диен (хлоропрен)Р, тетрафторэтен (перфторизобутилен), 2-бром-1,1,1-трифтор-2 хлорэтан (фторотан)Р и другие","1.34.1.","ДихлорметанР (хлористый метилен), 1,2-дихлорэтан, тетрахлорметан (четыреххлористый углерод)Р, трихлорметан (хлороформ), хлорметанР (хлористый метил), бромэтан, трихлорэтан, трихлорэтен, 1 и 2-хлорбута-1,3-диен (хлоропрен)Р, тетрафторэтен (перфторизобутилен), 2-бром-1,1,1-трифтор-2 хлорэтан (фторотан)Р и другие",311,"1.34.1. ДихлорметанР (хлористый метилен), 1,2-дихл"]
["1.34.2. ХлорэтенКР (винилхлорид)","1.34.2.","ХлорэтенКР (винилхлорид)",24,"1.34.2. ХлорэтенКР (винилхлорид)"]
["1.35. Углеводороды гетероциклические: фуранА, фуран-2-альдегидА (фурфураль), пиридин и его соединения, пиперидины, тетрагидро-1,4-оксазин (морфолин) и другие","1.35.","Углеводороды гетероциклические: фуранА, фуран-2-альдегидА (фурфураль), пиридин и его соединения, пиперидины, тетрагидро-1,4-оксазин (морфолин) и другие",151,"1.35. Углеводороды гетероциклические: фуранА, фура"]
["1.36. Углеводороды алифатические предельные, непредельные, циклические, в том числе:","1.36.","Углеводороды алифатические предельные, непредельные, циклические, в том числе:",78,"1.36. Углеводороды алифатические предельные, непре"]
["1.36.1. Метан, этан, пропан, парафины, этилен, пропилен, ацетилен, циклогексан","1.36.1.","Метан, этан, пропан, парафины, этилен, пропилен, ацетилен, циклогексан",70,"1.36.1. Метан, этан, пропан, парафины, этилен, про"]
["1.36.2. Бута-1,3-диенКР (1,3-бутадиен, дивинил)","1.36.2.","Бута-1,3-диенКР (1,3-бутадиен, дивинил)",39,"1.36.2. Бута-1,3-диенКР (1,3-бутадиен, дивинил)"]
["1.36.3. 1,7,7триметилбицикло [2,2,1]гептан-2-он (камфара)","1.36.3.","1,7,7триметилбицикло [2,2,1]гептан-2-он (камфара)",49,"1.36.3. 1,7,7триметилбицикло [2,2,1]гептан-2-он (к"]
["1.37. Углеводороды ароматические:","1.37.","Углеводороды ароматические:",27,"1.37. Углеводороды ароматические:"]
["1.37.1. БензолКР и его производные: (толуолР (метилбензол), ксилолР (диметилбензол), стирол (этенилбензол) и прочие), гидроксибензолР (фенол) и его производные, крезол в том числе:","1.37.1.","БензолКР и его производные: (толуолР (метилбензол), ксилолР (диметилбензол), стирол (этенилбензол) и прочие), гидроксибензолР (фенол) и его производные, крезол в том числе:",172,"1.37.1. БензолКР и его производные: (толуолР (мети"]
["1.37.1.1. Амино- и нитросоединения ароматических углеводородов и их производные: аминобензол (анилин), м-, п-толуидин, N-метиламинобензол (метил-аланин), аминонитро-бензолы; нитрохлорбензолы, нитро-, аминофенолы, 2-метил-1,3,5-тринитробензол (тринитротолуол), диамино-бензолыА (фенилен-диамины), 1-амино-3-хлорбензолол, 1-амино-4-хлорбензол (хлоранилины), аминодиметилбензол (ксилидин) и другие","1.37.1.1.","Амино- и нитросоединения ароматических углеводородов и их производные: аминобензол (анилин), м-, п-толуидин, N-метиламинобензол (метил-аланин), аминонитро-бензолы; нитрохлорбензолы, нитро-, аминофенолы, 2-метил-1,3,5-тринитробензол (тринитротолуол), диамино-бензолыА (фенилен-диамины), 1-амино-3-хлорбензолол, 1-амино-4-хлорбензол (хлоранилины), аминодиметилбензол (ксилидин) и другие",384,"1.37.1.1. Амино- и нитросоединения ароматических у"]
["1.37.1.2. Галогенопроизводные ароматические углеводороды: хлорбензол, (хлорметил)бензолА (хлортолуол; бензилхлорид), бромбензолА, трихлорбензол, трифтор-метилбензол, 1-гидрокси-2-хлорбензол, 1-гидрокси-4-хлорбензол, 1-гидрокси-2,4,6 трихлорбензол (хлорфенолы), 4-ди-хлорметилен-1,2,3,5,5-гексахлорциклопент-1-енА и другие","1.37.1.2.","Галогенопроизводные ароматические углеводороды: хлорбензол, (хлорметил)бензолА (хлортолуол; бензилхлорид), бромбензолА, трихлорбензол, трифтор-метилбензол, 1-гидрокси-2-хлорбензол, 1-гидрокси-4-хлорбензол, 1-гидрокси-2,4,6 трихлорбензол (хлорфенолы), 4-ди-хлорметилен-1,2,3,5,5-гексахлорциклопент-1-енА и другие",311,"1.37.1.2. Галогенопроизводные ароматические углево"]
["1.37.2. Полициклические ароматические углеводороды и их производные (нафталин, нафтолы, бенз(а)пиренКР, дибенз(a,h)антраценК, антрацен, бензантрон, бенз(а)антраценК, фенантрен, 4-гидрокси-3-(3оксо-1-фенилбу-2H-1-бензопиранР)","1.37.2.","Полициклические ароматические углеводороды и их производные (нафталин, нафтолы, бенз(а)пиренКР, дибенз(a,h)антраценК, антрацен, бензантрон, бенз(а)антраценК, фенантрен, 4-гидрокси-3-(3оксо-1-фенилбу-2H-1-бензопиранР)",216,"1.37.2. Полициклические ароматические углеводороды"]
["1.38. Углеводородов алифатических амино- и нитросоединения и их производные (в том числе метиламин, этилениминАО, 1,6-диаминогексан (гексаметилендиамин)А, циклогексиламин)","1.38.","Углеводородов алифатических амино- и нитросоединения и их производные (в том числе метиламин, этилениминАО, 1,6-диаминогексан (гексаметилендиамин)А, циклогексиламин)",165,"1.38. Углеводородов алифатических амино- и нитросо"]
["1.39.  Углерода оксидРО","1.39. ","Углерода оксидРО",16,"1.39.  Углерода оксидРО"]
["1.40.  Фосфор и его соединения, в том числе:","1.40. ","Фосфор и его соединения, в том числе:",37,"1.40.  Фосфор и его соединения, в том числе:"]
["1.40.1. Фосфорсодержащие неорганические соединения (в том числе фосфинО, фосфориллоридО, фосфиды металлов, галогениды фосфора, фосфор пентаоксид)","1.40.1.","Фосфорсодержащие неорганические соединения (в том числе фосфинО, фосфориллоридО, фосфиды металлов, галогениды фосфора, фосфор пентаоксид)",137,"1.40.1. Фосфорсодержащие неорганические соединения"]
["1.40.2. Фосфорсодержащие органические соединения - трикрезилфосфатР и другие","1.40.2.","Фосфорсодержащие органические соединения - трикрезилфосфатР и другие",68,"1.40.2. Фосфорсодержащие органические соединения -"]
["1.41. Хиноны и их производные (в том числе нафтохиноны, бензохиноны, гидрохиноныА, антрахинон (антрацен-9,10-дион)","1.41.","Хиноны и их производные (в том числе нафтохиноны, бензохиноны, гидрохиноныА, антрахинон (антрацен-9,10-дион)",108,"1.41. Хиноны и их производные (в том числе нафтохи"]
["1.42. Хром (VI) триоксидКР, диХромтриоксидА, хром трихлорид гексагидратА, хромовая кислотаАК и ее соли, соединения хрома и сплавы","1.42.","Хром (VI) триоксидКР, диХромтриоксидА, хром трихлорид гексагидратА, хромовая кислотаАК и ее соли, соединения хрома и сплавы",123,"1.42. Хром (VI) триоксидКР, диХромтриоксидА, хром "]
["1.43. Цианистые соединения, в том числе:","1.43.","Цианистые соединения, в том числе:",34,"1.43. Цианистые соединения, в том числе:"]
["1.43.1. Цианистоводородная кислотаО, ее соли, галоген- и другие производные (цианистый калийО, хлорцианО, цианамид и прочие - гидроцианида солиО, бензилцианидО); нитрилы органических кислот: ацетонитрил, бензонитрил и другие","1.43.1.","Цианистоводородная кислотаО, ее соли, галоген- и другие производные (цианистый калийО, хлорцианО, цианамид и прочие - гидроцианида солиО, бензилцианидО); нитрилы органических кислот: ацетонитрил, бензонитрил и другие",216,"1.43.1. Цианистоводородная кислотаО, ее соли, гало"]
["1.43.2. АкрилонитрилРА (проп-2-енонитрил)","1.43.2.","АкрилонитрилРА (проп-2-енонитрил)",33,"1.43.2. АкрилонитрилРА (проп-2-енонитрил)"]
["1.44. Цинк и его соединенияА","1.44.","Цинк и его соединенияА",22,"1.44. Цинк и его соединенияА"]
["1.45.  Эфиры сложные кислот органических, в том числе:","1.45. ","Эфиры сложные кислот органических, в том числе:",47,"1.45.  Эфиры сложные кислот органических, в том чи"]
["1.45.1.  Эфиры сложные уксусной кислоты (в том числе этилацетат, бутилацетат, 2-метоксиэтилацетатР, 2-этоксиэтилацетатР)","1.45.1. ","Эфиры сложные уксусной кислоты (в том числе этилацетат, бутилацетат, 2-метоксиэтилацетатР, 2-этоксиэтилацетатР)",111,"1.45.1.  Эфиры сложные уксусной кислоты (в том чис"]
["1.45.2.  Эфиры сложные акриловой кислоты (в том числе метилакрилат (метилпроп-2-еноат), бутилакрилат(бутилпроп-2-еноат), метилметакрилат)","1.45.2. ","Эфиры сложные акриловой кислоты (в том числе метилакрилат (метилпроп-2-еноат), бутилакрилат(бутилпроп-2-еноат), метилметакрилат)",128,"1.45.2.  Эфиры сложные акриловой кислоты (в том чи"]
["1.45.3. Эфиры сложные фталевой и терефталевой кислот: дибутилбензол-1,2-дикарбонат (дибутилфталат), диметилбензол-1,2-дикарбонат (диметилтерефталат) и другие","1.45.3.","Эфиры сложные фталевой и терефталевой кислот: дибутилбензол-1,2-дикарбонат (дибутилфталат), диметилбензол-1,2-дикарбонат (диметилтерефталат) и другие",149,"1.45.3. Эфиры сложные фталевой и терефталевой кисл"]
["1.46. Красители и пигменты органические (в том числе азокрасители, бензидиновыеК, фталоцианиновые, хлортиазиновые, антрахиноновые, триарилметановые, тиоин-дигоидные, полиэфирные)","1.46.","Красители и пигменты органические (в том числе азокрасители, бензидиновыеК, фталоцианиновые, хлортиазиновые, антрахиноновые, триарилметановые, тиоин-дигоидные, полиэфирные)",172,"1.46. Красители и пигменты органические (в том чис"]
["1.47. Пестициды, инсектициды, гербициды, в том числе:","1.47.","Пестициды, инсектициды, гербициды, в том числе:",47,"1.47. Пестициды, инсектициды, гербициды, в том чис"]
["1.47.1. ХлорорганическиеА (в том числе метоксихлор, гепта-хлор, хлоридан, дихлор, гексахлорбензол, гексахлорциклогексан (линдан), дикофол, 1,1,-(2,2,2 трихлорэтилиден) бис (4хлорбензол)Р (ДДТ)","1.47.1.","ХлорорганическиеА (в том числе метоксихлор, гепта-хлор, хлоридан, дихлор, гексахлорбензол, гексахлорциклогексан (линдан), дикофол, 1,1,-(2,2,2 трихлорэтилиден) бис (4хлорбензол)Р (ДДТ)",184,"1.47.1. ХлорорганическиеА (в том числе метоксихлор"]
["1.47.2. Фосфорорганические (в том числе метафос, метилэтил-тиофос, меркаптофос, карбофос, М-81, рогор, дифлос, хлорофос, глифосфат, гордона, валексон, диазинон, диметоат, малатион, паратионметил, хлорфенвинфос)","1.47.2.","Фосфорорганические (в том числе метафос, метилэтил-тиофос, меркаптофос, карбофос, М-81, рогор, дифлос, хлорофос, глифосфат, гордона, валексон, диазинон, диметоат, малатион, паратионметил, хлорфенвинфос)",202,"1.47.2. Фосфорорганические (в том числе метафос, м"]
["1.47.3. Ртутьорганические (в том числе этилмеркурхлорид диметилртуть)","1.47.3.","Ртутьорганические (в том числе этилмеркурхлорид диметилртуть)",61,"1.47.3. Ртутьорганические (в том числе этилмеркурх"]
["1.47.4. Производные кислот карбаминовых: (в том числе каторана-вадекс, дихлоральмочевина, метурин, фенуроп, севинА, манебА, дикрезил, ялан, эптам, карбатионА, цинебА, карбофуран, карбосульфан, пиримикарб, тирам, манкоцеб, поликарбацин, десмедифам, фенмедифам)","1.47.4.","Производные кислот карбаминовых: (в том числе каторана-вадекс, дихлоральмочевина, метурин, фенуроп, севинА, манебА, дикрезил, ялан, эптам, карбатионА, цинебА, карбофуран, карбосульфан, пиримикарб, тирам, манкоцеб, поликарбацин, десмедифам, фенмедифам)",251,"1.47.4. Производные кислот карбаминовых: (в том чи"]
["1.47.5. Производные кислот алифатических хлорированных (в том числе хлоруксусной, трихлоруксусной)","1.47.5.","Производные кислот алифатических хлорированных (в том числе хлоруксусной, трихлоруксусной)",90,"1.47.5. Производные кислот алифатических хлорирова"]
["1.47.6. Производные кислоты хлорбензойной","1.47.6.","Производные кислоты хлорбензойной",33,"1.47.6. Производные кислоты хлорбензойной"]
["1.47.7. Производные кислоты хлороксиуксусной: 2,4-дихлорфеноксиуксусная кислота (2,4Д), аминная соль 2,4-дихлорфеноксиуксусной кислоты (2,4ДА), 4-хлор-2-метилфеноксиуксусная кислота (МСРА)","1.47.7.","Производные кислоты хлороксиуксусной: 2,4-дихлорфеноксиуксусная кислота (2,4Д), аминная соль 2,4-дихлорфеноксиуксусной кислоты (2,4ДА), 4-хлор-2-метилфеноксиуксусная кислота (МСРА)",180,"1.47.7. Производные кислоты хлороксиуксусной: 2,4-"]
["1.47.8. Кислоты хлорфеноксимасляной производные","1.47.8.","Кислоты хлорфеноксимасляной производные",39,"1.47.8. Кислоты хлорфеноксимасляной производные"]
["1.47.9. Кислот карбоновых анилиды галоидозамещенные","1.47.9.","Кислот карбоновых анилиды галоидозамещенные",43,"1.47.9. Кислот карбоновых анилиды галоидозамещенны"]
["1.47.10. Производные мочевины и гуанидина","1.47.10.","Производные мочевины и гуанидина",32,"1.47.10. Производные мочевины и гуанидина"]
["1.47.11. Производные сим-тразинов: атразин, прометрин, тербутрин","1.47.11.","Производные сим-тразинов: атразин, прометрин, тербутрин",55,"1.47.11. Производные сим-тразинов: атразин, промет"]
["1.47.12. Гетероциклические соединения различных групп: зоокумарин(4-гидрокси-3-(3-оксо-1-фенилбу-2H-1-бензопиран-2-онтил), ратиндан (2-(Дифенилацетил)-1H-инден-1,3-(2H)-дион), морестан, пирамин (5-Амино-2-фенил-4-хлорпридазин 3(2H)-он), тиазон (3,5-Диметил-2H-1,3,5-тиадиазин-2-тион)","1.47.12.","Гетероциклические соединения различных групп: зоокумарин(4-гидрокси-3-(3-оксо-1-фенилбу-2H-1-бензопиран-2-онтил), ратиндан (2-(Дифенилацетил)-1H-инден-1,3-(2H)-дион), морестан, пирамин (5-Амино-2-фенил-4-хлорпридазин 3(2H)-он), тиазон (3,5-Диметил-2H-1,3,5-тиадиазин-2-тион)",274,"1.47.12. Гетероциклические соединения различных гр"]
["1.47.13. Хлорацетоанилиды (ацетохлор, алахлор, метазахлор, метолахлор)","1.47.13.","Хлорацетоанилиды (ацетохлор, алахлор, метазахлор, метолахлор)",61,"1.47.13. Хлорацетоанилиды (ацетохлор, алахлор, мет"]
["1.47.14. Пиретроиды (в том числе бифентрин, перметрин, фенвалерат, лямбдацыгалотрин, цыгалотрин, дельтаметрин)","1.47.14.","Пиретроиды (в том числе бифентрин, перметрин, фенвалерат, лямбдацыгалотрин, цыгалотрин, дельтаметрин)",101,"1.47.14. Пиретроиды (в том числе бифентрин, пермет"]
["1.47.15. Производные сульфанил-мочевины (в том числе хлорсульфурон, римсульфурон, хлорсульфоксим, метмульфуронметил, трибунуронметил, тифенсульфурон-метил)","1.47.15.","Производные сульфанил-мочевины (в том числе хлорсульфурон, римсульфурон, хлорсульфоксим, метмульфуронметил, трибунуронметил, тифенсульфурон-метил)",146,"1.47.15. Производные сульфанил-мочевины (в том чис"]
["1.47.16. Азолы (в том числе бромуконазол, ципраконазол, пропиконазол, тритиконазол, триадименол, прохлораз, имозалил)","1.47.16.","Азолы (в том числе бромуконазол, ципраконазол, пропиконазол, тритиконазол, триадименол, прохлораз, имозалил)",108,"1.47.16. Азолы (в том числе бромуконазол, ципракон"]
["1.48. Синтетические моющие средства на основе анионных поверхностно активных веществ и их соединения (в том числе сульфанол, алкиламиды)А","1.48.","Синтетические моющие средства на основе анионных поверхностно активных веществ и их соединения (в том числе сульфанол, алкиламиды)А",131,"1.48. Синтетические моющие средства на основе анио"]
["1.49. Синтетические полимерные материалы: смолы, лаки, клеи, пластмассы, пресспорошки, волокна, в том числе:","1.49.","Синтетические полимерные материалы: смолы, лаки, клеи, пластмассы, пресспорошки, волокна, в том числе:",102,"1.49. Синтетические полимерные материалы: смолы, л"]
["1.49.1.  Полиакрилаты: полиметакрилаты (оргстекло, плексиглаз), полиакрилонитрил, полиакриламид","1.49.1. ","Полиакрилаты: полиметакрилаты (оргстекло, плексиглаз), полиакрилонитрил, полиакриламид",86,"1.49.1.  Полиакрилаты: полиметакрилаты (оргстекло,"]
["1.49.2.  Азолы (в том числе бромуконазол, ципраконазол, пропиконазол, тритиконазол, триадименол, прохлораз, имозалил)","1.49.2. ","Азолы (в том числе бромуконазол, ципраконазол, пропиконазол, тритиконазол, триадименол, прохлораз, имозалил)",108,"1.49.2.  Азолы (в том числе бромуконазол, ципракон"]
["1.49.3. Полимер (1метилэтенил) бензола с этенилбензоломР","1.49.3.","Полимер (1метилэтенил) бензола с этенилбензоломР",48,"1.49.3. Полимер (1метилэтенил) бензола с этенилбен"]
["1.49.4. Полиолефины (полиэтилены, полипропиленыА (горячая обработка)","1.49.4.","Полиолефины (полиэтилены, полипропиленыА (горячая обработка)",60,"1.49.4. Полиолефины (полиэтилены, полипропиленыА ("]
["1.49.5. Полисилоксаны (производство)","1.49.5.","Полисилоксаны (производство)",28,"1.49.5. Полисилоксаны (производство)"]
["1.49.6. Полистиролы (производство)","1.49.6.","Полистиролы (производство)",26,"1.49.6. Полистиролы (производство)"]
["1.49.7. ПолиуретаныА (пенополиуретан) (производство)","1.49.7.","ПолиуретаныА (пенополиуретан) (производство)",44,"1.49.7. ПолиуретаныА (пенополиуретан) (производств"]
["1.49.8. Полиэфиры (лавсан) (производство)","1.49.8.","Полиэфиры (лавсан) (производство)",33,"1.49.8. Полиэфиры (лавсан) (производство)"]
["1.49.9. Угле- и органопластики","1.49.9.","Угле- и органопластики",22,"1.49.9. Угле- и органопластики"]
["1.49.10. Углеродные волокнистые материалы на основе гидратцеллюлозных волокон и углеродные волокнистые материалы на основе полиакрилонитрильных волокон","1.49.10.","Углеродные волокнистые материалы на основе гидратцеллюлозных волокон и углеродные волокнистые материалы на основе полиакрилонитрильных волокон",142,"1.49.10. Углеродные волокнистые материалы на основ"]
["1.49.11. ФенопластыАФ (фенольная смола, бакелитовый лак) (производство)","1.49.11.","ФенопластыАФ (фенольная смола, бакелитовый лак) (производство)",62,"1.49.11. ФенопластыАФ (фенольная смола, бакелитовы"]
["1.49.12. Фторопласты (политетрафторэтиленФ, тефлон) (производство и термическая обработка)","1.49.12.","Фторопласты (политетрафторэтиленФ, тефлон) (производство и термическая обработка)",81,"1.49.12. Фторопласты (политетрафторэтиленФ, тефлон"]
["1.49.13. ФуранА, фуран-2-альдегидА, 2,5-фурандионА","1.49.13.","ФуранА, фуран-2-альдегидА, 2,5-фурандионА",41,"1.49.13. ФуранА, фуран-2-альдегидА, 2,5-фурандионА"]
["1.49.14. Эпоксидные полимерыА (эпоксидные смолы, компаунды, клеи) (производство и применение)","1.49.14.","Эпоксидные полимерыА (эпоксидные смолы, компаунды, клеи) (производство и применение)",84,"1.49.14. Эпоксидные полимерыА (эпоксидные смолы, к"]
["1.50. Технические смеси углеводородов: нефти, бензиныР, коксыФ, керосины, уайт-спиритР, мазуты, битумы, асфальты, каменноугольные и нефтяные смолыК, пекиК, возгоны каменноугольных смол и пековК, масла минеральныеК, (кроме высокоочищенных белых медицинских, пищевых, косметических и белых технических масел), сланцевые смолыАК и маслаАК, скипидарА, бисхлорметиловый и хлорметиловый (технические) эфиры: хлорметоксиметанК, газы шинного производстваК, вулканизационныеК","1.50.","Технические смеси углеводородов: нефти, бензиныР, коксыФ, керосины, уайт-спиритР, мазуты, битумы, асфальты, каменноугольные и нефтяные смолыК, пекиК, возгоны каменноугольных смол и пековК, масла минеральныеК, (кроме высокоочищенных белых медицинских, пищевых, косметических и белых технических масел), сланцевые смолыАК и маслаАК, скипидарА, бисхлорметиловый и хлорметиловый (технические) эфиры: хлорметоксиметанК, газы шинного производстваК, вулканизационныеК",{"$f":"LEN(C130)","v":460},"1.50. Технические смеси углеводородов: нефти, бенз"]
["1.51. Агрохимикаты, в том числе","1.51.","Агрохимикаты, в том числе",25,"1.51. Агрохимикаты, в том числе"]
[{"$f":"CONCATENATE(B132,\" \",C132)","v":"1.51.1. Фосфорные удобрения (аммофос, нитрофоска)"},"1.51.1.","Фосфорные удобрения (аммофос, нитрофоска)",41,{"$f":"LEFT(A132,50)","v":"1.51.1. Фосфорные удобрения (аммофос, нитрофоска)"}]
["1.51.2. Азотные удобрения (нитрат аммония - аммиачная селитра, нитраты натрия, калия)","1.51.2.","Азотные удобрения (нитрат аммония - аммиачная селитра, нитраты натрия, калия)",77,"1.51.2. Азотные удобрения (нитрат аммония - аммиач"]
["1.52. Фармакологические средства, в том числе:","1.52.","Фармакологические средства, в том числе:",40,"1.52. Фармакологические средства, в том числе:"]
["1.52.1. АнтибиотикиА (производство и применение)","1.52.1.","АнтибиотикиА (производство и применение)",40,"1.52.1. АнтибиотикиА (производство и применение)"]
["1.52.2. Противоопухолевые препаратыАК (производство и применение)","1.52.2.","Противоопухолевые препаратыАК (производство и применение)",57,"1.52.2. Противоопухолевые препаратыАК (производств"]
["1.52.3. СульфаниламидыА (производство и применение)","1.52.3.","СульфаниламидыА (производство и применение)",43,"1.52.3. СульфаниламидыА (производство и применение"]
["1.52.4. Гормоны (производство и применение)","1.52.4.","Гормоны (производство и применение)",35,"1.52.4. Гормоны (производство и применение)"]
["1.52.5. ВитаминыА (производство, применение)","1.52.5.","ВитаминыА (производство, применение)",36,"1.52.5. ВитаминыА (производство, применение)"]
["1.52.6. Наркотики, психотропные препараты (производство)","1.52.6.","Наркотики, психотропные препараты (производство)",48,"1.52.6. Наркотики, психотропные препараты (произво"]
["1.52.7. Фармакологические средства, не вошедшие в подпункты 1.52.1 - 1.52.6 (производство)","1.52.7.","Фармакологические средства, не вошедшие в подпункты 1.52.1 - 1.52.6 (производство)",82,"1.52.7. Фармакологические средства, не вошедшие в "]
["1.53. Ядохимикаты, в том числе:","1.53.","Ядохимикаты, в том числе:",25,"1.53. Ядохимикаты, в том числе:"]
["1.53.1. Гербициды","1.53.1.","Гербициды",9,"1.53.1. Гербициды"]
["1.53.2. Инсектициды","1.53.2.","Инсектициды",11,"1.53.2. Инсектициды"]
[null,"Биологические факторы",null,0,""]
[{"$f":"CONCATENATE(B146,\" \",C146)","v":"2.1. Грибы продуцентыА, белково-витаминные концентраты (БВК), кормовые дрожжиА, комбикормаА"},"2.1.","Грибы продуцентыА, белково-витаминные концентраты (БВК), кормовые дрожжиА, комбикормаА",86,"2.1. Грибы продуцентыА, белково-витаминные концент"]
["2.2. Ферментные препаратыА, биостимуляторы","2.2.","Ферментные препаратыА, биостимуляторы",37,"2.2. Ферментные препаратыА, биостимуляторы"]
["2.3. Аллергены для диагностики и леченияА, компоненты и препараты крови, иммунобиологические препаратыА","2.3.","Аллергены для диагностики и леченияА, компоненты и препараты крови, иммунобиологические препаратыА",98,"2.3. Аллергены для диагностики и леченияА, компоне"]
["2.4.  Патогенные биологические агенты (ПБА) - патогенные для человека микроорганизмы - возбудители инфекционных заболеваний (бактерии, вирусы, хламидии, риккетсии, грибы, гельминты, членистоногие), включая генно-инженерно-модифицированные, яды биологического происхождения (токсины), а также любые объекты и материалы (включая полевой, клинический, секционный), подозрительные на содержание перечисленных агентов:","2.4. ","Патогенные биологические агенты (ПБА) - патогенные для человека микроорганизмы - возбудители инфекционных заболеваний (бактерии, вирусы, хламидии, риккетсии, грибы, гельминты, членистоногие), включая генно-инженерно-модифицированные, яды биологического происхождения (токсины), а также любые объекты и материалы (включая полевой, клинический, секционный), подозрительные на содержание перечисленных агентов:",407,"2.4.  Патогенные биологические агенты (ПБА) - пато"]
["2.4.1. Возбудители инфекционных заболеваний патогенные микроорганизмы I группы патогенности и возбудители особо опасных инфекций","2.4.1.","Возбудители инфекционных заболеваний патогенные микроорганизмы I группы патогенности и возбудители особо опасных инфекций",121,"2.4.1. Возбудители инфекционных заболеваний патоге"]
["2.4.2. Возбудители инфекционных заболеваний патогенные микроорганизмы II группы патогенности, в т.ч. вирусы гепатитов BК и CК, вирус иммунодефицита 1-го типа (ВИЧ-1К - СПИД)","2.4.2.","Возбудители инфекционных заболеваний патогенные микроорганизмы II группы патогенности, в т.ч. вирусы гепатитов BК и CК, вирус иммунодефицита 1-го типа (ВИЧ-1К - СПИД)",166,"2.4.2. Возбудители инфекционных заболеваний патоге"]
["2.4.3. Возбудители инфекционных заболеваний патогенные микроорганизмы III и IV групп патогенности и возбудители паразитарных заболеваний (гельминты, членистоногие)","2.4.3.","Возбудители инфекционных заболеваний патогенные микроорганизмы III и IV групп патогенности и возбудители паразитарных заболеваний (гельминты, членистоногие)",156,"2.4.3. Возбудители инфекционных заболеваний патоге"]
["2.4.4. Биологические токсины (микробного, растительного и животного происхождения)","2.4.4.","Биологические токсины (микробного, растительного и животного происхождения)",75,"2.4.4. Биологические токсины (микробного, растител"]
["2.4.5. Условно-патогенные микроорганизмы - возбудители инфекционных заболеваний (в том числе аллергозов)","2.4.5.","Условно-патогенные микроорганизмы - возбудители инфекционных заболеваний (в том числе аллергозов)",97,"2.4.5. Условно-патогенные микроорганизмы - возбуди"]
["Аэрозоли преимущественно фиброгенного действия (АПФД) и пыли",null,null,{"$f":"LEN(C155)","v":0},{"$f":"LEFT(A155,50)","v":"Аэрозоли преимущественно фиброгенного действия (АП"}]
[{"$f":"CONCATENATE(B156,\" \",C156,)","v":"3.1. Аэрозоли преимущественно фиброгенногоФ и смешанного типа действия, включая:"},"3.1.","Аэрозоли преимущественно фиброгенногоФ и смешанного типа действия, включая:",75,"3.1. Аэрозоли преимущественно фиброгенногоФ и смеш"]
[{"$f":"CONCATENATE(B157,\" \",C157,)","v":"3.1.1. Аэрозоли абразивные и абразивсодержащие (электрокорундов, карбида бора, альбора, карбида кремния), в том числе с примесью связующих (фенолформальдегидные смолыАФ, эпоксидные смолыАФ)"},"3.1.1.","Аэрозоли абразивные и абразивсодержащие (электрокорундов, карбида бора, альбора, карбида кремния), в том числе с примесью связующих (фенолформальдегидные смолыАФ, эпоксидные смолыАФ)",{"$f":"LEN(C157)","v":182},{"$f":"LEFT(A157,50)","v":"3.1.1. Аэрозоли абразивные и абразивсодержащие (эл"}]
["3.1.2. Аэрозоли металлов (железо, алюминий, титан, вольфрам) и их сплавов (кремниемедистый, диАлюминий триоксид в смеси со сплавом никеля до 15%, феррохром: сплав хрома 65% с железом, диАлюминий триоксид с примесью кремний диоксида до 15% и диЖелезо триоксида до 10%), в том числе образовавшиеся в процессе сухой шлифовки (чугун в смеси с элктрокорундом до 30%)ФА, получения металлических порошковФА","3.1.2.","Аэрозоли металлов (железо, алюминий, титан, вольфрам) и их сплавов (кремниемедистый, диАлюминий триоксид в смеси со сплавом никеля до 15%, феррохром: сплав хрома 65% с железом, диАлюминий триоксид с примесью кремний диоксида до 15% и диЖелезо триоксида до 10%), в том числе образовавшиеся в процессе сухой шлифовки (чугун в смеси с элктрокорундом до 30%)ФА, получения металлических порошковФА",392,"3.1.2. Аэрозоли металлов (железо, алюминий, титан,"]
["3.1.3. Кремний диоксид кристаллический а-кварцК, а-кристобалитК, а-тридимитФА","3.1.3.","Кремний диоксид кристаллический а-кварцК, а-кристобалитК, а-тридимитФА",70,"3.1.3. Кремний диоксид кристаллический а-кварцК, а"]
["3.1.4. Кремнийсодержащие аэрозоли: - с содержанием кристаллического диоксида кремнияК - с содержанием аморфного диоксида кремния в виде аэрозоля дезинтеграции и конденсации - кремний карбид, кремний нитрид, волокнистый карбид кремнияФА","3.1.4.","Кремнийсодержащие аэрозоли: - с содержанием кристаллического диоксида кремнияК - с содержанием аморфного диоксида кремния в виде аэрозоля дезинтеграции и конденсации - кремний карбид, кремний нитрид, волокнистый карбид кремнияФА",228,"3.1.4. Кремнийсодержащие аэрозоли: - с содержанием"]
["3.1.5. Огнеупорные материалы (шамотнографитовые огнеупоры), муллитовые (неволокнистые) огнеупоры, магнезиально-силикатные (форстеритовые) огнеупоры, муллито-кремнеземистые, не содержащие и содержащие до 5% Cr3+","3.1.5.","Огнеупорные материалы (шамотнографитовые огнеупоры), муллитовые (неволокнистые) огнеупоры, магнезиально-силикатные (форстеритовые) огнеупоры, муллито-кремнеземистые, не содержащие и содержащие до 5% Cr3+",203,"3.1.5. Огнеупорные материалы (шамотнографитовые ог"]
["3.1.6. Огнеупорные материалы (шамотнографитовые огнеупоры), муллитовые (неволокнистые) огнеупоры, магнезиально-силикатные (форстеритовые) огнеупоры, муллито-кремнеземистые, не содержащие и содержащие до 5% Cr3+","3.1.6.","Огнеупорные материалы (шамотнографитовые огнеупоры), муллитовые (неволокнистые) огнеупоры, магнезиально-силикатные (форстеритовые) огнеупоры, муллито-кремнеземистые, не содержащие и содержащие до 5% Cr3+",203,"3.1.6. Огнеупорные материалы (шамотнографитовые ог"]
["3.1.7. Сварочные аэрозоли, представляющие сложную смесь АПФД (кремний диоксид аморфный в смеси с оксидами марганца в виде аэрозоля конденсации, дижелезо триоксид, титан диоксид, вольфрам, алюминий и его соединения) и химических веществ разной природы: аэрозоли металлов (в том числе марганцаР, цинкаА, хрома (VI)К, хрома (Ш)А, бериллияРКА, никеляК, хром трифторидаА), газы, обладающие остронаправленным действием на организмО","3.1.7.","Сварочные аэрозоли, представляющие сложную смесь АПФД (кремний диоксид аморфный в смеси с оксидами марганца в виде аэрозоля конденсации, дижелезо триоксид, титан диоксид, вольфрам, алюминий и его соединения) и химических веществ разной природы: аэрозоли металлов (в том числе марганцаР, цинкаА, хрома (VI)К, хрома (Ш)А, бериллияРКА, никеляК, хром трифторидаА), газы, обладающие остронаправленным действием на организмО",418,"3.1.7. Сварочные аэрозоли, представляющие сложную "]
["3.1.8. Силикатсодержащие пыли, силикаты, алюмосиликаты, в том числе:","3.1.8.","Силикатсодержащие пыли, силикаты, алюмосиликаты, в том числе:",61,"3.1.8. Силикатсодержащие пыли, силикаты, алюмосили"]
["3.1.8.1. Асбесты природные (хризотилК, тремолитК), смешанные асбестопородные пылиК, асбестоцементК, асбестобакелитК, асбесто-резинаФК","3.1.8.1.","Асбесты природные (хризотилК, тремолитК), смешанные асбестопородные пылиК, асбестоцементК, асбестобакелитК, асбесто-резинаФК",124,"3.1.8.1. Асбесты природные (хризотилК, тремолитК),"]
["3.1.8.2. Глина, в т.ч. высокоглинистая огнеупорная, цемент, оливин, апатит, шамот коалиновыйФА","3.1.8.2.","Глина, в т.ч. высокоглинистая огнеупорная, цемент, оливин, апатит, шамот коалиновыйФА",85,"3.1.8.2. Глина, в т.ч. высокоглинистая огнеупорная"]
["3.1.8.3. Тальк, талькопородные пыли, цеолиты, бокситы, нефелиновые сиениты, дистенсиллиманиты, слюды (флагопит, мусковит), дуниты, известняки, бариты, инфузорная земля, туфы, пемзы, перлит, искусственные минеральные волокна (стекловолокноФА, стекловатаФА, вата минеральнаяФА и шлаковаяФА), пыль стеклаФА и стеклянных строительных материаловФА","3.1.8.3.","Тальк, талькопородные пыли, цеолиты, бокситы, нефелиновые сиениты, дистенсиллиманиты, слюды (флагопит, мусковит), дуниты, известняки, бариты, инфузорная земля, туфы, пемзы, перлит, искусственные минеральные волокна (стекловолокноФА, стекловатаФА, вата минеральнаяФА и шлаковаяФА), пыль стеклаФА и стеклянных строительных материаловФА",333,"3.1.8.3. Тальк, талькопородные пыли, цеолиты, бокс"]
["3.1.9. Углерода пыли, в том числе:","3.1.9.","Углерода пыли, в том числе:",27,"3.1.9. Углерода пыли, в том числе:"]
["3.1.9.1. Алмазы природныеФ, искусственныеФ, металлизированныеФ","3.1.9.1.","Алмазы природныеФ, искусственныеФ, металлизированныеФ",53,"3.1.9.1. Алмазы природныеФ, искусственныеФ, металл"]
["3.1.9.2. АнтрацитФ и другие ископаемые углиФ и углеродные пылиФ","3.1.9.2.","АнтрацитФ и другие ископаемые углиФ и углеродные пылиФ",54,"3.1.9.2. АнтрацитФ и другие ископаемые углиФ и угл"]
["3.1.9.3. Коксы - каменноугольныйФК, пековыйФК, нефтянойФК, сланцевыйФК","3.1.9.3.","Коксы - каменноугольныйФК, пековыйФК, нефтянойФК, сланцевыйФК",61,"3.1.9.3. Коксы - каменноугольныйФК, пековыйФК, неф"]
["3.1.9.4. Сажи черные промышленныеФК","3.1.9.4.","Сажи черные промышленныеФК",26,"3.1.9.4. Сажи черные промышленныеФК"]
["3.1.10. Шлаки (шлак угольный молотый, строительные материалы на его основе: шлакоблоки, шлакозит; шлак, образующийся при выплавке низколегированных сталей (неволокнистая пыль)","3.1.10.","Шлаки (шлак угольный молотый, строительные материалы на его основе: шлакоблоки, шлакозит; шлак, образующийся при выплавке низколегированных сталей (неволокнистая пыль)",167,"3.1.10. Шлаки (шлак угольный молотый, строительные"]
["3.2. Пыли железорудныхФК и полиметаллических концентратовФК, металлургических агломератовФА","3.2.","Пыли железорудныхФК и полиметаллических концентратовФК, металлургических агломератовФА",86,"3.2. Пыли железорудныхФК и полиметаллических конце"]
["3.3. СераФ","3.3.","СераФ",5,"3.3. СераФ"]
["3.4. Пыль животного и растительного происхожденияАФ (с примесью диоксида кремнияАФ, зерноваяАФ, лубянаяАФ, хлопчатобумажнаяАФ, хлопковаяАФ, льнянаяАФ, шерстянаяАФ, пуховаяАФ, натурального шелка хлопковая мука (по белку)А, мучнаяАФ, древесная твердых пород деревьевКФА, кожевеннаяК, торфа, хмеля, конопли, кенафа, джута, табакаА)","3.4.","Пыль животного и растительного происхожденияАФ (с примесью диоксида кремнияАФ, зерноваяАФ, лубянаяАФ, хлопчатобумажнаяАФ, хлопковаяАФ, льнянаяАФ, шерстянаяАФ, пуховаяАФ, натурального шелка хлопковая мука (по белку)А, мучнаяАФ, древесная твердых пород деревьевКФА, кожевеннаяК, торфа, хмеля, конопли, кенафа, джута, табакаА)",323,"3.4. Пыль животного и растительного происхожденияА"]
[null,"Физические факторы",null,0,""]
[{"$f":"CONCATENATE(B178,\" \",C178)","v":"4.1. Ионизирующие излученияК, радиоактивные веществаК"},"4.1.","Ионизирующие излученияК, радиоактивные веществаК",48,"4.1. Ионизирующие излученияК, радиоактивные вещест"]
["4.2. Неионизирующие излучения, в том числе:","4.2.","Неионизирующие излучения, в том числе:",38,"4.2. Неионизирующие излучения, в том числе:"]
["4.2.1. Электромагнитное излучение оптического диапазона (ультрафиолетовое излучениеК, лазерное излучение)","4.2.1.","Электромагнитное излучение оптического диапазона (ультрафиолетовое излучениеК, лазерное излучение)",98,"4.2.1. Электромагнитное излучение оптического диап"]
["4.2.2. Электромагнитное поле радиочастотного диапазона (10 кГц - 300 ГГц)","4.2.2.","Электромагнитное поле радиочастотного диапазона (10 кГц - 300 ГГц)",66,"4.2.2. Электромагнитное поле радиочастотного диапа"]
["4.2.3. Электрическое и магнитное поле промышленной частоты (50 Гц)","4.2.3.","Электрическое и магнитное поле промышленной частоты (50 Гц)",59,"4.2.3. Электрическое и магнитное поле промышленной"]
["4.2.4. Постоянное электрическое и магнитное поле","4.2.4.","Постоянное электрическое и магнитное поле",41,"4.2.4. Постоянное электрическое и магнитное поле"]
["4.2.5. Электромагнитное поле широкополосного спектра частот (5 Гц - 2 кГц, 2 кГц - 400 кГц)","4.2.5.","Электромагнитное поле широкополосного спектра частот (5 Гц - 2 кГц, 2 кГц - 400 кГц)",84,"4.2.5. Электромагнитное поле широкополосного спект"]
[{"$f":"CONCATENATE(B185,\" \",C185)","v":"4.3. Вибрация:"},"4.3.","Вибрация:",9,{"$f":"LEFT(A185,50)","v":"4.3. Вибрация:"}]
["4.3.1. Локальная вибрация","4.3.1.","Локальная вибрация",18,"4.3.1. Локальная вибрация"]
["4.3.2. Общая вибрация (транспортная, транспортно-технологическая, технологическая)","4.3.2.","Общая вибрация (транспортная, транспортно-технологическая, технологическая)",75,"4.3.2. Общая вибрация (транспортная, транспортно-т"]
["4.4. Шум","4.4.","Шум",3,"4.4. Шум"]
["4.5. Ультразвук воздушный, ультразвук контактный","4.5.","Ультразвук воздушный, ультразвук контактный",43,"4.5. Ультразвук воздушный, ультразвук контактный"]
["4.6. Инфразвук","4.6.","Инфразвук",9,"4.6. Инфразвук"]
["4.7. Параметры охлаждающего микроклимата (температура, влажность, скорость движения воздуха)","4.7.","Параметры охлаждающего микроклимата (температура, влажность, скорость движения воздуха)",87,"4.7. Параметры охлаждающего микроклимата (температ"]
["4.8. Параметры нагревающего микроклимата (температура, индекс тепловой нагрузки среды, влажность, тепловое излучение)","4.8.","Параметры нагревающего микроклимата (температура, индекс тепловой нагрузки среды, влажность, тепловое излучение)",112,"4.8. Параметры нагревающего микроклимата (температ"]
["4.9. Освещенность рабочей поверхности","4.9.","Освещенность рабочей поверхности",32,"4.9. Освещенность рабочей поверхности"]
["4.10. Пониженное давление воздушной и (или) газовой сред и пониженное парциальное давление кислорода во вдыхаемом воздухе или искусственной дыхательной газовой смеси в случае, если указанное давление необходимо поддерживать в производственных зданиях, помещениях и (или) сооружениях в соответствии с применяемой технологией работ (за исключением работ, указанных в пунктах 19 - 21 раздела VI)","4.10.","Пониженное давление воздушной и (или) газовой сред и пониженное парциальное давление кислорода во вдыхаемом воздухе или искусственной дыхательной газовой смеси в случае, если указанное давление необходимо поддерживать в производственных зданиях, помещениях и (или) сооружениях в соответствии с применяемой технологией работ (за исключением работ, указанных в пунктах 19 - 21 раздела VI)",386,"4.10. Пониженное давление воздушной и (или) газово"]
["Факторы трудового процесса",null,null,0,"Факторы трудового процесса"]
[{"$f":"CONCATENATE(B196,\" \",C196)","v":"5.1. Тяжесть трудового процесса Подъем, перемещение, удержание груза вручную Стереотипные рабочие движения\nРабочее положение тела работника (длительное нахождение работника в положении \"стоя\", \"сидя\" без перерывов, \"лежа\", \"на коленях\", \"на корточках\", с наклоном или поворотом туловища, с поднятыми выше уровня плеч руками, с неудобным размещением ног, с невозможностью изменения взаимного положения различных частей тела относительно друг друга, длительное перемещение работника в пространстве) Работы, связанные с постоянной ходьбой и работой стоя в течение всего рабочего дня"},"5.1.","Тяжесть трудового процесса Подъем, перемещение, удержание груза вручную Стереотипные рабочие движения\nРабочее положение тела работника (длительное нахождение работника в положении \"стоя\", \"сидя\" без перерывов, \"лежа\", \"на коленях\", \"на корточках\", с наклоном или поворотом туловища, с поднятыми выше уровня плеч руками, с неудобным размещением ног, с невозможностью изменения взаимного положения различных частей тела относительно друг друга, длительное перемещение работника в пространстве) Работы, связанные с постоянной ходьбой и работой стоя в течение всего рабочего дня",574,"5.1. Тяжесть трудового процесса Подъем, перемещени"]
[{"$f":"CONCATENATE(B197,\" \",C197)","v":"5.2. Напряженность трудового процесса (сенсорные нагрузки), в том числе:"},"5.2.","Напряженность трудового процесса (сенсорные нагрузки), в том числе:",67,"5.2. Напряженность трудового процесса (сенсорные н"]
[{"$f":"CONCATENATE(B198,\" \",C198)","v":"5.2.1. Работы с оптическими приборами (более 50% времени смены)"},"5.2.1.","Работы с оптическими приборами (более 50% времени смены)",{"$f":"LEN(C198)","v":56},"5.2.1. Работы с оптическими приборами (более 50% в"]
[{"$f":"CONCATENATE(B199,\" \",C199)","v":"5.2.2. Нагрузка на голосовой аппарат (суммарное количество часов, наговариваемое в неделю, более 20)"},"5.2.2.","Нагрузка на голосовой аппарат (суммарное количество часов, наговариваемое в неделю, более 20)",93,"5.2.2. Нагрузка на голосовой аппарат (суммарное ко"]
["Перечень работ для медосмотров",null,null,0,{"$f":"LEFT(A200,50)","v":"Перечень работ для медосмотров"}]
[{"$f":"CONCATENATE(B201,\" \",C201,)","v":"6. Работы на высоте:"},"6.","Работы на высоте:",17,"6. Работы на высоте:"]
[{"$f":"CONCATENATE(B202,\" \",C202,)","v":"6.1. Работы с высоким риском падения работника с высоты, а также работы на высоте без применения средств подмащивания, выполняемые на высоте 5 м и более; работы, выполняемые на площадках на расстоянии менее 2 м от неогражденных (при отсутствии защитных ограждений) перепадов по высоте более 5 м либо при высоте ограждений, составляющей менее 1,1 м"},"6.1.","Работы с высоким риском падения работника с высоты, а также работы на высоте без применения средств подмащивания, выполняемые на высоте 5 м и более; работы, выполняемые на площадках на расстоянии менее 2 м от неогражденных (при отсутствии защитных ограждений) перепадов по высоте более 5 м либо при высоте ограждений, составляющей менее 1,1 м",342,"6.1. Работы с высоким риском падения работника с в"]
[{"$f":"CONCATENATE(B203,\" \",C203,)","v":"6.2. Прочие работы, относящиеся в соответствии с законодательством по охране труда к работам на высоте"},"6.2.","Прочие работы, относящиеся в соответствии с законодательством по охране труда к работам на высоте",97,"6.2. Прочие работы, относящиеся в соответствии с з"]
["7. Работа лифтера на лифтах скоростных (от 2,0 до 4,0 м/с) и высокоскоростных (свыше 4,0 м/с) при внутреннем сопровождении лифта","7.","Работа лифтера на лифтах скоростных (от 2,0 до 4,0 м/с) и высокоскоростных (свыше 4,0 м/с) при внутреннем сопровождении лифта",125,"7. Работа лифтера на лифтах скоростных (от 2,0 до "]
["8. Работы в качестве крановщика (машиниста крана, машинист крана автомобильного)","8.","Работы в качестве крановщика (машиниста крана, машинист крана автомобильного)",77,"8. Работы в качестве крановщика (машиниста крана, "]
["9. Работы, связанные с техническим обслуживанием электроустановок напряжением 50 В и выше переменного тока и 75 В и выше постоянного тока, проведением в них оперативных переключений, выполнением строительных, монтажных, наладочных, ремонтных работ, испытанием и измерением","9.","Работы, связанные с техническим обслуживанием электроустановок напряжением 50 В и выше переменного тока и 75 В и выше постоянного тока, проведением в них оперативных переключений, выполнением строительных, монтажных, наладочных, ремонтных работ, испытанием и измерением",269,"9. Работы, связанные с техническим обслуживанием э"]
["10. Работы по валке, сплаву, транспортировке, первичной обработке, охране и восстановлению лесов","10.","Работы по валке, сплаву, транспортировке, первичной обработке, охране и восстановлению лесов",92,"10. Работы по валке, сплаву, транспортировке, перв"]
["11. Работы в особых географических регионах с местами проведения работ, транспортная доступность которых от медицинских учреждений, оказывающих специализированную медицинскую помощь в экстренной форме, превышает 60 минут, а именно:","11.","Работы в особых географических регионах с местами проведения работ, транспортная доступность которых от медицинских учреждений, оказывающих специализированную медицинскую помощь в экстренной форме, превышает 60 минут, а именно:",227,"11. Работы в особых географических регионах с мест"]
["11.1. Работы в нефтяной и газовой промышленности, выполняемые в районах Крайнего Севера и приравненных к ним местностях, а также при морском бурении","11.1.","Работы в нефтяной и газовой промышленности, выполняемые в районах Крайнего Севера и приравненных к ним местностях, а также при морском бурении",142,"11.1. Работы в нефтяной и газовой промышленности, "]
["11.2. Работы на гидрометеорологических станциях, сооружениях связи","11.2.","Работы на гидрометеорологических станциях, сооружениях связи",60,"11.2. Работы на гидрометеорологических станциях, с"]
[{"$f":"CONCATENATE(B211,\" \",C211,)","v":"11.3. Работы, не указанные в подпунктах 11.1, 11.2, выполняемые по срочным трудовым договорам в районах Крайнего Севера и приравненных к ним местностях (в отношении проведения предварительных медицинских осмотров для работников, приезжающих на работу в районы Крайнего Севера и приравненные к ним местности из других местностей)"},"11.3.","Работы, не указанные в подпунктах 11.1, 11.2, выполняемые по срочным трудовым договорам в районах Крайнего Севера и приравненных к ним местностях (в отношении проведения предварительных медицинских осмотров для работников, приезжающих на работу в районы Крайнего Севера и приравненные к ним местности из других местностей)",322,"11.3. Работы, не указанные в подпунктах 11.1, 11.2"]
["11.4. Работы, выполняемые вахтовым методом в необжитых, отдаленных районах и районах с особыми природными условиями (в отношении проведения предварительных медицинских осмотров для работников, выполняющих работу вахтовым методом в указанных районах)","11.4.","Работы, выполняемые вахтовым методом в необжитых, отдаленных районах и районах с особыми природными условиями (в отношении проведения предварительных медицинских осмотров для работников, выполняющих работу вахтовым методом в указанных районах)",243,"11.4. Работы, выполняемые вахтовым методом в необж"]
["12. Работы, непосредственно связанные с обслуживанием оборудования, работающего под избыточным давлением более 0,07 мегапаскаля (МПа) и подлежащего учету в органах Ростехнадзора:                                                                                                                                                                                 а) пара, газа (в газообразном, сжиженном состоянии);                                                                                              б) воды при температуре более 115 °C;                                                                                                                                в) иных жидкостей при температуре, превышающей температуру их кипения при избыточном давлении 0,07 МПа","12.","Работы, непосредственно связанные с обслуживанием оборудования, работающего под избыточным давлением более 0,07 мегапаскаля (МПа) и подлежащего учету в органах Ростехнадзора:                                                                                                                                                                                 а) пара, газа (в газообразном, сжиженном состоянии);                                                                                              б) воды при температуре более 115 °C;                                                                                                                                в) иных жидкостей при температуре, превышающей температуру их кипения при избыточном давлении 0,07 МПа",764,"12. Работы, непосредственно связанные с обслуживан"]
["13. Работы, непосредственно связанные с применением легковоспламеняющихся и взрывчатых материалов, работы во взрыво- и пожароопасных производствах, работы на коксовой батарее на открытых производственных зонах","13.","Работы, непосредственно связанные с применением легковоспламеняющихся и взрывчатых материалов, работы во взрыво- и пожароопасных производствах, работы на коксовой батарее на открытых производственных зонах",205,"13. Работы, непосредственно связанные с применение"]
["14. Работы, выполняемые аварийно-спасательной службой, аварийно-спасательными формированиями, спасателями, а также работы, выполняемые пожарной охраной при тушении пожаров","14.","Работы, выполняемые аварийно-спасательной службой, аварийно-спасательными формированиями, спасателями, а также работы, выполняемые пожарной охраной при тушении пожаров",167,"14. Работы, выполняемые аварийно-спасательной служ"]
["15. Работы, выполняемые непосредственно на механическом оборудовании, имеющем открытые движущиеся (вращающиеся) элементы конструкции, в случае если конструкцией оборудования не предусмотрена защита (ограждение) этих элементов (в том числе токарные, фрезерные и другие станки, штамповочные прессы)","15.","Работы, выполняемые непосредственно на механическом оборудовании, имеющем открытые движущиеся (вращающиеся) элементы конструкции, в случае если конструкцией оборудования не предусмотрена защита (ограждение) этих элементов (в том числе токарные, фрезерные и другие станки, штамповочные прессы)",292,"15. Работы, выполняемые непосредственно на механич"]
["16. Подземные работы, включая работы на рудниках","16.","Подземные работы, включая работы на рудниках",44,"16. Подземные работы, включая работы на рудниках"]
["17. Работы, выполняемые непосредственно с применением средств индивидуальной защиты органов дыхания изолирующих и средств индивидуальной защиты органов дыхания фильтрующих с полной лицевой частью","17.","Работы, выполняемые непосредственно с применением средств индивидуальной защиты органов дыхания изолирующих и средств индивидуальной защиты органов дыхания фильтрующих с полной лицевой частью",191,"17. Работы, выполняемые непосредственно с применен"]
["18. Управление наземными транспортными средствами <2>:","18.","Управление наземными транспортными средствами <2>:",50,"18. Управление наземными транспортными средствами "]
["18.1. Категории \"A\", \"B\", \"BE\", трактора и другие самоходные машины, мини-трактора, мотоблоки, автопогрузчики, электрокары, регулировщики и т.п., автомобили всех категорий с ручным управлением для инвалидов, мотоколяски для инвалидов","18.1.","Категории \"A\", \"B\", \"BE\", трактора и другие самоходные машины, мини-трактора, мотоблоки, автопогрузчики, электрокары, регулировщики и т.п., автомобили всех категорий с ручным управлением для инвалидов, мотоколяски для инвалидов",227,"18.1. Категории \"A\", \"B\", \"BE\", трактора и другие "]
["18.2. Категории \"C\", \"C1\", \"CE\", \"D1\", \"D1E\", трамвай, троллейбус","18.2.","Категории \"C\", \"C1\", \"CE\", \"D1\", \"D1E\", трамвай, троллейбус",59,"18.2. Категории \"C\", \"C1\", \"CE\", \"D1\", \"D1E\", трам"]
["19. Водолазные работы:","19.","Водолазные работы:",18,"19. Водолазные работы:"]
["19.1. Водолазные работы на глубинах до 60 м (в аварийных случаях до 80 м с применением воздуха для дыхания), за исключением водолазных работ, указанных в пункте 19,3","19.1.","Водолазные работы на глубинах до 60 м (в аварийных случаях до 80 м с применением воздуха для дыхания), за исключением водолазных работ, указанных в пункте 19,3",159,"19.1. Водолазные работы на глубинах до 60 м (в ава"]
["19.2. Водолазные работы на глубинах более 60 метров, выполняемые методом кратковременных погружений","19.2.","Водолазные работы на глубинах более 60 метров, выполняемые методом кратковременных погружений",93,"19.2. Водолазные работы на глубинах более 60 метро"]
["19.3. Водолазные работы, выполняемые методом длительного пребывания в условиях повышенного давления водной и газовой сред","19.3.","Водолазные работы, выполняемые методом длительного пребывания в условиях повышенного давления водной и газовой сред",115,"19.3. Водолазные работы, выполняемые методом длите"]
["20. Работы по оказанию медицинской помощи внутри барокамеры при проведении лечебной рекомпресии или гипербарической оксигенации","20.","Работы по оказанию медицинской помощи внутри барокамеры при проведении лечебной рекомпресии или гипербарической оксигенации",123,"20. Работы по оказанию медицинской помощи внутри б"]
["21. Кессонные работы, работы в барокамерах и других устройствах в условиях повышенного давления воздушной и газовой среды (за исключением работ, указанных в пунктах 19 и 20)","21.","Кессонные работы, работы в барокамерах и других устройствах в условиях повышенного давления воздушной и газовой среды (за исключением работ, указанных в пунктах 19 и 20)",169,"21. Кессонные работы, работы в барокамерах и други"]
["22. Работы, при выполнении которых разрешено ношение оружия и его применение (в случаях, когда требования о прохождении медицинских осмотров (освидетельствований) не установлены статьями 12 и 13 Федерального закона от 13 декабря 1996 г. N 150-ФЗ \"Об оружии\" и (или) профильным (специальным) законом)","22.","Работы, при выполнении которых разрешено ношение оружия и его применение (в случаях, когда требования о прохождении медицинских осмотров (освидетельствований) не установлены статьями 12 и 13 Федерального закона от 13 декабря 1996 г. N 150-ФЗ \"Об оружии\" и (или) профильным (специальным) законом)",295,"22. Работы, при выполнении которых разрешено ношен"]
["23. Работы, где имеется контакт с пищевыми продуктами в процессе их производства, хранения, транспортировки и реализации (в организациях пищевых и перерабатывающих отраслей промышленности, сельского хозяйства, пунктах, базах, складах хранения и реализации, в транспортных организациях, организациях торговли, общественного питания, на пищеблоках всех учреждений и организаций)","23.","Работы, где имеется контакт с пищевыми продуктами в процессе их производства, хранения, транспортировки и реализации (в организациях пищевых и перерабатывающих отраслей промышленности, сельского хозяйства, пунктах, базах, складах хранения и реализации, в транспортных организациях, организациях торговли, общественного питания, на пищеблоках всех учреждений и организаций)",372,"23. Работы, где имеется контакт с пищевыми продукт"]
["24. Работы на водопроводных сооружениях, имеющие непосредственное отношение к подготовке воды, а также обслуживанию водопроводных сетей","24.","Работы на водопроводных сооружениях, имеющие непосредственное отношение к подготовке воды, а также обслуживанию водопроводных сетей",131,"24. Работы на водопроводных сооружениях, имеющие н"]
["25. Работы в организациях, деятельность которых связана с воспитанием и обучением детей","25.","Работы в организациях, деятельность которых связана с воспитанием и обучением детей",83,"25. Работы в организациях, деятельность которых св"]
["26. Работы в организациях, деятельность которых связана с коммунальным и бытовым обслуживанием населения","26.","Работы в организациях, деятельность которых связана с коммунальным и бытовым обслуживанием населения",100,"26. Работы в организациях, деятельность которых св"]
["27. Работы в медицинских организациях","27.","Работы в медицинских организациях",33,"27. Работы в медицинских организациях"]

{"sheet":"Прихиатрич перечень","index":6,"n_rows":110,"n_cols":7,"rows_kept":110,"cut":false,"hidden":true,"merged":[]}
["Номер пункта","Раздел","Опасные и вредные вещества и производственные факторы (знаком А отмечены аллергены)","Проводимые работы. \nДОПОЛНИТЕЛЬНЫЕ МЕДИЦИНСКИЕ ПСИХИАТРИЧЕСКИЕ ПРОТИВОПОКАЗАНИЯ ","Полное наименование фактора"]
[]
[1,"Химические","Азотная кислота, Аммиак, Окислы азота","Производство и применение, процессы, связанные с их выделением ",{"$f":"CONCATENATE(A3,\". \",B3,\". \",C3,\". \",D3)","v":"1. Химические. Азотная кислота, Аммиак, Окислы азота. Производство и применение, процессы, связанные с их выделением "}]
[2,"Химические","Акриловая и метакриловая кислоты, их сложные эфиры, нитрилы А","Производство и применение акрилонитрила, метилметакрилата, этилакрилата и других ","2. Химические. Акриловая и метакриловая кислоты, их сложные эфиры, нитрилы А. Производство и применение акрилонитрила, метилметакрилата, этилакрилата и других "]
[3,"Химические","Амино-, нитро-, нитрозо-нитрохлорсоединения ароматического ряда ","Производство и применение тринитротолуола динитрофенола, динитробензола, анилина гексогена, динитрохлорбензола и других, уротропина\nПроизводство и применение ксилидина, крезолов, пикриновой кислоты и других","3. Химические. Амино-, нитро-, нитрозо-нитрохлорсоединения ароматического ряда . Производство и применение тринитротолуола динитрофенола, динитробензола, анилина гексогена, динитрохлорбензола и других, уротропина\nПроизводство и применение ксилидина, крезолов, пикриновой кислоты и других"]
[4,"Химические","Аминосоединения жирного ряда и их производные","Производство и применение","4. Химические. Аминосоединения жирного ряда и их производные. Производство и применение"]
[5,"Химические","Этиленимин и другие иминосоединения А ",null,"5. Химические. Этиленимин и другие иминосоединения А . "]
[6,"Химические","Амины ароматического ряда: бензидин и его соединения, дианизидин, толуидин и его соединения, нафтиламины","Производство и применение (включая лабораторные работы).\nПрименение красителей на их основе.","6. Химические. Амины ароматического ряда: бензидин и его соединения, дианизидин, толуидин и его соединения, нафтиламины. Производство и применение (включая лабораторные работы).\nПрименение красителей на их основе."]
[7,"Химические","Барий и его соединения ","Производство растворимых соединений бария и их применениеПроизводство нерастворимых соединений бария и их применение","7. Химические. Барий и его соединения . Производство растворимых соединений бария и их применениеПроизводство нерастворимых соединений бария и их применение"]
[8,"Химические","Бензол и его производные (толуол, ксилол, стирол и другие) Галоидопроизводные ароматического ряда Галоидные бензилы, хлористый бензилиден","Производство и применение (включая лабораторные работы) бензола Производство и применение гомологов и производных бензола (изопропилбензола, стирола, толуола и других) ДОПОЛНИТЕЛЬНЫЕ ПРОТИВОПОКАЗАНИЯ: ТОКСИКОМАНИЯ НАРКОМАНИЯ","8. Химические. Бензол и его производные (толуол, ксилол, стирол и другие) Галоидопроизводные ароматического ряда Галоидные бензилы, хлористый бензилиден. Производство и применение (включая лабораторные работы) бензола Производство и применение гомологов и производных бензола (изопропилбензола, стирола, толуола и других) ДОПОЛНИТЕЛЬНЫЕ ПРОТИВОПОКАЗАНИЯ: ТОКСИКОМАНИЯ НАРКОМАНИЯ"]
[9,"Химические","Азокрасители Антрахиноновые, фталоцианиловые красители","Производство и применение ","9. Химические. Азокрасители Антрахиноновые, фталоцианиловые красители. Производство и применение "]
[10,"Химические","Бериллий и его соединения А ","Производство и применение металлического бериллия и его соединений, приготовление шихты, механическая обработка керамических изделий из окиси бериллия, производство сплавов, содержащих бериллий","10. Химические. Бериллий и его соединения А . Производство и применение металлического бериллия и его соединений, приготовление шихты, механическая обработка керамических изделий из окиси бериллия, производство сплавов, содержащих бериллий"]
[11,"Химические","Бета-нафтол ","Производство и применение","11. Химические. Бета-нафтол . Производство и применение"]
[12,"Химические","Бром и его соединения","Производство и применение ","12. Химические. Бром и его соединения. Производство и применение "]
[13,"Химические","Галоидопроизводные углеводородов жирного ряда ","Производство и применение (включая лабораторные работы) дихлорэтана, четыреххлористого углерода, винилхлорида, хлористого метилена, хлористого метила, хлороформа, бромэтила, трихлорэтилена, хлоропрена и других ДОПОЛНИТЕЛЬНОЕ ПРОТИВОПОКАЗАНИЕ: ТОКСИКОМАНИЯ","13. Химические. Галоидопроизводные углеводородов жирного ряда . Производство и применение (включая лабораторные работы) дихлорэтана, четыреххлористого углерода, винилхлорида, хлористого метилена, хлористого метила, хлороформа, бромэтила, трихлорэтилена, хлоропрена и других ДОПОЛНИТЕЛЬНОЕ ПРОТИВОПОКАЗАНИЕ: ТОКСИКОМАНИЯ"]
[14,"Химические","Гидразин и его соединения ","Производство и применение","14. Химические. Гидразин и его соединения . Производство и применение"]
[15,"Химические","Диметилформамид, диметилацетамид и другие амиды жирных кислот","Производство и применение ","15. Химические. Диметилформамид, диметилацетамид и другие амиды жирных кислот. Производство и применение "]
[16,"Химические","Изоцианаты А","Производство и применение ","16. Химические. Изоцианаты А. Производство и применение "]
[17,"Химические","Искусственные и синтетические волокна А ","ПроизводствоПереработка механическая, крашение:а) переработка волокон (оксалона, СВМ, арамида, углеродных);б) термообработка","17. Химические. Искусственные и синтетические волокна А . ПроизводствоПереработка механическая, крашение:а) переработка волокон (оксалона, СВМ, арамида, углеродных);б) термообработка"]
[18,"Химические",null,"Приготовление замасливателей и применение их","18. Химические. . Приготовление замасливателей и применение их"]
[19,"Химические","Кадмий и его соединения","Производство и применение ","19. Химические. Кадмий и его соединения. Производство и применение "]
[20,"Химические","Коксовый газ и другие продукты коксования ","Производство кокса и коксового газа, улавливание продуктов коксования, ректификация уловленных углеводородов, дистилляция и переработка каменноугольных смол на коксохимических заводах","20. Химические. Коксовый газ и другие продукты коксования . Производство кокса и коксового газа, улавливание продуктов коксования, ректификация уловленных углеводородов, дистилляция и переработка каменноугольных смол на коксохимических заводах"]
[21,"Химические","Коксовый газ и другие продукты коксования ","Работы, связанные с приготовлением и укладкой асфальтобетонных покрытий с применением продуктов коксохимической промышленности (каменноугольных дегтей, смол, песков и других)","21. Химические. Коксовый газ и другие продукты коксования . Работы, связанные с приготовлением и укладкой асфальтобетонных покрытий с применением продуктов коксохимической промышленности (каменноугольных дегтей, смол, песков и других)"]
[22,"Химические","Кремнийорганические соединения и замасливатели на их основе А","Производство и применение ","22. Химические. Кремнийорганические соединения и замасливатели на их основе А. Производство и применение "]
[23,"Химические","Литий и его соединения","Производство и применение ","23. Химические. Литий и его соединения. Производство и применение "]
[24,"Химические","Марганец и его соединения А ","Производство и применение окислов марганца, сварочных материалов (электродов, порошковой проволоки и флюсов)","24. Химические. Марганец и его соединения А . Производство и применение окислов марганца, сварочных материалов (электродов, порошковой проволоки и флюсов)"]
[25,"Химические","Марганец и его соединения А ","Плавка марганцевых сталей и других металлов с содержанием марганца свыше 10%, производство органических соединений марганца","25. Химические. Марганец и его соединения А . Плавка марганцевых сталей и других металлов с содержанием марганца свыше 10%, производство органических соединений марганца"]
[26,"Химические","Марганец и его соединения А ","Добыча руд, их переработка, применение в измельченном виде неорганических соединений марганца","26. Химические. Марганец и его соединения А . Добыча руд, их переработка, применение в измельченном виде неорганических соединений марганца"]
[27,"Химические","Метанол","Производство и применение, процессы, связанные с его выделением ","27. Химические. Метанол. Производство и применение, процессы, связанные с его выделением "]
[28,"Химические","Мышьяк и его соединения ","Добыча, производство и применение органических и неорганических соединений мышьяка; процессы, связанные с его выделением","28. Химические. Мышьяк и его соединения . Добыча, производство и применение органических и неорганических соединений мышьяка; процессы, связанные с его выделением"]
[29,"Химические","Наркотические средства и психотропные вещества ","Культивирование наркотико-содержащих растений;разработка, производство, изготовление, переработка,хранение, перевозка, отпуск, реализация, распределение, приобретение, использование, ввоз на таможенную территориюРоссийской Федерации,вывоз с таможенной территории Российской Федерации,уничтожение наркотических средств и психотропных веществДОПОЛНИТЕЛЬНЫЕ ПРОТИВОПОКАЗАНИЯ:АЛКОГОЛИЗМНАРКОМАНИЯТОКСИКОМАНИЯ ","29. Химические. Наркотические средства и психотропные вещества . Культивирование наркотико-содержащих растений;разработка, производство, изготовление, переработка,хранение, перевозка, отпуск, реализация, распределение, приобретение, использование, ввоз на таможенную территориюРоссийской Федерации,вывоз с таможенной территории Российской Федерации,уничтожение наркотических средств и психотропных веществДОПОЛНИТЕЛЬНЫЕ ПРОТИВОПОКАЗАНИЯ:АЛКОГОЛИЗМНАРКОМАНИЯТОКСИКОМАНИЯ "]
[30,"Химические","Никель А и его соединения","Производство и применение ","30. Химические. Никель А и его соединения. Производство и применение "]
[31,"Химические","Органические ускорители вулканизации, противостарители, ингибиторы вулканизации и другие А","Производство и применение каптакса, альтакса, тиурама, неозона Д и других ","31. Химические. Органические ускорители вулканизации, противостарители, ингибиторы вулканизации и другие А. Производство и применение каптакса, альтакса, тиурама, неозона Д и других "]
[32,"Химические","Пергидроль","Производство и применение ","32. Химические. Пергидроль. Производство и применение "]
[33,"Химические","Пестициды ","Производство и применение в условиях народного хозяйства хлорорганических, фосфорорганических, производных карбаминовых кислот, металлоорганических и других пестицидов, а также хранение на складах и первичная переработка хлопка","33. Химические. Пестициды . Производство и применение в условиях народного хозяйства хлорорганических, фосфорорганических, производных карбаминовых кислот, металлоорганических и других пестицидов, а также хранение на складах и первичная переработка хлопка"]
[34,"Химические","Предельные и непредельные углеводороды ","Эксплуатация, ремонт скважин и установок при добыче нефти, переработка высокосернистой и сернистой нефти, природного газа, пиробензола; селективная очистка масел, пиролиз; очистка нефти и газа от сероводорода; очистка нефтеналивных судов, цистерн, резервуаров; экстракционноозокеритовое производство; производство различных синтетических продуктов (фенола, ацетона, синтетических жирных кислот и спиртов и других). Вспомогательные процессы, связанные с обслуживанием товарных парков, отбором проб, лабораторным контролем сырья промежуточных и конечных продуктов (высокосернистая и сернистая нефть и природный газ). Эксплуатация, ремонт скважин при добыче нефти; переработка малосернистой нефти и природного газа; добыча и обработка озокерита, регенерация авто- и авиамасел; процессы, связанные с выделением и применением предельных, непредельных углеводородов (производство полиэтилена, дивинила, изопрена и других); применение бензина-растворителя ДОПОЛНИТЕЛЬНЫЕ ПРОТИВОПОКАЗАНИЯ: НАРКОМАНИЯ ТОКСИКОМАНИЯ","34. Химические. Предельные и непредельные углеводороды . Эксплуатация, ремонт скважин и установок при добыче нефти, переработка высокосернистой и сернистой нефти, природного газа, пиробензола; селективная очистка масел, пиролиз; очистка нефти и газа от сероводорода; очистка нефтеналивных судов, цистерн, резервуаров; экстракционноозокеритовое производство; производство различных синтетических продуктов (фенола, ацетона, синтетических жирных кислот и спиртов и других). Вспомогательные процессы, связанные с обслуживанием товарных парков, отбором проб, лабораторным контролем сырья промежуточных и конечных продуктов (высокосернистая и сернистая нефть и природный газ). Эксплуатация, ремонт скважин при добыче нефти; переработка малосернистой нефти и природного газа; добыча и обработка озокерита, регенерация авто- и авиамасел; процессы, связанные с выделением и применением предельных, непредельных углеводородов (производство полиэтилена, дивинила, изопрена и других); применение бензина-растворителя ДОПОЛНИТЕЛЬНЫЕ ПРОТИВОПОКАЗАНИЯ: НАРКОМАНИЯ ТОКСИКОМАНИЯ"]
[35,"Химические","Редкоземельные элементы ","Производства, связанные с выделением аэрозолей редкоземельных элементов и их соединений","35. Химические. Редкоземельные элементы . Производства, связанные с выделением аэрозолей редкоземельных элементов и их соединений"]
[36,"Химические","Ртуть и ее соединения ","Добыча и выплавка ртути и другие процессы, связанные с ее получением и очисткой от примесей; применение для извлечения газоразрядных золота и других металлов; производство ртутных термометров и люминесцентных ламп и других физических и светотехнических приборов, красок, ртутно-органических соединений; производство веществ ртутным электролизом. Работа с приборами при контакте с открытой ртутью; производство гремучей ртути; работа с ртутными выпрямителями, преобразователями электротока, насосами; применение в качестве катализаторов при химических процессах; применение ртутно-органических соединений. Производство и работа с приборами с закрытой ртутью, применение гремучей ртути в подземных выработках; работы в стоматологических кабинетах с ртутной амальгамой; производство фармацевтических и косметических препаратов, содержащих ртуть","36. Химические. Ртуть и ее соединения . Добыча и выплавка ртути и другие процессы, связанные с ее получением и очисткой от примесей; применение для извлечения газоразрядных золота и других металлов; производство ртутных термометров и люминесцентных ламп и других физических и светотехнических приборов, красок, ртутно-органических соединений; производство веществ ртутным электролизом. Работа с приборами при контакте с открытой ртутью; производство гремучей ртути; работа с ртутными выпрямителями, преобразователями электротока, насосами; применение в качестве катализаторов при химических процессах; применение ртутно-органических соединений. Производство и работа с приборами с закрытой ртутью, применение гремучей ртути в подземных выработках; работы в стоматологических кабинетах с ртутной амальгамой; производство фармацевтических и косметических препаратов, содержащих ртуть"]
[37,"Химические","Свинец и его неорганические соединения ","Выплавка свинца из руд и концентратов; получение свинецсодержащих сплавов; рафинирование; получение сухих свинецсодержащих пигментов, белил, кронов; шоопирование свинцом в закрытых пространствах, прокатка, прессовка, освинцевание изделий; механическая и ручная обработка свинца; агломерация; заливка подшипников; производство свинцовых аккумуляторов; закалка в свинцовых ваннах; производство тертых свинецсодержащих красок, глазури и поливы, рихтовка свинецсодержащими составами; производство и обработка свинецсодержащего стекла и стекловолокна, сварка и резка поверхностей, покрытых свинецсодержащими грунтами; малярные работы при постоянном применении свинцовых красок; изготовление изделий из свинца. Производство и применение пьезокерамики и стеклокристаллического цемента. Обогащение свинцовых руд: дробление, смешение и другие процессы, связанные с образованием пыли, содержащей сульфид свинца; работы, связанные с децентрализованной плавкой небольших количеств свинца, пайка, полиграфическое производство (линотипные работы, ручной набор и другие)","37. Химические. Свинец и его неорганические соединения . Выплавка свинца из руд и концентратов; получение свинецсодержащих сплавов; рафинирование; получение сухих свинецсодержащих пигментов, белил, кронов; шоопирование свинцом в закрытых пространствах, прокатка, прессовка, освинцевание изделий; механическая и ручная обработка свинца; агломерация; заливка подшипников; производство свинцовых аккумуляторов; закалка в свинцовых ваннах; производство тертых свинецсодержащих красок, глазури и поливы, рихтовка свинецсодержащими составами; производство и обработка свинецсодержащего стекла и стекловолокна, сварка и резка поверхностей, покрытых свинецсодержащими грунтами; малярные работы при постоянном применении свинцовых красок; изготовление изделий из свинца. Производство и применение пьезокерамики и стеклокристаллического цемента. Обогащение свинцовых руд: дробление, смешение и другие процессы, связанные с образованием пыли, содержащей сульфид свинца; работы, связанные с децентрализованной плавкой небольших количеств свинца, пайка, полиграфическое производство (линотипные работы, ручной набор и другие)"]
[38,"Химические","Селен, теллур и их соединения ","Производство и применение","38. Химические. Селен, теллур и их соединения . Производство и применение"]
[39,"Химические","Сера и ее соединения ","Производство и применение сероорганических соединений, сульфанатных присадок, метилсернистых соединений, сернистой и серной кислот, процессы, связанные с выделением сернистого и серного ангидрида, сероводорода ","39. Химические. Сера и ее соединения . Производство и применение сероорганических соединений, сульфанатных присадок, метилсернистых соединений, сернистой и серной кислот, процессы, связанные с выделением сернистого и серного ангидрида, сероводорода "]
[40,"Химические","Сероуглерод ","Производство и применение; процессы, связанные с его выделением","40. Химические. Сероуглерод . Производство и применение; процессы, связанные с его выделением"]
[41,"Химические","Цианистые соединения Циановодородная кислота, ее соединения, цианамиды и другие","Производство и применение","41. Химические. Цианистые соединения Циановодородная кислота, ее соединения, цианамиды и другие. Производство и применение"]
[42,"Химические","Синтетический каучук ","Производство синтетического каучука и его переработка (изготовление резиновых смесей, вулканизация резины)","42. Химические. Синтетический каучук . Производство синтетического каучука и его переработка (изготовление резиновых смесей, вулканизация резины)"]
[43,"Химические","Синтетические моющие средства А ","Производство сульфанола, алкиламидов, сульфата натрия; хлорирование фракции парафиновых углеводородов и других","43. Химические. Синтетические моющие средства А . Производство сульфанола, алкиламидов, сульфата натрия; хлорирование фракции парафиновых углеводородов и других"]
[44,"Химические","Синтетические смолы и пластические массы на основе: стирола ","Производство полимеров и сополимеров стирола, полиэфирных смол, лаков и клеев на их основе, стеклопластиков и других.","44. Химические. Синтетические смолы и пластические массы на основе: стирола . Производство полимеров и сополимеров стирола, полиэфирных смол, лаков и клеев на их основе, стеклопластиков и других."]
[45,"Химические","Синтетические смолы и пластические массы.","Переработка смол и пластмасс. Применение смол, лаков, клеев","45. Химические. Синтетические смолы и пластические массы.. Переработка смол и пластмасс. Применение смол, лаков, клеев"]
[46,"Химические","Синтетические смолы и пластические массы на основе: фенола и формальдегида А ","Производство смол, лаков, клеев и других, переработка пресс-порошков, пресс-материалов.Применение клеев, лаков, пропиточных составов, связующих и других","46. Химические. Синтетические смолы и пластические массы на основе: фенола и формальдегида А . Производство смол, лаков, клеев и других, переработка пресс-порошков, пресс-материалов.Применение клеев, лаков, пропиточных составов, связующих и других"]
[47,"Химические","Синтетические смолы и пластические массы на основе: кремнийорганических соединений ","Производство смол, лаков, жидких силиконов, переработка полимеров, пресс-материалов, применение лаков, смазок, смол и других","47. Химические. Синтетические смолы и пластические массы на основе: кремнийорганических соединений . Производство смол, лаков, жидких силиконов, переработка полимеров, пресс-материалов, применение лаков, смазок, смол и других"]
[48,"Химические","Синтетические смолы и пластические массы на основе: изоцианатов А ","Производство полиуретанов, пенополиуретанов, полимочевины и других, переработка и применение","48. Химические. Синтетические смолы и пластические массы на основе: изоцианатов А . Производство полиуретанов, пенополиуретанов, полимочевины и других, переработка и применение"]
[49,"Химические","Синтетические смолы и пластические массы на основе: фторорганических соединений ","Производство полимеров (фторопластов) и сополимеров; термическая и механическая переработка фторопластов","49. Химические. Синтетические смолы и пластические массы на основе: фторорганических соединений . Производство полимеров (фторопластов) и сополимеров; термическая и механическая переработка фторопластов"]
[50,"Химические","Синтетические смолы и пластические массы на основе: винилхлорида и винилиденхлорида ","Производство полимеров и сополимеров, перхлорвинила, клеев, лаков и других; переработка смол и пластмасс и применение клеев, лаков и других","50. Химические. Синтетические смолы и пластические массы на основе: винилхлорида и винилиденхлорида . Производство полимеров и сополимеров, перхлорвинила, клеев, лаков и других; переработка смол и пластмасс и применение клеев, лаков и других"]
[51,"Химические","Синтетические смолы и пластические массы на основе: акриловой и метакриловой кислот А ","Производство и переработка полимеров, сополимеров, применение эмульсий, лаков, красок и других","51. Химические. Синтетические смолы и пластические массы на основе: акриловой и метакриловой кислот А . Производство и переработка полимеров, сополимеров, применение эмульсий, лаков, красок и других"]
[52,"Химические","Синтетические смолы и пластические массы на основе: аминокислот, двуосновных кислот, диаминов А","Производство и переработка полиамидов; применение клеев и других ","52. Химические. Синтетические смолы и пластические массы на основе: аминокислот, двуосновных кислот, диаминов А. Производство и переработка полиамидов; применение клеев и других "]
[53,"Химические","Синтетические смолы и пластические массы на основе: эпихлоргидрина А ","Производство и применение эпоксидных смол и пластмасс на их основе, компаундов","53. Химические. Синтетические смолы и пластические массы на основе: эпихлоргидрина А . Производство и применение эпоксидных смол и пластмасс на их основе, компаундов"]
[54,"Химические","Синтетические смолы и пластические массы на основе: алифатических и непредельных углеводородов (полиэтилена, полипропилена)","алифатических и непредельных углеводородов (полиэтилена, полипропилена)","54. Химические. Синтетические смолы и пластические массы на основе: алифатических и непредельных углеводородов (полиэтилена, полипропилена). алифатических и непредельных углеводородов (полиэтилена, полипропилена)"]
[55,"Химические","Сланцевые смолы А ","Производство и применение; производства, связанные с их выделением","55. Химические. Сланцевые смолы А . Производство и применение; производства, связанные с их выделением"]
[56,"Химические","Сурьма и ее соединения ","Получение, переработка и применение ","56. Химические. Сурьма и ее соединения . Получение, переработка и применение "]
[57,"Химические","Таллий и его соединения ","Производство и применение; выращивание монокристаллов","57. Химические. Таллий и его соединения . Производство и применение; выращивание монокристаллов"]
[58,"Химические","Тетраэтилсвинец ","Производство тетраэтилсвинца и этиловой жидкости, смешение этиловой жидкости с горючим. Применение этилированного бензина: испытание, ремонт, разборка и промывка авиа- и автомоторов, заправка самолетов и других машин, слив, налив этилированного бензина на немеханизированных станциях, очистка установок и тары на нефтебазах, бензохранилищах, колонках","58. Химические. Тетраэтилсвинец . Производство тетраэтилсвинца и этиловой жидкости, смешение этиловой жидкости с горючим. Применение этилированного бензина: испытание, ремонт, разборка и промывка авиа- и автомоторов, заправка самолетов и других машин, слив, налив этилированного бензина на немеханизированных станциях, очистка установок и тары на нефтебазах, бензохранилищах, колонках"]
[59,"Химические","Металлы А: кобальт, ванадий, молибден, титан, цирконий, вольфрам и его соединения ","Получение и применение кобальта и его соединенийПолучение пятиокиси ванадия: производство феррованадия; переработка ванадийсодержащих шлаков; производство и применение молибдена, вольфрама и их соединений, обработка титана, восстановление металлического титана и его соединений; получение и применение вольфрамо-кобальтовых сплавов, титано-кобальтовых сплавов, металлопорошков циркония и его соединений","59. Химические. Металлы А: кобальт, ванадий, молибден, титан, цирконий, вольфрам и его соединения . Получение и применение кобальта и его соединенийПолучение пятиокиси ванадия: производство феррованадия; переработка ванадийсодержащих шлаков; производство и применение молибдена, вольфрама и их соединений, обработка титана, восстановление металлического титана и его соединений; получение и применение вольфрамо-кобальтовых сплавов, титано-кобальтовых сплавов, металлопорошков циркония и его соединений"]
[60,"Химические","Урсол, урсоловые красители и окисляемые красители А","Производство и применение, крашение мехов ","60. Химические. Урсол, урсоловые красители и окисляемые красители А. Производство и применение, крашение мехов "]
[61,"Химические","Фармакологические средства ","Производство и изготовление готовых лекарственных форм морфина и его производных, витаминов, сульфаниламидных, пиразолоновых, противоопухолевых и гормональных препаратов, нейролептиков, антикоагулянтов, анестетиков (фторотан), применение в анестезиологической практике; изготовление лекарственных препаратов в аптеках, применение нейролептиков в психиатрической практике ДОПОЛНИТЕЛЬНЫЕ ПРОТИВОПОКАЗАНИЯ: АЛКОГОЛИЗМ НАРКОМАНИЯ ТОКСИКОМАНИЯ","61. Химические. Фармакологические средства . Производство и изготовление готовых лекарственных форм морфина и его производных, витаминов, сульфаниламидных, пиразолоновых, противоопухолевых и гормональных препаратов, нейролептиков, антикоагулянтов, анестетиков (фторотан), применение в анестезиологической практике; изготовление лекарственных препаратов в аптеках, применение нейролептиков в психиатрической практике ДОПОЛНИТЕЛЬНЫЕ ПРОТИВОПОКАЗАНИЯ: АЛКОГОЛИЗМ НАРКОМАНИЯ ТОКСИКОМАНИЯ"]
[62,"Химические","Фенолы и их производные ","Производство и применение ","62. Химические. Фенолы и их производные . Производство и применение "]
[63,"Химические","Формальдегид А и другие альдегиды жирного ряда","Производство и применение; процессы, связанные с их выделением ","63. Химические. Формальдегид А и другие альдегиды жирного ряда. Производство и применение; процессы, связанные с их выделением "]
[64,"Химические","Фосфор и его соединения ","Производство и применение желтого фосфора, его соединений, фосфорорганических соединений, в том числе пластификаторовПроизводство и применение красного фосфора; добыча, производство и применение фосфатов","64. Химические. Фосфор и его соединения . Производство и применение желтого фосфора, его соединений, фосфорорганических соединений, в том числе пластификаторовПроизводство и применение красного фосфора; добыча, производство и применение фосфатов"]
[65,"Химические","Фталевая кислота, фталевый ангидрид и их производные","Производство и применение ",{"$f":"CONCATENATE(A67,\". \",B67,\". \",C67,\". \",D67)","v":"65. Химические. Фталевая кислота, фталевый ангидрид и их производные. Производство и применение "}]
[66,"Химические","Фтор и его соединения ","Производство и применение фтора и его соединений. Электролизное получение алюминия, добыча и применение плавикового шпата, процессы с выделением фтора и его соединений","66. Химические. Фтор и его соединения . Производство и применение фтора и его соединений. Электролизное получение алюминия, добыча и применение плавикового шпата, процессы с выделением фтора и его соединений"]
[67,"Химические","Фураны и их производные: фурфурол, тетрагидрофуран и другие","Производство и применение ","67. Химические. Фураны и их производные: фурфурол, тетрагидрофуран и другие. Производство и применение "]
[68,"Химические","Хлор и его соединения, хлорсодержащие смеси","Производство и применение; процессы, связанные с их выделением ","68. Химические. Хлор и его соединения, хлорсодержащие смеси. Производство и применение; процессы, связанные с их выделением "]
[69,"Химические","Хлорнафталин и его соединения (галовакс, хлорнафталины А и их соединения, гидрооксинафталин и нафтол)","Производство и применение ","69. Химические. Хлорнафталин и его соединения (галовакс, хлорнафталины А и их соединения, гидрооксинафталин и нафтол). Производство и применение "]
[70,"Химические","Хром А, хромовая кислота А, их соединения и сплавы ","Производство и применение (включая вещества, содержащие соединения хрома в виде побочных компонентов)","70. Химические. Хром А, хромовая кислота А, их соединения и сплавы . Производство и применение (включая вещества, содержащие соединения хрома в виде побочных компонентов)"]
[71,"Биологические","Антибиотики А ","Производство и применение в медицинской практике и аптечных учреждениях","71. Биологические. Антибиотики А . Производство и применение в медицинской практике и аптечных учреждениях"]
[72,"Биологические","Грибы-продуценты, белково-витаминные концентраты (БВК), кормовые дрожжи, комбикорма А","Производство и применение продуктов микробиологического синтеза ","72. Биологические. Грибы-продуценты, белково-витаминные концентраты (БВК), кормовые дрожжи, комбикорма А. Производство и применение продуктов микробиологического синтеза "]
[73,"Биологические","Ферментные препараты, биостимуляторы А ","Производство и применение в медицинской практике, аптечных учреждениях, сельском хозяйстве и других отраслях народного хозяйства","73. Биологические. Ферментные препараты, биостимуляторы А . Производство и применение в медицинской практике, аптечных учреждениях, сельском хозяйстве и других отраслях народного хозяйства"]
[74,"Биологические","Аллергены для диагностики и лечения, препараты крови А, иммунобиологические препараты","Производство ","74. Биологические. Аллергены для диагностики и лечения, препараты крови А, иммунобиологические препараты. Производство "]
[75,"Биологические","Инфицированный материал и материал, зараженный гельминтами","Работа в контакте с инфицированным материалом и материалом, зараженным гельминтами, с инфекционными больными ","75. Биологические. Инфицированный материал и материал, зараженный гельминтами. Работа в контакте с инфицированным материалом и материалом, зараженным гельминтами, с инфекционными больными "]
[76,"Биологические","Возбудители бруцеллеза ","Животноводческие хозяйства (независимо от эпизоотического состояния по бруцеллезу), предприятия по переработке сырья и продуктов животного происхождения","76. Биологические. Возбудители бруцеллеза . Животноводческие хозяйства (независимо от эпизоотического состояния по бруцеллезу), предприятия по переработке сырья и продуктов животного происхождения"]
[77,"Биологические","Возбудитель Ку-лихорадки ","Животноводческие хозяйства на территориях, неблагополучных по Ку-лихорадке, предприятия, перерабатывающие сырье и продукты от больных Ку-лихорадкой сельскохозяйственных животных","77. Биологические. Возбудитель Ку-лихорадки . Животноводческие хозяйства на территориях, неблагополучных по Ку-лихорадке, предприятия, перерабатывающие сырье и продукты от больных Ку-лихорадкой сельскохозяйственных животных"]
[78,"Промышленные аэрозоли","Абразивные и абразивсодержащие ","Производство, обработка и применение абразивов (электрокорундов - нормального, белого, хромистого, монокорунда), карбида, бора, эльбора, обработка и применение карбида кремния и других","78. Промышленные аэрозоли. Абразивные и абразивсодержащие . Производство, обработка и применение абразивов (электрокорундов - нормального, белого, хромистого, монокорунда), карбида, бора, эльбора, обработка и применение карбида кремния и других"]
[79,"Промышленные аэрозоли","Кремнийсодержащие (свободная и аморфная двуокись кремния)","Разведка, горнопроходческие работы, открытая и подземная добыча рудных и нерудных ископаемых, угля, обогащение и переработка их. Производство кремния, стекла, динаса, аэросила, карбида кремния, кремнемедистого сплава, силумина и других; литейное производство (землеприготовление, формовка, выбивка, обрубка, зачистка, очистка литья). Пескоструйные работы","79. Промышленные аэрозоли. Кремнийсодержащие (свободная и аморфная двуокись кремния). Разведка, горнопроходческие работы, открытая и подземная добыча рудных и нерудных ископаемых, угля, обогащение и переработка их. Производство кремния, стекла, динаса, аэросила, карбида кремния, кремнемедистого сплава, силумина и других; литейное производство (землеприготовление, формовка, выбивка, обрубка, зачистка, очистка литья). Пескоструйные работы"]
[80,"Промышленные аэрозоли","Металлы и их сплавы ","Сухая шлифовка металлов и сплавов; процессы напыления металлов, получение металлических порошков и изделий из них","80. Промышленные аэрозоли. Металлы и их сплавы . Сухая шлифовка металлов и сплавов; процессы напыления металлов, получение металлических порошков и изделий из них"]
[81,"Промышленные аэрозоли","Силикатные и силикатсодержащие: а) асбестосодержащие (асбеста 10% и более)","Разведка, добыча и переработка асбестовых руд и асбеста. Получение и переработка искусственного асбеста ","81. Промышленные аэрозоли. Силикатные и силикатсодержащие: а) асбестосодержащие (асбеста 10% и более). Разведка, добыча и переработка асбестовых руд и асбеста. Получение и переработка искусственного асбеста "]
[82,"Промышленные аэрозоли","Силикатные и силикатсодержащие: б) асбестосодержащие (асбеста не более 10%)","Производство, переработка изделий из асбестоцемента, асбестобакелита, волокнина, асбесторезины ","82. Промышленные аэрозоли. Силикатные и силикатсодержащие: б) асбестосодержащие (асбеста не более 10%). Производство, переработка изделий из асбестоцемента, асбестобакелита, волокнина, асбесторезины "]
[83,"Промышленные аэрозоли","Силикатные и силикатсодержащие: в) другие силикатные и силикатсодержащие ","Производство и переработка стеклянного и минерального волокна, цемента, глины, шамота, боксита, нефелиновых сиенитов, дистенсиллиманита, оливина, апатитов, слюды, дунита, хроммагнезита, форстерита, известняков, барита, котленита, инфузорной земли, туфалов, пемзы, перлита, железорудных концентратов и агломерата в металлургии и других","83. Промышленные аэрозоли. Силикатные и силикатсодержащие: в) другие силикатные и силикатсодержащие . Производство и переработка стеклянного и минерального волокна, цемента, глины, шамота, боксита, нефелиновых сиенитов, дистенсиллиманита, оливина, апатитов, слюды, дунита, хроммагнезита, форстерита, известняков, барита, котленита, инфузорной земли, туфалов, пемзы, перлита, железорудных концентратов и агломерата в металлургии и других"]
[84,"Промышленные аэрозоли","Углеродные ","Добыча, переработка и применение угля Производство и применение черной сажи, искусственного графита, кокса (нефтяного, пекового, сланцевого и других). Обработка и применение природных и искусственных алмазов","84. Промышленные аэрозоли. Углеродные . Добыча, переработка и применение угля Производство и применение черной сажи, искусственного графита, кокса (нефтяного, пекового, сланцевого и других). Обработка и применение природных и искусственных алмазов"]
[85,"Промышленные аэрозоли","Пыль растительного и животного происхождения ","Переработка хлопка, льна, конопли, шерсти, кенафа, джута, зерна, табака, древесины, торфа, хмеля. Производство бумаги, натурального шелка и других материалов","85. Промышленные аэрозоли. Пыль растительного и животного происхождения . Переработка хлопка, льна, конопли, шерсти, кенафа, джута, зерна, табака, древесины, торфа, хмеля. Производство бумаги, натурального шелка и других материалов"]
[86,"Промышленные аэрозоли","Пыль неорганических люминофоров (в том числе с содержанием кадмия менее 5%)","Производство и применение ","86. Промышленные аэрозоли. Пыль неорганических люминофоров (в том числе с содержанием кадмия менее 5%). Производство и применение "]
[87,"Промышленные аэрозоли","Сварочные аэрозоли ","Дуговая плазменная, газопламенная сварка, наплавка и резка, контактная стыковая сварка (оплавлением), электрошлаковая сварка металлов","87. Промышленные аэрозоли. Сварочные аэрозоли . Дуговая плазменная, газопламенная сварка, наплавка и резка, контактная стыковая сварка (оплавлением), электрошлаковая сварка металлов"]
[88,"Промышленные аэрозоли","Сварочные аэрозоли: а) содержащие марганец (20% и более), никель, хром, соединения фтора, бериллий, свинец ","Сварка, наплавка и резка средне- и высоколегированных, в том числе нержавеющих сталей, сварка и наплавка чугуна никелевыми и никель-медными электродами и проволоками, сварка и резка бериллия и его сплавов","88. Промышленные аэрозоли. Сварочные аэрозоли: а) содержащие марганец (20% и более), никель, хром, соединения фтора, бериллий, свинец . Сварка, наплавка и резка средне- и высоколегированных, в том числе нержавеющих сталей, сварка и наплавка чугуна никелевыми и никель-медными электродами и проволоками, сварка и резка бериллия и его сплавов"]
[89,"Промышленные аэрозоли","Сварочные аэрозоли: б) содержащие марганец (до 20%), окислы железа, алюминий, магний, титан медь, цинк, молибден, ванадий, вольфрам)","Сварка, наплавка и резка углеродистых, в том числе оцинкованных сталей, алюминия, меди, титана и сплавов на их основе, сварка и наплавка чугуна железными и железно-ванадиевыми электродами и проволоками, его резка ","89. Промышленные аэрозоли. Сварочные аэрозоли: б) содержащие марганец (до 20%), окислы железа, алюминий, магний, титан медь, цинк, молибден, ванадий, вольфрам). Сварка, наплавка и резка углеродистых, в том числе оцинкованных сталей, алюминия, меди, титана и сплавов на их основе, сварка и наплавка чугуна железными и железно-ванадиевыми электродами и проволоками, его резка "]
[90,"Физические","Ионизирующие излучения. Радиоактивные вещества и источники ионизирующих излучений","Все виды работ с радиоактивными веществами и источниками ионизирующих излучений ","90. Физические. Ионизирующие излучения. Радиоактивные вещества и источники ионизирующих излучений. Все виды работ с радиоактивными веществами и источниками ионизирующих излучений "]
[91,"Физические","Неионизирующие излучения: лазерные излучения","Все виды работ с лазерами ","91. Физические. Неионизирующие излучения: лазерные излучения. Все виды работ с лазерами "]
[92,"Физические","Неионизирующие излучения: электромагнитные (электрические и магнитные) поля радиочастот в диапазоне 30 МГц - 300 ГГц (ОВЧ, УВЧ, СВЧ, КВЧ) и ниже 30 мГц (ВЧ, СЧ, НЧ, ОНЧ, ИНЧ, СНЧ, КНЧ)","Все виды работ с источниками электромагнитной энергии указанного диапазона ","92. Физические. Неионизирующие излучения: электромагнитные (электрические и магнитные) поля радиочастот в диапазоне 30 МГц - 300 ГГц (ОВЧ, УВЧ, СВЧ, КВЧ) и ниже 30 мГц (ВЧ, СЧ, НЧ, ОНЧ, ИНЧ, СНЧ, КНЧ). Все виды работ с источниками электромагнитной энергии указанного диапазона "]
[93,"Физические","Постоянные электрические и постоянные магнитные поля","Все виды работ с источниками постоянных электрических и магнитных полей ","93. Физические. Постоянные электрические и постоянные магнитные поля. Все виды работ с источниками постоянных электрических и магнитных полей "]
[94,"Физические","Производственная вибрация","Все виды трудовой деятельности, связанные с воздействием локальной или общей вибрации","94. Физические. Производственная вибрация. Все виды трудовой деятельности, связанные с воздействием локальной или общей вибрации",null,{"$f":"CONCATENATE(B96,\". \",C96,)","v":"Физические. Производственная вибрация"}]
[95,"Физические","Производственный шум ","Все виды трудовой деятельности, связанные с воздействием интенсивного производственного шума, а также со значительным напряжением слухового анализатора от 81 дБ и выше","95. Физические. Производственный шум . Все виды трудовой деятельности, связанные с воздействием интенсивного производственного шума, а также со значительным напряжением слухового анализатора от 81 дБ и выше",null,"Физические. Производственный шум "]
[96,"Физические","Ультразвук (контактная передача)","Работа с ультразвуковыми дефектоскопами и медицинской аппаратурой","96. Физические. Ультразвук (контактная передача). Работа с ультразвуковыми дефектоскопами и медицинской аппаратурой",null,"Физические. Ультразвук (контактная передача)"]
[97,"Физические","Повышенное атмосферное давление","Работа в кессонах, барокамерах, водолазные работы ","97. Физические. Повышенное атмосферное давление. Работа в кессонах, барокамерах, водолазные работы ",null,"Физические. Повышенное атмосферное давление"]
[98,"Физические","Пониженная температура ","Работа при постоянно пониженной температуре воздуха рабочей зоны в производственных помещениях (ниже допустимых значений по Санитарным нормам микроклимата производственных помещений, утвержденным Минздравом СССР)","98. Физические. Пониженная температура . Работа при постоянно пониженной температуре воздуха рабочей зоны в производственных помещениях (ниже допустимых значений по Санитарным нормам микроклимата производственных помещений, утвержденным Минздравом СССР)",null,"Физические. Пониженная температура "]
[99,"Физические","Повышенная температура, интенсивное тепловое излучение ","Все виды работ при постоянно повышенной температуре (превышающей допустимое значение по Санитарным нормам микроклимата производственных помещений, утвержденным Минздравом СССР) и интенсивном тепловом облучении (свыше 140 Вт/кв.м) в рабочей зоне","99. Физические. Повышенная температура, интенсивное тепловое излучение . Все виды работ при постоянно повышенной температуре (превышающей допустимое значение по Санитарным нормам микроклимата производственных помещений, утвержденным Минздравом СССР) и интенсивном тепловом облучении (свыше 140 Вт/кв.м) в рабочей зоне",null,"Физические. Повышенная температура, интенсивное тепловое излучение "]
[100,"Физические","Повышенное напряжение зрения ","Все виды работ, связанные с повышенным напряжением зрения: а) прецизионные работы 1 (с объектом до 0,15 мм) и П (с объектом от 0,15 до 0,3 мм) разрядов точности по СНИП - 1980 г.","100. Физические. Повышенное напряжение зрения . Все виды работ, связанные с повышенным напряжением зрения: а) прецизионные работы 1 (с объектом до 0,15 мм) и П (с объектом от 0,15 до 0,3 мм) разрядов точности по СНИП - 1980 г.",null,{"$f":"CONCATENATE(B102,\". \",C102,)","v":"Физические. Повышенное напряжение зрения "}]
[101,"Физические","Повышенное напряжение зрения ","Все виды работ, связанные с повышенным напряжением зрения: б) зрительно напряженные работы - работы Ш и 1У (с объектом 0,5-1 мм) разрядов точности по СНИП и работы, связанные со слежением за экраном дисплеев и другими средствами отображения информации","101. Физические. Повышенное напряжение зрения . Все виды работ, связанные с повышенным напряжением зрения: б) зрительно напряженные работы - работы Ш и 1У (с объектом 0,5-1 мм) разрядов точности по СНИП и работы, связанные со слежением за экраном дисплеев и другими средствами отображения информации",null,"Физические. Повышенное напряжение зрения "]
[102,"Физические","Физические перегрузки ","Работы, связанные с перемещением грузов вручную (груз в кг) или с приложением усилий (в Н; 1Н=0,1 кгс) в течение смены (для мужчин):выполняемые постоянно - более 30 кг (или более 300 Н);величина массы груза, перемещаемого или поднимаемого вручную за смену (сменный грузооборот) при подъеме с рабочей поверхности - более 12 т,при подъеме с пола или уровня значительно ниже рабочей поверхности - более 5 т","102. Физические. Физические перегрузки . Работы, связанные с перемещением грузов вручную (груз в кг) или с приложением усилий (в Н; 1Н=0,1 кгс) в течение смены (для мужчин):выполняемые постоянно - более 30 кг (или более 300 Н);величина массы груза, перемещаемого или поднимаемого вручную за смену (сменный грузооборот) при подъеме с рабочей поверхности - более 12 т,при подъеме с пола или уровня значительно ниже рабочей поверхности - более 5 т",null,"Физические. Физические перегрузки "]
[103,"Физические","Физические перегрузки ","Работы, связанные с длительным пребыванием в вынужденной позе, в том числе стоя","103. Физические. Физические перегрузки . Работы, связанные с длительным пребыванием в вынужденной позе, в том числе стоя",null,"Физические. Физические перегрузки "]
[104,"Физические","Физические перегрузки ","Работы, связанные с локальным мышечным напряжением, преимущественно мышц кисти и предплечья","104. Физические. Физические перегрузки . Работы, связанные с локальным мышечным напряжением, преимущественно мышц кисти и предплечья",null,"Физические. Физические перегрузки "]
[105,"Физические","Физические перегрузки ","Периодическое удержание на весу обеими руками груза массой более 10 кг или одной рукой более 5 кг (для мужчин)","105. Физические. Физические перегрузки . Периодическое удержание на весу обеими руками груза массой более 10 кг или одной рукой более 5 кг (для мужчин)",null,"Физические. Физические перегрузки "]
[106,"Физические","Физические перегрузки ","Работы, связанные с периодическими выраженными наклонами тела (по визуальной оценке более 30 градусов от вертикали) более 300 раз за смену;","106. Физические. Физические перегрузки . Работы, связанные с периодическими выраженными наклонами тела (по визуальной оценке более 30 градусов от вертикали) более 300 раз за смену;",null,"Физические. Физические перегрузки "]
[107,"Физические","Физические перегрузки ","пребывание более 50% времени смены в вынужденной рабочей позе (на коленях, на корточках, лежа, с наклоном вперед, в подвеске, стоя)","107. Физические. Физические перегрузки . пребывание более 50% времени смены в вынужденной рабочей позе (на коленях, на корточках, лежа, с наклоном вперед, в подвеске, стоя)",null,"Физические. Физические перегрузки "]
[108,"Физические","Физические перегрузки ","Работы, связанные с перенапряжением голосового аппарата: преподавательская, дикторская, вокально-разговорные виды актерской работы, работа на телефонной станции ","108. Физические. Физические перегрузки . Работы, связанные с перенапряжением голосового аппарата: преподавательская, дикторская, вокально-разговорные виды актерской работы, работа на телефонной станции ",null,"Физические. Физические перегрузки "]

{"sheet":"Psychiatric_factors","index":7,"n_rows":149,"n_cols":9,"rows_kept":149,"cut":false,"hidden":true,"merged":[]}
["Номер пункта","Раздел","Опасные и вредные вещества и производственные факторы (знаком А отмечены аллергены)","Проводимые работы. \nДОПОЛНИТЕЛЬНЫЕ МЕДИЦИНСКИЕ ПСИХИАТРИЧЕСКИЕ ПРОТИВОПОКАЗАНИЯ ","Полное наименование фактора"]
[]
[1,"Химические","Азотная кислота, Аммиак, Окислы азота","Производство и применение, процессы, связанные с их выделением.","1. Деятельность, связанная с управлением транспортными средствами или управлением движением транспортных средств по профессиям и должностям согласно перечню работ, профессий, должностей, непосредственно связанных с управлением транспортными средствами или управлением движением транспортных средств",null,"1. Деятельность, связанная с управлением транспортными средствами или управлением движением транспортных средств по профессиям и должностям согласно перечню работ, профессий, должностей, непосредственно связанных с управлением транспортными средствами или управлением движением транспортных средств",null,"1. Химические. Азотная кислота, Аммиак, Окислы азота. Производство и применение, процессы, связанные с их выделением."]
[2,"Химические","Акриловая и метакриловая кислоты, их сложные эфиры, нитрилы А","Производство и применение акрилонитрила, метилметакрилата, этилакрилата и других.","2. Деятельность, связанная с производством, транспортировкой, хранением и применением взрывчатых материалов и веществ",null,"2. Деятельность, связанная с производством, транспортировкой, хранением и применением взрывчатых материалов и веществ",null,"2. Химические. Акриловая и метакриловая кислоты, их сложные эфиры, нитрилы А. Производство и применение акрилонитрила, метилметакрилата, этилакрилата и других."]
[3,"Химические","Амино-, нитро-, нитрозо-нитрохлорсоединения ароматического ряда ","Производство и применение тринитротолуола динитрофенола, динитробензола, анилина гексогена, динитрохлорбензола и других, уротропина\r\nПроизводство и применение ксилидина, крезолов, пикриновой кислоты и других","3. Деятельность в области использования атомной энергии, осуществляемая работниками объектов использования атомной энергии при наличии у них разрешений, выдаваемых органами Федеральной службы по экологическому, технологическому и атомному надзору",null,"3. Деятельность в области использования атомной энергии, осуществляемая работниками объектов использования атомной энергии при наличии у них разрешений, выдаваемых органами Федеральной службы по экологическому, технологическому и атомному надзору",null,"3. Химические. Амино-, нитро-, нитрозо-нитрохлорсоединения ароматического ряда. Производство и применение тринитротолуола динитрофенола, динитробензола, анилина гексогена, динитрохлорбензола и других, уротропина\r\nПроизводство и применение ксилидина, крезолов, пикриновой кислоты и других."]
[4,"Химические","Аминосоединения жирного ряда и их производные","Производство и применение","4. Деятельность, связанная с оборотом оружия",null,"4. Деятельность, связанная с оборотом оружия",null,"4. Химические. Аминосоединения жирного ряда и их производные. Производство и применение."]
[5,"Химические","Этиленимин и другие иминосоединения А ",null,"5. Деятельность, связанная с проведением аварийно-спасательных работ, а также с работой, выполняемой пожарной охраной при тушении пожаров",null,"5. Деятельность, связанная с проведением аварийно-спасательных работ, а также с работой, выполняемой пожарной охраной при тушении пожаров",null,"5. Химические. Этиленимин и другие иминосоединения А."]
[6,"Химические","Амины ароматического ряда: бензидин и его соединения, дианизидин, толуидин и его соединения, нафтиламины","Производство и применение (включая лабораторные работы).\r\nПрименение красителей на их основе.","6. Деятельность, непосредственно связанная с управлением подъемными механизмами (кранами), подлежащими учету в органах Федеральной службы по экологическому, технологическому и атомному надзору",null,"6. Деятельность, непосредственно связанная с управлением подъемными механизмами (кранами), подлежащими учету в органах Федеральной службы по экологическому, технологическому и атомному надзору",null,"6. Химические. Амины ароматического ряда: бензидин и его соединения, дианизидин, толуидин и его соединения, нафтиламины. Производство и применение (включая лабораторные работы).\r\nПрименение красителей на их основе."]
[7,"Химические","Барий и его соединения ","Производство растворимых соединений бария и их применениеПроизводство нерастворимых соединений бария и их применение","7. Деятельность по непосредственному забору, очистке и распределению воды питьевых нужд систем централизованного водоснабжения",null,"7. Деятельность по непосредственному забору, очистке и распределению воды питьевых нужд систем централизованного водоснабжения",null,"7. Химические. Барий и его соединения. Производство растворимых соединений бария и их применениеПроизводство нерастворимых соединений бария и их применение."]
[8,"Химические","Бензол и его производные (толуол, ксилол, стирол и другие) Галоидопроизводные ароматического ряда Галоидные бензилы, хлористый бензилиден","Производство и применение (включая лабораторные работы) бензола Производство и применение гомологов и производных бензола (изопропилбензола, стирола, толуола и других).","8. Педагогическая деятельность в организациях, осуществляющих образовательную деятельность",null,"8. Педагогическая деятельность в организациях, осуществляющих образовательную деятельность",null,"8. Химические. Бензол и его производные (толуол, ксилол, стирол и другие) Галоидопроизводные ароматического ряда Галоидные бензилы, хлористый бензилиден. Производство и применение (включая лабораторные работы) бензола Производство и применение гомологов и производных бензола (изопропилбензола, стирола, толуола и других)."]
[9,"Химические","Азокрасители Антрахиноновые, фталоцианиловые красители","Производство и применение ","9. Деятельность по присмотру и уходу за детьми",null,"9. Деятельность по присмотру и уходу за детьми",null,"9. Химические. Азокрасители Антрахиноновые, фталоцианиловые красители. Производство и применение."]
[10,"Химические","Бериллий и его соединения А ","Производство и применение металлического бериллия и его соединений, приготовление шихты, механическая обработка керамических изделий из окиси бериллия, производство сплавов, содержащих бериллий","10. Деятельность, связанная с работами с использованием сведений, составляющими государственную тайну",null,"10. Деятельность, связанная с работами с использованием сведений, составляющими государственную тайну",null,"10. Химические. Бериллий и его соединения А. Производство и применение металлического бериллия и его соединений, приготовление шихты, механическая обработка керамических изделий из окиси бериллия, производство сплавов, содержащих бериллий."]
[11,"Химические","Бета-нафтол ","Производство и применение","11. Деятельность в сфере электроэнергетики, связанная с организацией и осуществлением монтажа, наладки, технического обслуживания, ремонта, управления режимом работы электроустановок",null,"11. Деятельность в сфере электроэнергетики, связанная с организацией и осуществлением монтажа, наладки, технического обслуживания, ремонта, управления режимом работы электроустановок",null,"11. Химические. Бета-нафтол. Производство и применение."]
[12,"Химические","Бром и его соединения","Производство и применение ","12. Деятельность в сфере теплоснабжения, связанная с организацией и осуществлением монтажа, наладки, технического обслуживания, ремонта, управления режимом работы объектов теплоснабжения",null,"12. Деятельность в сфере теплоснабжения, связанная с организацией и осуществлением монтажа, наладки, технического обслуживания, ремонта, управления режимом работы объектов теплоснабжения",null,"12. Химические. Бром и его соединения. Производство и применение."]
[13,"Химические","Галоидопроизводные углеводородов жирного ряда ","Производство и применение (включая лабораторные работы) дихлорэтана, четыреххлористого углерода, винилхлорида, хлористого метилена, хлористого метила, хлороформа, бромэтила, трихлорэтилена, хлоропрена и других.","13. Деятельность, непосредственно связанная с обслуживанием оборудования, работающего под избыточным давлением более 0,07 МПа и подлежащего учету в органах Федеральной службы по экологическому, технологическому и атомному надзору:\n·        воды при температуре более 115°С;\n·        иных жидкостей при температуре, превышающей температуру их кипения при избыточном давлении 0,07 МПа.",null,"13. Деятельность, непосредственно связанная с обслуживанием оборудования, работающего под избыточным давлением более 0,07 МПа и подлежащего учету в органах Федеральной службы по экологическому, технологическому и атомному надзору:\n·        воды при температуре более 115°С;\n·        иных жидкостей при температуре, превышающей температуру их кипения при избыточном давлении 0,07 МПа.",null,"13. Химические. Галоидопроизводные углеводородов жирного ряда. Производство и применение (включая лабораторные работы) дихлорэтана, четыреххлористого углерода, винилхлорида, хлористого метилена, хлористого метила, хлороформа, бромэтила, трихлорэтилена, хлоропрена и других."]
[14,"Химические","Гидразин и его соединения ","Производство и применение","14. Деятельность, непосредственно связанная с диспетчеризацией производственных процессов в химической (нефтехимической) промышленности, включая деятельность операторов производственного оборудования в химической (нефтехимической) промышленности (при производстве химических веществ 1 и 2 классов опасности)",null,"14. Деятельность, непосредственно связанная с диспетчеризацией производственных процессов в химической (нефтехимической) промышленности, включая деятельность операторов производственного оборудования в химической (нефтехимической) промышленности (при производстве химических веществ 1 и 2 классов опасности)",null,"14. Химические. Гидразин и его соединения. Производство и применение."]
[15,"Химические","Диметилформамид, диметилацетамид и другие амиды жирных кислот","Производство и применение ","15. Деятельность, связанная с добычей угля подземным способом",null,"15. Деятельность, связанная с добычей угля подземным способом",null,"15. Химические. Диметилформамид, диметилацетамид и другие амиды жирных кислот. Производство и применение."]
[16,"Химические","Изоцианаты А","Производство и применение ","16. Деятельность, связанная с эксплуатацией, ремонтом скважин и установок при переработке высокосернистой нефти, очистке нефти и газа от сероводорода, очистке нефтеналивных судов, цистерн, резервуаров, добычей и обработкой озокерита, экстракционноозокеритовым производством",null,"16. Деятельность, связанная с эксплуатацией, ремонтом скважин и установок при переработке высокосернистой нефти, очистке нефти и газа от сероводорода, очистке нефтеналивных судов, цистерн, резервуаров, добычей и обработкой озокерита, экстракционноозокеритовым производством",null,"16. Химические. Изоцианаты А. Производство и применение."]
[17,"Химические","Искусственные и синтетические волокна А ","ПроизводствоПереработка механическая, крашение:а) переработка волокон (оксалона, СВМ, арамида, углеродных);б) термообработка","17. Деятельность, непосредственно связанная с контактами с возбудителями инфекционных заболеваний - патогенными микроорганизмами I и II группы патогенности, возбудителями особо опасных инфекций, а также с биологическими токсинам (микробного, растительного и животного происхождения) или с доступом к указанным субстанциям",null,"17. Деятельность, непосредственно связанная с контактами с возбудителями инфекционных заболеваний - патогенными микроорганизмами I и II группы патогенности, возбудителями особо опасных инфекций, а также с биологическими токсинам (микробного, растительного и животного происхождения) или с доступом к указанным субстанциям",null,"17. Химические. Искусственные и синтетические волокна А. ПроизводствоПереработка механическая, крашение:а) переработка волокон (оксалона, СВМ, арамида, углеродных);б) термообработка."]
[18,"Химические",null,"Приготовление замасливателей и применение их",null,null,null,null,"18. Химические. Искусственные и синтетические волокна А. Приготовление замасливателей и применение их."]
[19,"Химические","Кадмий и его соединения","Производство и применение ",null,null,null,null,"19. Химические. Кадмий и его соединения. Производство и применение."]
[20,"Химические","Коксовый газ и другие продукты коксования ","Производство кокса и коксового газа, улавливание продуктов коксования, ректификация уловленных углеводородов, дистилляция и переработка каменноугольных смол на коксохимических заводах",null,null,null,null,"20. Химические. Коксовый газ и другие продукты коксования. Производство кокса и коксового газа, улавливание продуктов коксования, ректификация уловленных углеводородов, дистилляция и переработка каменноугольных смол на коксохимических заводах."]
[21,"Химические","Коксовый газ и другие продукты коксования ","Работы, связанные с приготовлением и укладкой асфальтобетонных покрытий с применением продуктов коксохимической промышленности (каменноугольных дегтей, смол, песков и других)",null,null,null,null,"21. Химические. Коксовый газ и другие продукты коксования. Работы, связанные с приготовлением и укладкой асфальтобетонных покрытий с применением продуктов коксохимической промышленности (каменноугольных дегтей, смол, песков и других)."]
[22,"Химические","Кремнийорганические соединения и замасливатели на их основе А","Производство и применение ",null,null,null,null,"22. Химические. Кремнийорганические соединения и замасливатели на их основе А. Производство и применение."]
[23,"Химические","Литий и его соединения","Производство и применение ",null,null,null,null,"23. Химические. Литий и его соединения. Производство и применение."]
[24,"Химические","Марганец и его соединения А ","Производство и применение окислов марганца, сварочных материалов (электродов, порошковой проволоки и флюсов)",null,null,null,null,"24. Химические. Марганец и его соединения А. Производство и применение окислов марганца, сварочных материалов (электродов, порошковой проволоки и флюсов)."]
[25,"Химические","Марганец и его соединения А ","Плавка марганцевых сталей и других металлов с содержанием марганца свыше 10%, производство органических соединений марганца",null,null,null,null,"25. Химические. Марганец и его соединения А. Плавка марганцевых сталей и других металлов с содержанием марганца свыше 10%, производство органических соединений марганца."]
[26,"Химические","Марганец и его соединения А ","Добыча руд, их переработка, применение в измельченном виде неорганических соединений марганца",null,null,null,null,"26. Химические. Марганец и его соединения А. Добыча руд, их переработка, применение в измельченном виде неорганических соединений марганца."]
[27,"Химические","Метанол","Производство и применение, процессы, связанные с его выделением ",null,null,null,null,"27. Химические. Метанол. Производство и применение, процессы, связанные с его выделением."]
[28,"Химические","Мышьяк и его соединения ","Добыча, производство и применение органических и неорганических соединений мышьяка; процессы, связанные с его выделением",null,null,null,null,"28. Химические. Мышьяк и его соединения. Добыча, производство и применение органических и неорганических соединений мышьяка; процессы, связанные с его выделением."]
[29,"Химические","Наркотические средства и психотропные вещества ","Культивирование наркотико-содержащих растений;разработка, производство, изготовление, переработка,хранение, перевозка, отпуск, реализация, распределение, приобретение, использование, ввоз на таможенную территориюРоссийской Федерации,вывоз с таможенной территории Российской Федерации,уничтожение наркотических средств и психотропных веществ",null,null,null,null,"29. Химические. Наркотические средства и психотропные вещества. Культивирование наркотико-содержащих растений;разработка, производство, изготовление, переработка,хранение, перевозка, отпуск, реализация, распределение, приобретение, использование, ввоз на таможенную территориюРоссийской Федерации,вывоз с таможенной территории Российской Федерации,уничтожение наркотических средств и психотропных веществ."]
[30,"Химические","Никель А и его соединения","Производство и применение ",null,null,null,null,"30. Химические. Никель А и его соединения. Производство и применение."]
[31,"Химические","Органические ускорители вулканизации, противостарители, ингибиторы вулканизации и другие А","Производство и применение каптакса, альтакса, тиурама, неозона Д и других ",null,null,null,null,"31. Химические. Органические ускорители вулканизации, противостарители, ингибиторы вулканизации и другие А. Производство и применение каптакса, альтакса, тиурама, неозона Д и других."]
[32,"Химические","Пергидроль","Производство и применение ",null,null,null,null,"32. Химические. Пергидроль. Производство и применение."]
[33,"Химические","Пестициды ","Производство и применение в условиях народного хозяйства хлорорганических, фосфорорганических, производных карбаминовых кислот, металлоорганических и других пестицидов, а также хранение на складах и первичная переработка хлопка",null,null,null,null,"33. Химические. Пестициды. Производство и применение в условиях народного хозяйства хлорорганических, фосфорорганических, производных карбаминовых кислот, металлоорганических и других пестицидов, а также хранение на складах и первичная переработка хлопка."]
[34,"Химические","Предельные и непредельные углеводороды ","Эксплуатация, ремонт скважин и установок при добыче нефти, переработка высокосернистой и сернистой нефти, природного газа, пиробензола; селективная очистка масел, пиролиз; очистка нефти и газа от сероводорода; очистка нефтеналивных судов, цистерн, резервуаров; экстракционноозокеритовое производство; производство различных синтетических продуктов (фенола, ацетона, синтетических жирных кислот и спиртов и других). Вспомогательные процессы, связанные с обслуживанием товарных парков, отбором проб, лабораторным контролем сырья промежуточных и конечных продуктов (высокосернистая и сернистая нефть и природный газ). Эксплуатация, ремонт скважин при добыче нефти; переработка малосернистой нефти и природного газа; добыча и обработка озокерита, регенерация авто- и авиамасел; процессы, связанные с выделением и применением предельных, непредельных углеводородов (производство полиэтилена, дивинила, изопрена и других); применение бензина-растворителя",null,null,null,null,"34. Химические. Предельные и непредельные углеводороды. Эксплуатация, ремонт скважин и установок при добыче нефти, переработка высокосернистой и сернистой нефти, природного газа, пиробензола; селективная очистка масел, пиролиз; очистка нефти и газа от сероводорода; очистка нефтеналивных судов, цистерн, резервуаров; экстракционноозокеритовое производство; производство различных синтетических продуктов (фенола, ацетона, синтетических жирных кислот и спиртов и других). Вспомогательные процессы, связанные с обслуживанием товарных парков, отбором проб, лабораторным контролем сырья промежуточных и конечных продуктов (высокосернистая и сернистая нефть и природный газ). Эксплуатация, ремонт скважин при добыче нефти; переработка малосернистой нефти и природного газа; добыча и обработка озокерита, регенерация авто- и авиамасел; процессы, связанные с выделением и применением предельных, непредельных углеводородов (производство полиэтилена, дивинила, изопрена и других); применение бензина-растворителя."]
[35,"Химические","Редкоземельные элементы ","Производства, связанные с выделением аэрозолей редкоземельных элементов и их соединений",null,null,null,null,"35. Химические. Редкоземельные элементы. Производства, связанные с выделением аэрозолей редкоземельных элементов и их соединений."]
[36,"Химические","Ртуть и ее соединения ","Добыча и выплавка ртути и другие процессы, связанные с ее получением и очисткой от примесей; применение для извлечения газоразрядных золота и других металлов; производство ртутных термометров и люминесцентных ламп и других физических и светотехнических приборов, красок, ртутно-органических соединений; производство веществ ртутным электролизом. Работа с приборами при контакте с открытой ртутью; производство гремучей ртути; работа с ртутными выпрямителями, преобразователями электротока, насосами; применение в качестве катализаторов при химических процессах; применение ртутно-органических соединений. Производство и работа с приборами с закрытой ртутью, применение гремучей ртути в подземных выработках; работы в стоматологических кабинетах с ртутной амальгамой; производство фармацевтических и косметических препаратов, содержащих ртуть",null,null,null,null,"36. Химические. Ртуть и ее соединения. Добыча и выплавка ртути и другие процессы, связанные с ее получением и очисткой от примесей; применение для извлечения газоразрядных золота и других металлов; производство ртутных термометров и люминесцентных ламп и других физических и светотехнических приборов, красок, ртутно-органических соединений; производство веществ ртутным электролизом. Работа с приборами при контакте с открытой ртутью; производство гремучей ртути; работа с ртутными выпрямителями, преобразователями электротока, насосами; применение в качестве катализаторов при химических процессах; применение ртутно-органических соединений. Производство и работа с приборами с закрытой ртутью, применение гремучей ртути в подземных выработках; работы в стоматологических кабинетах с ртутной амальгамой; производство фармацевтических и косметических препаратов, содержащих ртуть."]
[37,"Химические","Свинец и его неорганические соединения ","Выплавка свинца из руд и концентратов; получение свинецсодержащих сплавов; рафинирование; получение сухих свинецсодержащих пигментов, белил, кронов; шоопирование свинцом в закрытых пространствах, прокатка, прессовка, освинцевание изделий; механическая и ручная обработка свинца; агломерация; заливка подшипников; производство свинцовых аккумуляторов; закалка в свинцовых ваннах; производство тертых свинецсодержащих красок, глазури и поливы, рихтовка свинецсодержащими составами; производство и обработка свинецсодержащего стекла и стекловолокна, сварка и резка поверхностей, покрытых свинецсодержащими грунтами; малярные работы при постоянном применении свинцовых красок; изготовление изделий из свинца. Производство и применение пьезокерамики и стеклокристаллического цемента. Обогащение свинцовых руд: дробление, смешение и другие процессы, связанные с образованием пыли, содержащей сульфид свинца; работы, связанные с децентрализованной плавкой небольших количеств свинца, пайка, полиграфическое производство (линотипные работы, ручной набор и другие)",null,null,null,null,"37. Химические. Свинец и его неорганические соединения. Выплавка свинца из руд и концентратов; получение свинецсодержащих сплавов; рафинирование; получение сухих свинецсодержащих пигментов, белил, кронов; шоопирование свинцом в закрытых пространствах, прокатка, прессовка, освинцевание изделий; механическая и ручная обработка свинца; агломерация; заливка подшипников; производство свинцовых аккумуляторов; закалка в свинцовых ваннах; производство тертых свинецсодержащих красок, глазури и поливы, рихтовка свинецсодержащими составами; производство и обработка свинецсодержащего стекла и стекловолокна, сварка и резка поверхностей, покрытых свинецсодержащими грунтами; малярные работы при постоянном применении свинцовых красок; изготовление изделий из свинца. Производство и применение пьезокерамики и стеклокристаллического цемента. Обогащение свинцовых руд: дробление, смешение и другие процессы, связанные с образованием пыли, содержащей сульфид свинца; работы, связанные с децентрализованной плавкой небольших количеств свинца, пайка, полиграфическое производство (линотипные работы, ручной набор и другие)."]
[38,"Химические","Селен, теллур и их соединения ","Производство и применение",null,null,null,null,"38. Химические. Селен, теллур и их соединения. Производство и применение."]
[39,"Химические","Сера и ее соединения ","Производство и применение сероорганических соединений, сульфанатных присадок, метилсернистых соединений, сернистой и серной кислот, процессы, связанные с выделением сернистого и серного ангидрида, сероводорода ",null,null,null,null,"39. Химические. Сера и ее соединения. Производство и применение сероорганических соединений, сульфанатных присадок, метилсернистых соединений, сернистой и серной кислот, процессы, связанные с выделением сернистого и серного ангидрида, сероводорода."]
[40,"Химические","Сероуглерод ","Производство и применение; процессы, связанные с его выделением",null,null,null,null,"40. Химические. Сероуглерод. Производство и применение; процессы, связанные с его выделением."]
[41,"Химические","Цианистые соединения Циановодородная кислота, ее соединения, цианамиды и другие","Производство и применение",null,null,null,null,"41. Химические. Цианистые соединения Циановодородная кислота, ее соединения, цианамиды и другие. Производство и применение."]
[42,"Химические","Синтетический каучук ","Производство синтетического каучука и его переработка (изготовление резиновых смесей, вулканизация резины)",null,null,null,null,"42. Химические. Синтетический каучук. Производство синтетического каучука и его переработка (изготовление резиновых смесей, вулканизация резины)."]
[43,"Химические","Синтетические моющие средства А ","Производство сульфанола, алкиламидов, сульфата натрия; хлорирование фракции парафиновых углеводородов и других",null,null,null,null,"43. Химические. Синтетические моющие средства А. Производство сульфанола, алкиламидов, сульфата натрия; хлорирование фракции парафиновых углеводородов и других."]
[44,"Химические","Синтетические смолы и пластические массы на основе: стирола ","Производство полимеров и сополимеров стирола, полиэфирных смол, лаков и клеев на их основе, стеклопластиков и других.",null,null,null,null,"44. Химические. Синтетические смолы и пластические массы на основе: стирола. Производство полимеров и сополимеров стирола, полиэфирных смол, лаков и клеев на их основе, стеклопластиков и других."]
[45,"Химические","Синтетические смолы и пластические массы.","Переработка смол и пластмасс. Применение смол, лаков, клеев",null,null,null,null,"45. Химические. Синтетические смолы и пластические массы. Переработка смол и пластмасс. Применение смол, лаков, клеев."]
[46,"Химические","Синтетические смолы и пластические массы на основе: фенола и формальдегида А ","Производство смол, лаков, клеев и других, переработка пресс-порошков, пресс-материалов.Применение клеев, лаков, пропиточных составов, связующих и других",null,null,null,null,"46. Химические. Синтетические смолы и пластические массы на основе: фенола и формальдегида А. Производство смол, лаков, клеев и других, переработка пресс-порошков, пресс-материалов.Применение клеев, лаков, пропиточных составов, связующих и других."]
[47,"Химические","Синтетические смолы и пластические массы на основе: кремнийорганических соединений ","Производство смол, лаков, жидких силиконов, переработка полимеров, пресс-материалов, применение лаков, смазок, смол и других",null,null,null,null,"47. Химические. Синтетические смолы и пластические массы на основе: кремнийорганических соединений. Производство смол, лаков, жидких силиконов, переработка полимеров, пресс-материалов, применение лаков, смазок, смол и других."]
[48,"Химические","Синтетические смолы и пластические массы на основе: изоцианатов А ","Производство полиуретанов, пенополиуретанов, полимочевины и других, переработка и применение",null,null,null,null,"48. Химические. Синтетические смолы и пластические массы на основе: изоцианатов А. Производство полиуретанов, пенополиуретанов, полимочевины и других, переработка и применение."]
[49,"Химические","Синтетические смолы и пластические массы на основе: фторорганических соединений ","Производство полимеров (фторопластов) и сополимеров; термическая и механическая переработка фторопластов",null,null,null,null,"49. Химические. Синтетические смолы и пластические массы на основе: фторорганических соединений. Производство полимеров (фторопластов) и сополимеров; термическая и механическая переработка фторопластов."]
[50,"Химические","Синтетические смолы и пластические массы на основе: винилхлорида и винилиденхлорида ","Производство полимеров и сополимеров, перхлорвинила, клеев, лаков и других; переработка смол и пластмасс и применение клеев, лаков и других",null,null,null,null,"50. Химические. Синтетические смолы и пластические массы на основе: винилхлорида и винилиденхлорида. Производство полимеров и сополимеров, перхлорвинила, клеев, лаков и других; переработка смол и пластмасс и применение клеев, лаков и других."]
[51,"Химические","Синтетические смолы и пластические массы на основе: акриловой и метакриловой кислот А ","Производство и переработка полимеров, сополимеров, применение эмульсий, лаков, красок и других",null,null,null,null,"51. Химические. Синтетические смолы и пластические массы на основе: акриловой и метакриловой кислот А. Производство и переработка полимеров, сополимеров, применение эмульсий, лаков, красок и других."]
[52,"Химические","Синтетические смолы и пластические массы на основе: аминокислот, двуосновных кислот, диаминов А","Производство и переработка полиамидов; применение клеев и других ",null,null,null,null,"52. Химические. Синтетические смолы и пластические массы на основе: аминокислот, двуосновных кислот, диаминов А. Производство и переработка полиамидов; применение клеев и других."]
[53,"Химические","Синтетические смолы и пластические массы на основе: эпихлоргидрина А ","Производство и применение эпоксидных смол и пластмасс на их основе, компаундов",null,null,null,null,"53. Химические. Синтетические смолы и пластические массы на основе: эпихлоргидрина А. Производство и применение эпоксидных смол и пластмасс на их основе, компаундов."]
[54,"Химические","Синтетические смолы и пластические массы на основе: алифатических и непредельных углеводородов (полиэтилена, полипропилена)","алифатических и непредельных углеводородов (полиэтилена, полипропилена)",null,null,null,null,"54. Химические. Синтетические смолы и пластические массы на основе: алифатических и непредельных углеводородов (полиэтилена, полипропилена). алифатических и непредельных углеводородов (полиэтилена, полипропилена)."]
[55,"Химические","Сланцевые смолы А ","Производство и применение; производства, связанные с их выделением",null,null,null,null,"55. Химические. Сланцевые смолы А. Производство и применение; производства, связанные с их выделением."]
[56,"Химические","Сурьма и ее соединения ","Получение, переработка и применение ",null,null,null,null,"56. Химические. Сурьма и ее соединения. Получение, переработка и применение."]
[57,"Химические","Таллий и его соединения ","Производство и применение; выращивание монокристаллов",null,null,null,null,"57. Химические. Таллий и его соединения. Производство и применение; выращивание монокристаллов."]
[58,"Химические","Тетраэтилсвинец ","Производство тетраэтилсвинца и этиловой жидкости, смешение этиловой жидкости с горючим. Применение этилированного бензина: испытание, ремонт, разборка и промывка авиа- и автомоторов, заправка самолетов и других машин, слив, налив этилированного бензина на немеханизированных станциях, очистка установок и тары на нефтебазах, бензохранилищах, колонках",null,null,null,null,"58. Химические. Тетраэтилсвинец. Производство тетраэтилсвинца и этиловой жидкости, смешение этиловой жидкости с горючим. Применение этилированного бензина: испытание, ремонт, разборка и промывка авиа- и автомоторов, заправка самолетов и других машин, слив, налив этилированного бензина на немеханизированных станциях, очистка установок и тары на нефтебазах, бензохранилищах, колонках."]
[59,"Химические","Металлы А: кобальт, ванадий, молибден, титан, цирконий, вольфрам и его соединения ","Получение и применение кобальта и его соединенийПолучение пятиокиси ванадия: производство феррованадия; переработка ванадийсодержащих шлаков; производство и применение молибдена, вольфрама и их соединений, обработка титана, восстановление металлического титана и его соединений; получение и применение вольфрамо-кобальтовых сплавов, титано-кобальтовых сплавов, металлопорошков циркония и его соединений",null,null,null,null,"59. Химические. Металлы А: кобальт, ванадий, молибден, титан, цирконий, вольфрам и его соединения. Получение и применение кобальта и его соединенийПолучение пятиокиси ванадия: производство феррованадия; переработка ванадийсодержащих шлаков; производство и применение молибдена, вольфрама и их соединений, обработка титана, восстановление металлического титана и его соединений; получение и применение вольфрамо-кобальтовых сплавов, титано-кобальтовых сплавов, металлопорошков циркония и его соединений."]
[60,"Химические","Урсол, урсоловые красители и окисляемые красители А","Производство и применение, крашение мехов ",null,null,null,null,"60. Химические. Урсол, урсоловые красители и окисляемые красители А. Производство и применение, крашение мехов."]
[61,"Химические","Фармакологические средства ","Производство и изготовление готовых лекарственных форм морфина и его производных, витаминов, сульфаниламидных, пиразолоновых, противоопухолевых и гормональных препаратов, нейролептиков, антикоагулянтов, анестетиков (фторотан), применение в анестезиологической практике; изготовление лекарственных препаратов в аптеках, применение нейролептиков в психиатрической практике",null,null,null,null,"61. Химические. Фармакологические средства. Производство и изготовление готовых лекарственных форм морфина и его производных, витаминов, сульфаниламидных, пиразолоновых, противоопухолевых и гормональных препаратов, нейролептиков, антикоагулянтов, анестетиков (фторотан), применение в анестезиологической практике; изготовление лекарственных препаратов в аптеках, применение нейролептиков в психиатрической практике."]
[62,"Химические","Фенолы и их производные ","Производство и применение ",null,null,null,null,"62. Химические. Фенолы и их производные. Производство и применение."]
[63,"Химические","Формальдегид А и другие альдегиды жирного ряда","Производство и применение; процессы, связанные с их выделением ",null,null,null,null,"63. Химические. Формальдегид А и другие альдегиды жирного ряда. Производство и применение; процессы, связанные с их выделением."]
[64,"Химические","Фосфор и его соединения ","Производство и применение желтого фосфора, его соединений, фосфорорганических соединений, в том числе пластификаторовПроизводство и применение красного фосфора; добыча, производство и применение фосфатов",null,null,null,null,"64. Химические. Фосфор и его соединения. Производство и применение желтого фосфора, его соединений, фосфорорганических соединений, в том числе пластификаторовПроизводство и применение красного фосфора; добыча, производство и применение фосфатов."]
[65,"Химические","Фталевая кислота, фталевый ангидрид и их производные","Производство и применение ",null,null,null,null,"65. Химические. Фталевая кислота, фталевый ангидрид и их производные. Производство и применение."]
[66,"Химические","Фтор и его соединения ","Производство и применение фтора и его соединений. Электролизное получение алюминия, добыча и применение плавикового шпата, процессы с выделением фтора и его соединений",null,null,null,null,"66. Химические. Фтор и его соединения. Производство и применение фтора и его соединений. Электролизное получение алюминия, добыча и применение плавикового шпата, процессы с выделением фтора и его соединений."]
[67,"Химические","Фураны и их производные: фурфурол, тетрагидрофуран и другие","Производство и применение ",null,null,null,null,"67. Химические. Фураны и их производные: фурфурол, тетрагидрофуран и другие. Производство и применение."]
[68,"Химические","Хлор и его соединения, хлорсодержащие смеси","Производство и применение; процессы, связанные с их выделением ",null,null,null,null,"68. Химические. Хлор и его соединения, хлорсодержащие смеси. Производство и применение; процессы, связанные с их выделением."]
[69,"Химические","Хлорнафталин и его соединения (галовакс, хлорнафталины А и их соединения, гидрооксинафталин и нафтол)","Производство и применение ",null,null,null,null,"69. Химические. Хлорнафталин и его соединения (галовакс, хлорнафталины А и их соединения, гидрооксинафталин и нафтол). Производство и применение."]
[70,"Химические","Хром А, хромовая кислота А, их соединения и сплавы ","Производство и применение (включая вещества, содержащие соединения хрома в виде побочных компонентов)",null,null,null,null,"70. Химические. Хром А, хромовая кислота А, их соединения и сплавы. Производство и применение (включая вещества, содержащие соединения хрома в виде побочных компонентов)."]
[71,"Биологические","Антибиотики А ","Производство и применение в медицинской практике и аптечных учреждениях",null,null,null,null,"71. Биологические. Антибиотики А. Производство и применение в медицинской практике и аптечных учреждениях."]
[72,"Биологические","Грибы-продуценты, белково-витаминные концентраты (БВК), кормовые дрожжи, комбикорма А","Производство и применение продуктов микробиологического синтеза ",null,null,null,null,"72. Биологические. Грибы-продуценты, белково-витаминные концентраты (БВК), кормовые дрожжи, комбикорма А. Производство и применение продуктов микробиологического синтеза."]
[73,"Биологические","Ферментные препараты, биостимуляторы А ","Производство и применение в медицинской практике, аптечных учреждениях, сельском хозяйстве и других отраслях народного хозяйства",null,null,null,null,"73. Биологические. Ферментные препараты, биостимуляторы А. Производство и применение в медицинской практике, аптечных учреждениях, сельском хозяйстве и других отраслях народного хозяйства."]
[74,"Биологические","Аллергены для диагностики и лечения, препараты крови А, иммунобиологические препараты","Производство ",null,null,null,null,"74. Биологические. Аллергены для диагностики и лечения, препараты крови А, иммунобиологические препараты. Производство."]
[75,"Биологические","Инфицированный материал и материал, зараженный гельминтами","Работа в контакте с инфицированным материалом и материалом, зараженным гельминтами, с инфекционными больными ",null,null,null,null,"75. Биологические. Инфицированный материал и материал, зараженный гельминтами. Работа в контакте с инфицированным материалом и материалом, зараженным гельминтами, с инфекционными больными."]
[76,"Биологические","Возбудители бруцеллеза ","Животноводческие хозяйства (независимо от эпизоотического состояния по бруцеллезу), предприятия по переработке сырья и продуктов животного происхождения",null,null,null,null,"76. Биологические. Возбудители бруцеллеза. Животноводческие хозяйства (независимо от эпизоотического состояния по бруцеллезу), предприятия по переработке сырья и продуктов животного происхождения."]
[77,"Биологические","Возбудитель Ку-лихорадки ","Животноводческие хозяйства на территориях, неблагополучных по Ку-лихорадке, предприятия, перерабатывающие сырье и продукты от больных Ку-лихорадкой сельскохозяйственных животных",null,null,null,null,"77. Биологические. Возбудитель Ку-лихорадки. Животноводческие хозяйства на территориях, неблагополучных по Ку-лихорадке, предприятия, перерабатывающие сырье и продукты от больных Ку-лихорадкой сельскохозяйственных животных."]
[78,"Промышленные аэрозоли","Абразивные и абразивсодержащие ","Производство, обработка и применение абразивов (электрокорундов - нормального, белого, хромистого, монокорунда), карбида, бора, эльбора, обработка и применение карбида кремния и других",null,null,null,null,"78. Промышленные аэрозоли. Абразивные и абразивсодержащие. Производство, обработка и применение абразивов (электрокорундов - нормального, белого, хромистого, монокорунда), карбида, бора, эльбора, обработка и применение карбида кремния и других."]
[79,"Промышленные аэрозоли","Кремнийсодержащие (свободная и аморфная двуокись кремния)","Разведка, горнопроходческие работы, открытая и подземная добыча рудных и нерудных ископаемых, угля, обогащение и переработка их. Производство кремния, стекла, динаса, аэросила, карбида кремния, кремнемедистого сплава, силумина и других; литейное производство (землеприготовление, формовка, выбивка, обрубка, зачистка, очистка литья). Пескоструйные работы",null,null,null,null,"79. Промышленные аэрозоли. Кремнийсодержащие (свободная и аморфная двуокись кремния). Разведка, горнопроходческие работы, открытая и подземная добыча рудных и нерудных ископаемых, угля, обогащение и переработка их. Производство кремния, стекла, динаса, аэросила, карбида кремния, кремнемедистого сплава, силумина и других; литейное производство (землеприготовление, формовка, выбивка, обрубка, зачистка, очистка литья). Пескоструйные работы."]
[80,"Промышленные аэрозоли","Металлы и их сплавы ","Сухая шлифовка металлов и сплавов; процессы напыления металлов, получение металлических порошков и изделий из них",null,null,null,null,"80. Промышленные аэрозоли. Металлы и их сплавы. Сухая шлифовка металлов и сплавов; процессы напыления металлов, получение металлических порошков и изделий из них."]
[81,"Промышленные аэрозоли","Силикатные и силикатсодержащие: а) асбестосодержащие (асбеста 10% и более)","Разведка, добыча и переработка асбестовых руд и асбеста. Получение и переработка искусственного асбеста ",null,null,null,null,"81. Промышленные аэрозоли. Силикатные и силикатсодержащие: а) асбестосодержащие (асбеста 10% и более). Разведка, добыча и переработка асбестовых руд и асбеста. Получение и переработка искусственного асбеста."]
[82,"Промышленные аэрозоли","Силикатные и силикатсодержащие: б) асбестосодержащие (асбеста не более 10%)","Производство, переработка изделий из асбестоцемента, асбестобакелита, волокнина, асбесторезины ",null,null,null,null,"82. Промышленные аэрозоли. Силикатные и силикатсодержащие: б) асбестосодержащие (асбеста не более 10%). Производство, переработка изделий из асбестоцемента, асбестобакелита, волокнина, асбесторезины."]
[83,"Промышленные аэрозоли","Силикатные и силикатсодержащие: в) другие силикатные и силикатсодержащие ","Производство и переработка стеклянного и минерального волокна, цемента, глины, шамота, боксита, нефелиновых сиенитов, дистенсиллиманита, оливина, апатитов, слюды, дунита, хроммагнезита, форстерита, известняков, барита, котленита, инфузорной земли, туфалов, пемзы, перлита, железорудных концентратов и агломерата в металлургии и других",null,null,null,null,"83. Промышленные аэрозоли. Силикатные и силикатсодержащие: в) другие силикатные и силикатсодержащие. Производство и переработка стеклянного и минерального волокна, цемента, глины, шамота, боксита, нефелиновых сиенитов, дистенсиллиманита, оливина, апатитов, слюды, дунита, хроммагнезита, форстерита, известняков, барита, котленита, инфузорной земли, туфалов, пемзы, перлита, железорудных концентратов и агломерата в металлургии и других."]
[84,"Промышленные аэрозоли","Углеродные ","Добыча, переработка и применение угля Производство и применение черной сажи, искусственного графита, кокса (нефтяного, пекового, сланцевого и других). Обработка и применение природных и искусственных алмазов",null,null,null,null,"84. Промышленные аэрозоли. Углеродные. Добыча, переработка и применение угля Производство и применение черной сажи, искусственного графита, кокса (нефтяного, пекового, сланцевого и других). Обработка и применение природных и искусственных алмазов."]
[85,"Промышленные аэрозоли","Пыль растительного и животного происхождения ","Переработка хлопка, льна, конопли, шерсти, кенафа, джута, зерна, табака, древесины, торфа, хмеля. Производство бумаги, натурального шелка и других материалов",null,null,null,null,"85. Промышленные аэрозоли. Пыль растительного и животного происхождения. Переработка хлопка, льна, конопли, шерсти, кенафа, джута, зерна, табака, древесины, торфа, хмеля. Производство бумаги, натурального шелка и других материалов."]
[86,"Промышленные аэрозоли","Пыль неорганических люминофоров (в том числе с содержанием кадмия менее 5%)","Производство и применение ",null,null,null,null,"86. Промышленные аэрозоли. Пыль неорганических люминофоров (в том числе с содержанием кадмия менее 5%). Производство и применение."]
[87,"Промышленные аэрозоли","Сварочные аэрозоли ","Дуговая плазменная, газопламенная сварка, наплавка и резка, контактная стыковая сварка (оплавлением), электрошлаковая сварка металлов",null,null,null,null,"87. Промышленные аэрозоли. Сварочные аэрозоли. Дуговая плазменная, газопламенная сварка, наплавка и резка, контактная стыковая сварка (оплавлением), электрошлаковая сварка металлов."]
[88,"Промышленные аэрозоли","Сварочные аэрозоли: а) содержащие марганец (20% и более), никель, хром, соединения фтора, бериллий, свинец ","Сварка, наплавка и резка средне- и высоколегированных, в том числе нержавеющих сталей, сварка и наплавка чугуна никелевыми и никель-медными электродами и проволоками, сварка и резка бериллия и его сплавов",null,null,null,null,"88. Промышленные аэрозоли. Сварочные аэрозоли: а) содержащие марганец (20% и более), никель, хром, соединения фтора, бериллий, свинец. Сварка, наплавка и резка средне- и высоколегированных, в том числе нержавеющих сталей, сварка и наплавка чугуна никелевыми и никель-медными электродами и проволоками, сварка и резка бериллия и его сплавов."]
[89,"Промышленные аэрозоли","Сварочные аэрозоли: б) содержащие марганец (до 20%), окислы железа, алюминий, магний, титан медь, цинк, молибден, ванадий, вольфрам)","Сварка, наплавка и резка углеродистых, в том числе оцинкованных сталей, алюминия, меди, титана и сплавов на их основе, сварка и наплавка чугуна железными и железно-ванадиевыми электродами и проволоками, его резка ",null,null,null,null,"89. Промышленные аэрозоли. Сварочные аэрозоли: б) содержащие марганец (до 20%), окислы железа, алюминий, магний, титан медь, цинк, молибден, ванадий, вольфрам). Сварка, наплавка и резка углеродистых, в том числе оцинкованных сталей, алюминия, меди, титана и сплавов на их основе, сварка и наплавка чугуна железными и железно-ванадиевыми электродами и проволоками, его резка."]
[90,"Физические","Ионизирующие излучения. Радиоактивные вещества и источники ионизирующих излучений","Все виды работ с радиоактивными веществами и источниками ионизирующих излучений ",null,null,null,null,"90. Физические. Ионизирующие излучения. Радиоактивные вещества и источники ионизирующих излучений. Все виды работ с радиоактивными веществами и источниками ионизирующих излучений."]
[91,"Физические","Неионизирующие излучения: лазерные излучения","Все виды работ с лазерами ",null,null,null,null,"91. Физические. Неионизирующие излучения: лазерные излучения. Все виды работ с лазерами."]
[92,"Физические","Неионизирующие излучения: электромагнитные (электрические и магнитные) поля радиочастот в диапазоне 30 МГц - 300 ГГц (ОВЧ, УВЧ, СВЧ, КВЧ) и ниже 30 мГц (ВЧ, СЧ, НЧ, ОНЧ, ИНЧ, СНЧ, КНЧ)","Все виды работ с источниками электромагнитной энергии указанного диапазона ",null,null,null,null,"92. Физические. Неионизирующие излучения: электромагнитные (электрические и магнитные) поля радиочастот в диапазоне 30 МГц - 300 ГГц (ОВЧ, УВЧ, СВЧ, КВЧ) и ниже 30 мГц (ВЧ, СЧ, НЧ, ОНЧ, ИНЧ, СНЧ, КНЧ). Все виды работ с источниками электромагнитной энергии указанного диапазона."]
[93,"Физические","Постоянные электрические и постоянные магнитные поля","Все виды работ с источниками постоянных электрических и магнитных полей ",null,null,null,null,"93. Физические. Постоянные электрические и постоянные магнитные поля. Все виды работ с источниками постоянных электрических и магнитных полей."]
[94,"Физические","Производственная вибрация","Все виды трудовой деятельности, связанные с воздействием локальной или общей вибрации",null,null,null,null,"94. Физические. Производственная вибрация. Все виды трудовой деятельности, связанные с воздействием локальной или общей вибрации"]
[95,"Физические","Производственный шум ","Все виды трудовой деятельности, связанные с воздействием интенсивного производственного шума, а также со значительным напряжением слухового анализатора от 81 дБ и выше",null,null,null,null,"95. Физические. Производственный шум . Все виды трудовой деятельности, связанные с воздействием интенсивного производственного шума, а также со значительным напряжением слухового анализатора от 81 дБ и выше"]
[96,"Физические","Ультразвук (контактная передача)","Работа с ультразвуковыми дефектоскопами и медицинской аппаратурой",null,null,null,null,"96. Физические. Ультразвук (контактная передача). Работа с ультразвуковыми дефектоскопами и медицинской аппаратурой"]
[97,"Физические","Повышенное атмосферное давление","Работа в кессонах, барокамерах, водолазные работы ",null,null,null,null,"97. Физические. Повышенное атмосферное давление. Работа в кессонах, барокамерах, водолазные работы "]
[98,"Физические","Пониженная температура ","Работа при постоянно пониженной температуре воздуха рабочей зоны в производственных помещениях (ниже допустимых значений по Санитарным нормам микроклимата производственных помещений, утвержденным Минздравом СССР)",null,null,null,null,"98. Физические. Пониженная температура . Работа при постоянно пониженной температуре воздуха рабочей зоны в производственных помещениях (ниже допустимых значений по Санитарным нормам микроклимата производственных помещений, утвержденным Минздравом СССР)"]
[99,"Физические","Повышенная температура, интенсивное тепловое излучение ","Все виды работ при постоянно повышенной температуре (превышающей допустимое значение по Санитарным нормам микроклимата производственных помещений, утвержденным Минздравом СССР) и интенсивном тепловом облучении (свыше 140 Вт/кв.м) в рабочей зоне",null,null,null,null,"99. Физические. Повышенная температура, интенсивное тепловое излучение . Все виды работ при постоянно повышенной температуре (превышающей допустимое значение по Санитарным нормам микроклимата производственных помещений, утвержденным Минздравом СССР) и интенсивном тепловом облучении (свыше 140 Вт/кв.м) в рабочей зоне"]
[100,"Физические","Повышенное напряжение зрения ","Все виды работ, связанные с повышенным напряжением зрения: а) прецизионные работы 1 (с объектом до 0,15 мм) и П (с объектом от 0,15 до 0,3 мм) разрядов точности по СНИП - 1980 г.",null,null,null,null,"100. Физические. Повышенное напряжение зрения . Все виды работ, связанные с повышенным напряжением зрения: а) прецизионные работы 1 (с объектом до 0,15 мм) и П (с объектом от 0,15 до 0,3 мм) разрядов точности по СНИП - 1980 г."]
[101,"Физические","Повышенное напряжение зрения ","Все виды работ, связанные с повышенным напряжением зрения: б) зрительно напряженные работы - работы Ш и 1У (с объектом 0,5-1 мм) разрядов точности по СНИП и работы, связанные со слежением за экраном дисплеев и другими средствами отображения информации",null,null,null,null,"101. Физические. Повышенное напряжение зрения . Все виды работ, связанные с повышенным напряжением зрения: б) зрительно напряженные работы - работы Ш и 1У (с объектом 0,5-1 мм) разрядов точности по СНИП и работы, связанные со слежением за экраном дисплеев и другими средствами отображения информации"]
[102,"Физические","Физические перегрузки ","Работы, связанные с перемещением грузов вручную (груз в кг) или с приложением усилий (в Н; 1Н=0,1 кгс) в течение смены (для мужчин):выполняемые постоянно - более 30 кг (или более 300 Н);величина массы груза, перемещаемого или поднимаемого вручную за смену (сменный грузооборот) при подъеме с рабочей поверхности - более 12 т,при подъеме с пола или уровня значительно ниже рабочей поверхности - более 5 т",null,null,null,null,"102. Физические. Физические перегрузки . Работы, связанные с перемещением грузов вручную (груз в кг) или с приложением усилий (в Н; 1Н=0,1 кгс) в течение смены (для мужчин):выполняемые постоянно - более 30 кг (или более 300 Н);величина массы груза, перемещаемого или поднимаемого вручную за смену (сменный грузооборот) при подъеме с рабочей поверхности - более 12 т,при подъеме с пола или уровня значительно ниже рабочей поверхности - более 5 т"]
[103,"Физические","Физические перегрузки ","Работы, связанные с длительным пребыванием в вынужденной позе, в том числе стоя",null,null,null,null,"103. Физические. Физические перегрузки . Работы, связанные с длительным пребыванием в вынужденной позе, в том числе стоя"]
[104,"Физические","Физические перегрузки ","Работы, связанные с локальным мышечным напряжением, преимущественно мышц кисти и предплечья",null,null,null,null,"104. Физические. Физические перегрузки . Работы, связанные с локальным мышечным напряжением, преимущественно мышц кисти и предплечья"]
[105,"Физические","Физические перегрузки ","Периодическое удержание на весу обеими руками груза массой более 10 кг или одной рукой более 5 кг (для мужчин)",null,null,null,null,"105. Физические. Физические перегрузки . Периодическое удержание на весу обеими руками груза массой более 10 кг или одной рукой более 5 кг (для мужчин)"]
[106,"Физические","Физические перегрузки ","Работы, связанные с периодическими выраженными наклонами тела (по визуальной оценке более 30 градусов от вертикали) более 300 раз за смену;",null,null,null,null,"106. Физические. Физические перегрузки . Работы, связанные с периодическими выраженными наклонами тела (по визуальной оценке более 30 градусов от вертикали) более 300 раз за смену;"]
[107,"Физические","Физические перегрузки ","пребывание более 50% времени смены в вынужденной рабочей позе (на коленях, на корточках, лежа, с наклоном вперед, в подвеске, стоя)",null,null,null,null,"107. Физические. Физические перегрузки . пребывание более 50% времени смены в вынужденной рабочей позе (на коленях, на корточках, лежа, с наклоном вперед, в подвеске, стоя)"]
[108,"Физические","Физические перегрузки ","Работы, связанные с перенапряжением голосового аппарата: преподавательская, дикторская, вокально-разговорные виды актерской работы, работа на телефонной станции ",null,null,null,null,"108. Физические. Физические перегрузки . Работы, связанные с перенапряжением голосового аппарата: преподавательская, дикторская, вокально-разговорные виды актерской работы, работа на телефонной станции "]
[109,"Работы, виды профдеятельности и должности","Работы на высоте, работы верхолазные и связанные с подъемом на высоту, а также работы по обслуживанию подъемных сооружений",null,null,null,null,null,"109. Работы, виды профдеятельности и должности. Работы на высоте, работы верхолазные и связанные с подъемом на высоту, а также работы по обслуживанию подъемных сооружений."]
[110,"Работы, виды профдеятельности и должности","Персонал, обслуживающий действующие электроустановки напряжением 127 В и выше, производящий на них оперативные переключения, выполняющий на этих электроустановках наладочные, монтажные работы и высоковольтные испытания",null,null,null,null,null,"110. Работы, виды профдеятельности и должности. Персонал, обслуживающий действующие электроустановки напряжением 127 В и выше, производящий на них оперативные переключения, выполняющий на этих электроустановках наладочные, монтажные работы и высоковольтные испытания."]
[111,"Работы, виды профдеятельности и должности","Работы в государственной лесной охране, по валке, сплаву, транспортировке и первичной обработке леса",null,null,null,null,null,"111. Работы, виды профдеятельности и должности. Работы в государственной лесной охране, по валке, сплаву, транспортировке и первичной обработке леса."]
[112,"Работы, виды профдеятельности и должности","Работы в отдаленных районах и под землей","Работы в нефтяной и газовой промышленности, в том числе вахтовым методом, в районах Крайнего Севера и приравненных к ним местностях, пустынных и других отдаленных и недостаточно обжитых районах, а также при морском бурении.",null,null,null,null,"112. Работы, виды профдеятельности и должности. Работы в отдаленных районах и под землей. Работы в нефтяной и газовой промышленности, в том числе вахтовым методом, в районах Крайнего Севера и приравненных к ним местностях, пустынных и других отдаленных и недостаточно обжитых районах, а также при морском бурении."]
[113,"Работы, виды профдеятельности и должности","Работы в отдаленных районах и под землей","Все виды подземных работ.",null,null,null,null,"113. Работы, виды профдеятельности и должности. Работы в отдаленных районах и под землей. Все виды подземных работ."]
[114,"Работы, виды профдеятельности и должности","Работы в отдаленных районах и под землей","Работы на гидрометеорологических станциях, сооружениях связи, расположенных в пустынных, таежных и других отдаленных и недостаточно обжитых районах, в трудных климатогеографических условиях.",null,null,null,null,"114. Работы, виды профдеятельности и должности. Работы в отдаленных районах и под землей. Работы на гидрометеорологических станциях, сооружениях связи, расположенных в пустынных, таежных и других отдаленных и недостаточно обжитых районах, в трудных климатогеографических условиях."]
[115,"Работы, виды профдеятельности и должности","Работы в отдаленных районах и под землей","Геолого-разведочные, топографические, строительные и другие работы в отдаленных, малонаселенных, труднодоступных, тундровых, заболоченных и горных районах страны (в том числе вахтово-экспедиционным методом).",null,null,null,null,"115. Работы, виды профдеятельности и должности. Работы в отдаленных районах и под землей. Геолого-разведочные, топографические, строительные и другие работы в отдаленных, малонаселенных, труднодоступных, тундровых, заболоченных и горных районах страны (в том числе вахтово-экспедиционным методом)."]
[116,"Работы, виды профдеятельности и должности","Работы в отдаленных районах и под землей","Работа по организованному набору и общественному призыву в районах Крайнего Севера и приравненных к ним местностях.",null,null,null,null,"116. Работы, виды профдеятельности и должности. Работы в отдаленных районах и под землей. Работа по организованному набору и общественному призыву в районах Крайнего Севера и приравненных к ним местностях."]
[117,"Работы, виды профдеятельности и должности","Аппаратчики, обслуживающие сосуды под давлением",null,null,null,null,null,"117. Работы, виды профдеятельности и должности. Аппаратчики, обслуживающие сосуды под давлением."]
[118,"Работы, виды профдеятельности и должности","Машинисты (кочегары), операторы котельной, работники службы газнадзора",null,null,null,null,null,"118. Работы, виды профдеятельности и должности. Машинисты (кочегары), операторы котельной, работники службы газнадзора."]
[119,"Работы, виды профдеятельности и должности","Работы, связанные с применением взрывчатых материалов, работы во взрыво- и пожароопасных производствах",null,null,null,null,null,"119. Работы, виды профдеятельности и должности. Работы, связанные с применением взрывчатых материалов, работы во взрыво- и пожароопасных производствах."]
[120,"Работы, виды профдеятельности и должности","Работники военизированной охраны, служб спецсвязи аппарата инкассации, работники системы Центрального банка Российской Федерации и других ведомств и служб, которым разрешено ношение и применение огнестрельного оружия",null,null,null,null,null,"120. Работы, виды профдеятельности и должности. Работники военизированной охраны, служб спецсвязи аппарата инкассации, работники системы Центрального банка Российской Федерации и других ведомств и служб, которым разрешено ношение и применение огнестрельного оружия."]
[121,"Работы, виды профдеятельности и должности","Газоспасательная служба, добровольные газоспасательные дружины, военизированные части и отряды по предупреждению возникновения и ликвидации открытых газовых и нефтяных фонтанов, военизированные горные, горноспасательные команды, пожарная охрана, службы экстренной медицинской помощи, специализированные медицинские бригады постоянной готовности",null,null,null,null,null,"121. Работы, виды профдеятельности и должности. Газоспасательная служба, добровольные газоспасательные дружины, военизированные части и отряды по предупреждению возникновения и ликвидации открытых газовых и нефтяных фонтанов, военизированные горные, горноспасательные команды, пожарная охрана, службы экстренной медицинской помощи, специализированные медицинские бригады постоянной готовности."]
[122,"Работы, виды профдеятельности и должности","Работы на токарных, фрезерных и других станках, штамповочных прессах",null,null,null,null,null,"122. Работы, виды профдеятельности и должности. Работы на токарных, фрезерных и других станках, штамповочных прессах."]
[123,"Работы, виды профдеятельности и должности","Работы, непосредственно связанные с движением транспорта, в том числе внутризаводского",null,null,null,null,null,"123. Работы, виды профдеятельности и должности. Работы, непосредственно связанные с движением транспорта, в том числе внутризаводского."]
[124,"Работы, виды профдеятельности и должности","Водители авто-, мототранспортных средств и городского электротранспорта, в том числе:","мотоциклов, мотороллеров, мотонарт всех типов и марок (категория А) \r\nмини-тракторов и мотоблоков (прошедших регистрацию в \r\nГосударственной инспекции безопасности дорожного движения),\r\nавтомобилей с ручным управлением для инвалидов всех категорий (инвалидов ВОВ и других инвалидов из числа военнослужащих, инвалидов \r\nтруда и инвалидов с детства).",null,null,null,null,"124. Работы, виды профдеятельности и должности. Водители авто-, мототранспортных средств и городского электротранспорта, в том числе: мотоциклов, мотороллеров, мотонарт всех типов и марок (категория А) \r\nмини-тракторов и мотоблоков (прошедших регистрацию в \r\nГосударственной инспекции безопасности дорожного движения),\r\nавтомобилей с ручным управлением для инвалидов всех категорий (инвалидов ВОВ и других инвалидов из числа военнослужащих, инвалидов \r\nтруда и инвалидов с детства)."]
[125,"Работы, виды профдеятельности и должности","Водители авто-, мототранспортных средств и городского электротранспорта, в том числе:","мопедов всех типов и марок (категория А).",null,null,null,null,"125. Работы, виды профдеятельности и должности. Водители авто-, мототранспортных средств и городского электротранспорта, в том числе: мопедов всех типов и марок (категория А)."]
[126,"Работы, виды профдеятельности и должности","Водители авто-, мототранспортных средств и городского электротранспорта, в том числе:","автомобилей, полная масса которых не превышает 3500 кг, а число сидячих мест, помимо сиденья водителя, - 8 (категория В), с правом работы по найму, тракторов и других самоходных машин.",null,null,null,null,"126. Работы, виды профдеятельности и должности. Водители авто-, мототранспортных средств и городского электротранспорта, в том числе: автомобилей, полная масса которых не превышает 3500 кг, а число сидячих мест, помимо сиденья водителя, - 8 (категория В), с правом работы по найму, тракторов и других самоходных машин."]
[127,"Работы, виды профдеятельности и должности","Водители авто-, мототранспортных средств и городского электротранспорта, в том числе:","автомобилей, полная масса которых не превышает 3500 кг, а число сидячих мест, помимо сиденья водителя, - 8 (категория В), без права работы на найму.",null,null,null,null,"127. Работы, виды профдеятельности и должности. Водители авто-, мототранспортных средств и городского электротранспорта, в том числе: автомобилей, полная масса которых не превышает 3500 кг, а число сидячих мест, помимо сиденья водителя, - 8 (категория В), без права работы на найму."]
[128,"Работы, виды профдеятельности и должности","Водители авто-, мототранспортных средств и городского электротранспорта, в том числе:","автомобилей, предназначенных для перевозки грузов, полная масса которых превышает 3500 кг (категория С).",null,null,null,null,"128. Работы, виды профдеятельности и должности. Водители авто-, мототранспортных средств и городского электротранспорта, в том числе: автомобилей, предназначенных для перевозки грузов, полная масса которых превышает 3500 кг (категория С)."]
[129,"Работы, виды профдеятельности и должности","Водители авто-, мототранспортных средств и городского электротранспорта, в том числе:","автомобилей, предназначенных для перевозки пассажиров и имеющих более 8 мест, помимо сиденья водителя (категория Д), составов транспортных средств с тягачами, относящимися к категориям средств В, С или Д (категория Е).",null,null,null,null,"129. Работы, виды профдеятельности и должности. Водители авто-, мототранспортных средств и городского электротранспорта, в том числе: автомобилей, предназначенных для перевозки пассажиров и имеющих более 8 мест, помимо сиденья водителя (категория Д), составов транспортных средств с тягачами, относящимися к категориям средств В, С или Д (категория Е)."]
[130,"Работы, виды профдеятельности и должности","Водители авто-, мототранспортных средств и городского электротранспорта, в том числе:","трамвая, троллейбуса.",null,null,null,null,"130. Работы, виды профдеятельности и должности. Водители авто-, мототранспортных средств и городского электротранспорта, в том числе: трамвая, троллейбуса."]
[131,"Работы, виды профдеятельности и должности","Водители авто-, мототранспортных средств и городского электротранспорта, в том числе:","мотоколясок для инвалидов.",null,null,null,null,"131. Работы, виды профдеятельности и должности. Водители авто-, мототранспортных средств и городского электротранспорта, в том числе: мотоколясок для инвалидов."]
[132,"Работы, виды профдеятельности и должности","Работы, непосредственно связанные с движением поездов:","работники профессий и должностей согласно перечню профессий и должностей \r\nработников, обеспечивающих движение поездов, подлежащих обязательным предварительным, при поступлении на работу, и периодическим медицинским осмотрам, утвержденному постановлением Правительства Российской Федерации от 8 сентября 1999 года № 1020, за исключением работников группы машинистов, водителей и их помощников.",null,null,null,null,"132. Работы, виды профдеятельности и должности. Работы, непосредственно связанные с движением поездов: работники профессий и должностей согласно перечню профессий и должностей \r\nработников, обеспечивающих движение поездов, подлежащих обязательным предварительным, при поступлении на работу, и периодическим медицинским осмотрам, утвержденному постановлением Правительства Российской Федерации от 8 сентября 1999 года № 1020, за исключением работников группы машинистов, водителей и их помощников."]
[133,"Работы, виды профдеятельности и должности","Работы, непосредственно связанные с движением поездов:","работники, связанные с выходом  на действующие железнодорожные  \r\nпути, за исключением водителей  транспортных средств.",null,null,null,null,"133. Работы, виды профдеятельности и должности. Работы, непосредственно связанные с движением поездов: работники, связанные с выходом  на действующие железнодорожные  \r\nпути, за исключением водителей  транспортных средств."]
[134,"Работы, виды профдеятельности и должности","Работы, непосредственно связанные с движением поездов:","работники группы машинистов, водителей и их помощников, предусмотренные перечнем, утвержденным постановлением Правительства Российской Федерации от 8 сентября 1999 года № 1020, водители других транспортных средств, связанные с выходом на действующие железнодорожные пути.",null,null,null,null,"134. Работы, виды профдеятельности и должности. Работы, непосредственно связанные с движением поездов: работники группы машинистов, водителей и их помощников, предусмотренные перечнем, утвержденным постановлением Правительства Российской Федерации от 8 сентября 1999 года № 1020, водители других транспортных средств, связанные с выходом на действующие железнодорожные пути."]
[135,"Работы, виды профдеятельности и должности","Другие виды профессиональной деятельности и категории должностей","работники предприятий пищевых отраслей промышленности, общественного питания и торговли, молочных ферм, молочных кухонь, раздаточных пунктов, баз и складов продовольственных товаров, имеющие контакт с пищевыми продуктами в процессе их производства, хранения и реализации, в том числе работники по санитарной обработке и ремонту инвентаря, оборудования, а также лица, имеющие непосредственный контакт с пищевыми продуктами при их транспортировке на всех видах транспорта.",null,null,null,null,"135. Работы, виды профдеятельности и должности. Другие виды профессиональной деятельности и категории должностей. работники предприятий пищевых отраслей промышленности, общественного питания и торговли, молочных ферм, молочных кухонь, раздаточных пунктов, баз и складов продовольственных товаров, имеющие контакт с пищевыми продуктами в процессе их производства, хранения и реализации, в том числе работники по санитарной обработке и ремонту инвентаря, оборудования, а также лица, имеющие непосредственный контакт с пищевыми продуктами при их транспортировке на всех видах транспорта."]
[136,"Работы, виды профдеятельности и должности","Другие виды профессиональной деятельности и категории должностей","учащиеся техникумов, училищ, общеобразовательных школ, студенты вузов перед началом и в период производственной практики на предприятиях, в учреждениях и организациях, работники которых подлежат медицинским психиатрическим освидетельствованиям.",null,null,null,null,"136. Работы, виды профдеятельности и должности. Другие виды профессиональной деятельности и категории должностей. учащиеся техникумов, училищ, общеобразовательных школ, студенты вузов перед началом и в период производственной практики на предприятиях, в учреждениях и организациях, работники которых подлежат медицинским психиатрическим освидетельствованиям."]
[137,"Работы, виды профдеятельности и должности","Другие виды профессиональной деятельности и категории должностей","медицинские работники хирургических стационаров, родильных домов (отделений), детских больниц (отделений), отделений патологии новорожденных, недоношенных.",null,null,null,null,"137. Работы, виды профдеятельности и должности. Другие виды профессиональной деятельности и категории должностей. медицинские работники хирургических стационаров, родильных домов (отделений), детских больниц (отделений), отделений патологии новорожденных, недоношенных."]
[138,"Работы, виды профдеятельности и должности","Другие виды профессиональной деятельности и категории должностей","работники учебно-воспитательных учреждений.",null,null,null,null,"138. Работы, виды профдеятельности и должности. Другие виды профессиональной деятельности и категории должностей. работники учебно-воспитательных учреждений."]
[139,"Работы, виды профдеятельности и должности","Другие виды профессиональной деятельности и категории должностей","работники детских и подростковых оздоровительных учреждений, в том числе сезонных.",null,null,null,null,"139. Работы, виды профдеятельности и должности. Другие виды профессиональной деятельности и категории должностей. работники детских и подростковых оздоровительных учреждений, в том числе сезонных."]
[140,"Работы, виды профдеятельности и должности","Другие виды профессиональной деятельности и категории должностей","работники детских дошкольных учреждений, домов ребенка, детских домов, школ-интернатов, интернатов при школах.",null,null,null,null,"140. Работы, виды профдеятельности и должности. Другие виды профессиональной деятельности и категории должностей. работники детских дошкольных учреждений, домов ребенка, детских домов, школ-интернатов, интернатов при школах."]
[141,"Работы, виды профдеятельности и должности","Другие виды профессиональной деятельности и категории должностей","работники лечебно-профилактических учреждений, санаториев, домов отдыха, пансионатов, домов-интернатов, непосредственно связанные с организацией питания пациентов.",null,null,null,null,"141. Работы, виды профдеятельности и должности. Другие виды профессиональной деятельности и категории должностей. работники лечебно-профилактических учреждений, санаториев, домов отдыха, пансионатов, домов-интернатов, непосредственно связанные с организацией питания пациентов."]
[142,"Работы, виды профдеятельности и должности","Другие виды профессиональной деятельности и категории должностей","работники предприятий санитарно-гигиенического обслуживания населения (банщики, работники душевых, парикмахеры, маникюрши, педикюрши, косметички, подсобный персонал прачечных, пунктов приема белья, химчисток).",null,null,null,null,"142. Работы, виды профдеятельности и должности. Другие виды профессиональной деятельности и категории должностей. работники предприятий санитарно-гигиенического обслуживания населения (банщики, работники душевых, парикмахеры, маникюрши, педикюрши, косметички, подсобный персонал прачечных, пунктов приема белья, химчисток)."]
[143,"Работы, виды профдеятельности и должности","Другие виды профессиональной деятельности и категории должностей","тренеры, инструкторы по плаванию, работники бассейнов и лечебных ванн, отпускающие процедуры.",null,null,null,null,"143. Работы, виды профдеятельности и должности. Другие виды профессиональной деятельности и категории должностей. тренеры, инструкторы по плаванию, работники бассейнов и лечебных ванн, отпускающие процедуры."]
[144,"Работы, виды профдеятельности и должности","Другие виды профессиональной деятельности и категории должностей","обслуживающий персонал гостиниц, общежитий.",null,null,null,null,"144. Работы, виды профдеятельности и должности. Другие виды профессиональной деятельности и категории должностей. обслуживающий персонал гостиниц, общежитий."]
[145,"Работы, виды профдеятельности и должности","Другие виды профессиональной деятельности и категории должностей","работники водопроводных сооружений, имеющие непосредственное отношение к подготовке воды, и лица, обслуживающие водопроводные сети.",null,null,null,null,"145. Работы, виды профдеятельности и должности. Другие виды профессиональной деятельности и категории должностей. работники водопроводных сооружений, имеющие непосредственное отношение к подготовке воды, и лица, обслуживающие водопроводные сети."]
[146,"Работы, виды профдеятельности и должности","Другие виды профессиональной деятельности и категории должностей","работники животноводческих ферм и комплексов.",null,null,null,null,"146. Работы, виды профдеятельности и должности. Другие виды профессиональной деятельности и категории должностей. работники животноводческих ферм и комплексов."]
[147,"Работы, виды профдеятельности и должности","Работы, непосредственно связанные с оборотом наркотических средств и психотропных веществ",null,null,null,null,null,"147. Работы, виды профдеятельности и должности. Работы, непосредственно связанные с оборотом наркотических средств и психотропных веществ."]

{"sheet":"Лист6","index":8,"n_rows":115,"n_cols":2,"rows_kept":115,"cut":false,"hidden":true,"merged":[]}
[]
["Опасные и вредные вещества и производственные факторы (знаком А отмечены аллергены)","Проводимые работы. ДОПОЛНИТЕЛЬНЫЕ МЕДИЦИНСКИЕ ПСИХИАТРИЧЕСКИЕ ПРОТИВОПОКАЗАНИЯ "]
["ХИМИЧЕСКИЕ"]
["Азотная кислота Аммиак Окислы азота","Производство и применение, процессы, связанные с их выделением "]
["Акриловая и метакриловая кислоты, их сложные эфиры, нитрилы А","Производство и применение акрилонитрила, метилметакрилата, этилакрилата и других "]
["Амино-, нитро-, нитрозо-нитрохлорсоединения ароматического ряда ","Производство и применение тринитротолуола динитрофенола, динитробензола, анилина гексогена, динитрохлорбензола и других, уротропинаПроизводство и применение ксилидина, крезолов, пикриновой кислоты и других"]
["Аминосоединения жирного ряда и их производные","Производство и применение "]
["Этиленимин и другие иминосоединения А "]
["Амины ароматического ряда: бензидин и его соединения, дианизидин, толуидин и его соединения, нафтиламины","Производство и применение (включая лабораторные работы)Применение красителей на их основе "]
["Барий и его соединения ","Производство растворимых соединений бария и их применениеПроизводство нерастворимых соединений бария и их применение"]
["Бензол и его производные (толуол, ксилол, стирол и другие) Галоидопроизводные ароматического ряда Галоидные бензилы, хлористый бензилиден","Производство и применение (включая лабораторные работы) бензола Производство и применение гомологов и производных бензола (изопропилбензола, стирола, толуола и других) ДОПОЛНИТЕЛЬНЫЕ ПРОТИВОПОКАЗАНИЯ: ТОКСИКОМАНИЯ НАРКОМАНИЯ"]
["Азокрасители Антрахиноновые, фталоцианиловые красители","Производство и применение "]
["Бериллий и его соединения А ","Производство и применение металлического бериллия и его соединений, приготовление шихты, механическая обработка керамических изделий из окиси бериллия, производство сплавов, содержащих бериллий"]
["Бета-нафтол ","Производство и применение"]
["Бром и его соединения","Производство и применение "]
["Галоидопроизводные углеводородов жирного ряда ","Производство и применение (включая лабораторные работы) дихлорэтана, четыреххлористого углерода, винилхлорида, хлористого метилена, хлористого метила, хлороформа, бромэтила, трихлорэтилена, хлоропрена и других ДОПОЛНИТЕЛЬНОЕ ПРОТИВОПОКАЗАНИЕ: ТОКСИКОМАНИЯ"]
["Гидразин и его соединения ","Производство и применение"]
["Диметилформамид, диметилацетамид и другие амиды жирных кислот","Производство и применение "]
["Изоцианаты А","Производство и применение "]
["Искусственные и синтетические волокна А ","ПроизводствоПереработка механическая, крашение:а) переработка волокон (оксалона, СВМ, арамида, углеродных);б) термообработка"]
[null,"Приготовление замасливателей и применение их"]
["Кадмий и его соединения","Производство и применение "]
["Коксовый газ и другие продукты коксования ","Производство кокса и коксового газа, улавливание продуктов коксования, ректификация уловленных углеводородов, дистилляция и переработка каменноугольных смол на коксохимических заводах"]
["Коксовый газ и другие продукты коксования ","Работы, связанные с приготовлением и укладкой асфальтобетонных покрытий с применением продуктов коксохимической промышленности (каменноугольных дегтей, смол, песков и других)"]
["Кремнийорганические соединения и замасливатели на их основе А","Производство и применение "]
["Литий и его соединения","Производство и применение "]
["Марганец и его соединения А ","Производство и применение окислов марганца, сварочных материалов (электродов, порошковой проволоки и флюсов)"]
["Марганец и его соединения А ","Плавка марганцевых сталей и других металлов с содержанием марганца свыше 10%, производство органических соединений марганца"]
["Марганец и его соединения А ","Добыча руд, их переработка, применение в измельченном виде неорганических соединений марганца"]
["Метанол","Производство и применение, процессы, связанные с его выделением "]
["Мышьяк и его соединения ","Добыча, производство и применение органических и неорганических соединений мышьяка; процессы, связанные с его выделением"]
["Наркотические средства и психотропные вещества ","Культивирование наркотико-содержащих растений;разработка, производство, изготовление, переработка,хранение, перевозка, отпуск, реализация, распределение, приобретение, использование, ввоз на таможенную территориюРоссийской Федерации,вывоз с таможенной территории Российской Федерации,уничтожение наркотических средств и психотропных веществДОПОЛНИТЕЛЬНЫЕ ПРОТИВОПОКАЗАНИЯ:АЛКОГОЛИЗМНАРКОМАНИЯТОКСИКОМАНИЯ "]
["Никель А и его соединения","Производство и применение "]
["Органические ускорители вулканизации, противостарители, ингибиторы вулканизации и другие А","Производство и применение каптакса, альтакса, тиурама, неозона Д и других "]
["Пергидроль","Производство и применение "]
["Пестициды ","Производство и применение в условиях народного хозяйства хлорорганических, фосфорорганических, производных карбаминовых кислот, металлоорганических и других пестицидов, а также хранение на складах и первичная переработка хлопка"]
["Предельные и непредельные углеводороды ","Эксплуатация, ремонт скважин и установок при добыче нефти, переработка высокосернистой и сернистой нефти, природного газа, пиробензола; селективная очистка масел, пиролиз; очистка нефти и газа от сероводорода; очистка нефтеналивных судов, цистерн, резервуаров; экстракционноозокеритовое производство; производство различных синтетических продуктов (фенола, ацетона, синтетических жирных кислот и спиртов и других). Вспомогательные процессы, связанные с обслуживанием товарных парков, отбором проб, лабораторным контролем сырья промежуточных и конечных продуктов (высокосернистая и сернистая нефть и природный газ). Эксплуатация, ремонт скважин при добыче нефти; переработка малосернистой нефти и природного газа; добыча и обработка озокерита, регенерация авто- и авиамасел; процессы, связанные с выделением и применением предельных, непредельных углеводородов (производство полиэтилена, дивинила, изопрена и других); применение бензина-растворителя ДОПОЛНИТЕЛЬНЫЕ ПРОТИВОПОКАЗАНИЯ: НАРКОМАНИЯ ТОКСИКОМАНИЯ"]
["Редкоземельные элементы ","Производства, связанные с выделением аэрозолей редкоземельных элементов и их соединений"]
["Ртуть и ее соединения ","Добыча и выплавка ртути и другие процессы, связанные с ее получением и очисткой от примесей; применение для извлечения газоразрядных золота и других металлов; производство ртутных термометров и люминесцентных ламп и других физических и светотехнических приборов, красок, ртутно-органических соединений; производство веществ ртутным электролизом. Работа с приборами при контакте с открытой ртутью; производство гремучей ртути; работа с ртутными выпрямителями, преобразователями электротока, насосами; применение в качестве катализаторов при химических процессах; применение ртутно-органических соединений. Производство и работа с приборами с закрытой ртутью, применение гремучей ртути в подземных выработках; работы в стоматологических кабинетах с ртутной амальгамой; производство фармацевтических и косметических препаратов, содержащих ртуть"]
["Свинец и его неорганические соединения ","Выплавка свинца из руд и концентратов; получение свинецсодержащих сплавов; рафинирование; получение сухих свинецсодержащих пигментов, белил, кронов; шоопирование свинцом в закрытых пространствах, прокатка, прессовка, освинцевание изделий; механическая и ручная обработка свинца; агломерация; заливка подшипников; производство свинцовых аккумуляторов; закалка в свинцовых ваннах; производство тертых свинецсодержащих красок, глазури и поливы, рихтовка свинецсодержащими составами; производство и обработка свинецсодержащего стекла и стекловолокна, сварка и резка поверхностей, покрытых свинецсодержащими грунтами; малярные работы при постоянном применении свинцовых красок; изготовление изделий из свинца. Производство и применение пьезокерамики и стеклокристаллического цемента. Обогащение свинцовых руд: дробление, смешение и другие процессы, связанные с образованием пыли, содержащей сульфид свинца; работы, связанные с децентрализованной плавкой небольших количеств свинца, пайка, полиграфическое производство (линотипные работы, ручной набор и другие)"]
["Селен, теллур и их соединения ","Производство и применение"]
["Сера и ее соединения ","Производство и применение сероорганических соединений, сульфанатных присадок, метилсернистых соединений, сернистой и серной кислот, процессы, связанные с выделением сернистого и серного ангидрида, сероводорода "]
["Сероуглерод ","Производство и применение; процессы, связанные с его выделением"]
["Цианистые соединения Циановодородная кислота, ее соединения, цианамиды и другие","Производство и применение"]
["Синтетический каучук ","Производство синтетического каучука и его переработка (изготовление резиновых смесей, вулканизация резины)"]
["Синтетические моющие средства А ","Производство сульфанола, алкиламидов, сульфата натрия; хлорирование фракции парафиновых углеводородов и других"]
["Синтетические смолы и пластические массы на основе: стирола ","Производство полимеров и сополимеров стирола, полиэфирных смол, лаков и клеев на их основе, стеклопластиков и других."]
["Синтетические смолы и пластические массы.","Переработка смол и пластмасс. Применение смол, лаков, клеев"]
["Синтетические смолы и пластические массы на основе: фенола и формальдегида А ","Производство смол, лаков, клеев и других, переработка пресс-порошков, пресс-материалов.Применение клеев, лаков, пропиточных составов, связующих и других"]
["Синтетические смолы и пластические массы на основе: кремнийорганических соединений ","Производство смол, лаков, жидких силиконов, переработка полимеров, пресс-материалов, применение лаков, смазок, смол и других"]
["Синтетические смолы и пластические массы на основе: изоцианатов А ","Производство полиуретанов, пенополиуретанов, полимочевины и других, переработка и применение"]
["Синтетические смолы и пластические массы на основе: фторорганических соединений ","Производство полимеров (фторопластов) и сополимеров; термическая и механическая переработка фторопластов"]
["Синтетические смолы и пластические массы на основе: винилхлорида и винилиденхлорида ","Производство полимеров и сополимеров, перхлорвинила, клеев, лаков и других; переработка смол и пластмасс и применение клеев, лаков и других"]
["Синтетические смолы и пластические массы на основе: акриловой и метакриловой кислот А ","Производство и переработка полимеров, сополимеров, применение эмульсий, лаков, красок и других"]
["Синтетические смолы и пластические массы на основе: аминокислот, двуосновных кислот, диаминов А","Производство и переработка полиамидов; применение клеев и других "]
["Синтетические смолы и пластические массы на основе: эпихлоргидрина А ","Производство и применение эпоксидных смол и пластмасс на их основе, компаундов"]
["Синтетические смолы и пластические массы на основе: алифатических и непредельных углеводородов (полиэтилена, полипропилена)","алифатических и непредельных углеводородов (полиэтилена, полипропилена)"]
["Сланцевые смолы А ","Производство и применение; производства, связанные с их выделением"]
["Сурьма и ее соединения ","Получение, переработка и применение "]
["Таллий и его соединения ","Производство и применение; выращивание монокристаллов"]
["Тетраэтилсвинец ","Производство тетраэтилсвинца и этиловой жидкости, смешение этиловой жидкости с горючим. Применение этилированного бензина: испытание, ремонт, разборка и промывка авиа- и автомоторов, заправка самолетов и других машин, слив, налив этилированного бензина на немеханизированных станциях, очистка установок и тары на нефтебазах, бензохранилищах, колонках"]
["Металлы А: кобальт, ванадий, молибден, титан, цирконий, вольфрам и его соединения ","Получение и применение кобальта и его соединенийПолучение пятиокиси ванадия: производство феррованадия; переработка ванадийсодержащих шлаков; производство и применение молибдена, вольфрама и их соединений, обработка титана, восстановление металлического титана и его соединений; получение и применение вольфрамо-кобальтовых сплавов, титано-кобальтовых сплавов, металлопорошков циркония и его соединений"]
["Урсол, урсоловые красители и окисляемые красители А","Производство и применение, крашение мехов "]
["Фармакологические средства ","Производство и изготовление готовых лекарственных форм морфина и его производных, витаминов, сульфаниламидных, пиразолоновых, противоопухолевых и гормональных препаратов, нейролептиков, антикоагулянтов, анестетиков (фторотан), применение в анестезиологической практике; изготовление лекарственных препаратов в аптеках, применение нейролептиков в психиатрической практике ДОПОЛНИТЕЛЬНЫЕ ПРОТИВОПОКАЗАНИЯ: АЛКОГОЛИЗМ НАРКОМАНИЯ ТОКСИКОМАНИЯ"]
["Фенолы и их производные ","Производство и применение "]
["Формальдегид А и другие альдегиды жирного ряда","Производство и применение; процессы, связанные с их выделением "]
["Фосфор и его соединения ","Производство и применение желтого фосфора, его соединений, фосфорорганических соединений, в том числе пластификаторовПроизводство и применение красного фосфора; добыча, производство и применение фосфатов"]
["Фталевая кислота, фталевый ангидрид и их производные","Производство и применение "]
["Фтор и его соединения ","Производство и применение фтора и его соединений. Электролизное получение алюминия, добыча и применение плавикового шпата, процессы с выделением фтора и его соединений"]
["Фураны и их производные: фурфурол, тетрагидрофуран и другие","Производство и применение "]
["Хлор и его соединения, хлорсодержащие смеси","Производство и применение; процессы, связанные с их выделением "]
["Хлорнафталин и его соединения (галовакс, хлорнафталины А и их соединения, гидрооксинафталин и нафтол)","Производство и применение "]
["Хром А, хромовая кислота А, их соединения и сплавы ","Производство и применение (включая вещества, содержащие соединения хрома в виде побочных компонентов)"]
["БИОЛОГИЧЕСКИЕ"]
["Антибиотики А ","Производство и применение в медицинской практике и аптечных учреждениях"]
["Грибы-продуценты, белково-витаминные концентраты (БВК), кормовые дрожжи, комбикорма А","Производство и применение продуктов микробиологического синтеза "]
["Ферментные препараты, биостимуляторы А ","Производство и применение в медицинской практике, аптечных учреждениях, сельском хозяйстве и других отраслях народного хозяйства"]
["Аллергены для диагностики и лечения, препараты крови А, иммунобиологические препараты","Производство "]
["Инфицированный материал и материал, зараженный гельминтами","Работа в контакте с инфицированным материалом и материалом, зараженным гельминтами, с инфекционными больными "]
["Возбудители бруцеллеза ","Животноводческие хозяйства (независимо от эпизоотического состояния по бруцеллезу), предприятия по переработке сырья и продуктов животного происхождения"]
["Возбудитель Ку-лихорадки ","Животноводческие хозяйства на территориях, неблагополучных по Ку-лихорадке, предприятия, перерабатывающие сырье и продукты от больных Ку-лихорадкой сельскохозяйственных животных"]
["ПРОМЫШЛЕННЫЕ АЭРОЗОЛИ"]
["Абразивные и абразивсодержащие ","Производство, обработка и применение абразивов (электрокорундов - нормального, белого, хромистого, монокорунда), карбида, бора, эльбора, обработка и применение карбида кремния и других"]
["Кремнийсодержащие (свободная и аморфная двуокись кремния)","Разведка, горнопроходческие работы, открытая и подземная добыча рудных и нерудных ископаемых, угля, обогащение и переработка их. Производство кремния, стекла, динаса, аэросила, карбида кремния, кремнемедистого сплава, силумина и других; литейное производство (землеприготовление, формовка, выбивка, обрубка, зачистка, очистка литья). Пескоструйные работы"]
["Металлы и их сплавы ","Сухая шлифовка металлов и сплавов; процессы напыления металлов, получение металлических порошков и изделий из них"]
["Силикатные и силикатсодержащие: а) асбестосодержащие (асбеста 10% и более)","Разведка, добыча и переработка асбестовых руд и асбеста. Получение и переработка искусственного асбеста "]
["Силикатные и силикатсодержащие: б) асбестосодержащие (асбеста не более 10%)","Производство, переработка изделий из асбестоцемента, асбестобакелита, волокнина, асбесторезины "]
["Силикатные и силикатсодержащие: в) другие силикатные и силикатсодержащие ","Производство и переработка стеклянного и минерального волокна, цемента, глины, шамота, боксита, нефелиновых сиенитов, дистенсиллиманита, оливина, апатитов, слюды, дунита, хроммагнезита, форстерита, известняков, барита, котленита, инфузорной земли, туфалов, пемзы, перлита, железорудных концентратов и агломерата в металлургии и других"]
["Углеродные ","Добыча, переработка и применение угля Производство и применение черной сажи, искусственного графита, кокса (нефтяного, пекового, сланцевого и других). Обработка и применение природных и искусственных алмазов"]
["Пыль растительного и животного происхождения ","Переработка хлопка, льна, конопли, шерсти, кенафа, джута, зерна, табака, древесины, торфа, хмеля. Производство бумаги, натурального шелка и других материалов"]
["Пыль неорганических люминофоров (в том числе с содержанием кадмия менее 5%)","Производство и применение "]
["Сварочные аэрозоли ","Дуговая плазменная, газопламенная сварка, наплавка и резка, контактная стыковая сварка (оплавлением), электрошлаковая сварка металлов"]
["Сварочные аэрозоли: а) содержащие марганец (20% и более), никель, хром, соединения фтора, бериллий, свинец ","Сварка, наплавка и резка средне- и высоколегированных, в том числе нержавеющих сталей, сварка и наплавка чугуна никелевыми и никель-медными электродами и проволоками, сварка и резка бериллия и его сплавов"]
["Сварочные аэрозоли: б) содержащие марганец (до 20%), окислы железа, алюминий, магний, титан медь, цинк, молибден, ванадий, вольфрам)","Сварка, наплавка и резка углеродистых, в том числе оцинкованных сталей, алюминия, меди, титана и сплавов на их основе, сварка и наплавка чугуна железными и железно-ванадиевыми электродами и проволоками, его резка "]
["ФИЗИЧЕСКИЕ"]
["Ионизирующие излучения. Радиоактивные вещества и источники ионизирующих излучений","Все виды работ с радиоактивными веществами и источниками ионизирующих излучений "]
["Неионизирующие излучения: лазерные излучения","Все виды работ с лазерами "]
["Неионизирующие излучения: электромагнитные (электрические и магнитные) поля радиочастот в диапазоне 30 МГц - 300 ГГц (ОВЧ, УВЧ, СВЧ, КВЧ) и ниже 30 мГц (ВЧ, СЧ, НЧ, ОНЧ, ИНЧ, СНЧ, КНЧ)","Все виды работ с источниками электромагнитной энергии указанного диапазона "]
["постоянные электрические и постоянные магнитные поля","Все виды работ с источниками постоянных электрических и магнитных полей "]
["Производственная вибрация "]
["Все виды трудовой деятельности, связанные с воздействием локальной или общей вибрации"]
["Производственный шум ","Все виды трудовой деятельности, связанные с воздействием интенсивного производственного шума, а также со значительным напряжением слухового анализатора от 81 дБ и выше"]
["Ультразвук (контактная передача)","Работа с ультразвуковыми дефектоскопами и медицинской аппаратурой"]
["Повышенное атмосферное давление","Работа в кессонах, барокамерах, водолазные работы "]
["Пониженная температура ","Работа при постоянно пониженной температуре воздуха рабочей зоны в производственных помещениях (ниже допустимых значений по Санитарным нормам микроклимата производственных помещений, утвержденным Минздравом СССР)"]
["Повышенная температура, интенсивное тепловое излучение ","Все виды работ при постоянно повышенной температуре (превышающей допустимое значение по Санитарным нормам микроклимата производственных помещений, утвержденным Минздравом СССР) и интенсивном тепловом облучении (свыше 140 Вт/кв.м) в рабочей зоне"]
["Повышенное напряжение зрения ","Все виды работ, связанные с повышенным напряжением зрения: а) прецизионные работы 1 (с объектом до 0,15 мм) и П (с объектом от 0,15 до 0,3 мм) разрядов точности по СНИП - 1980 г."]
["Повышенное напряжение зрения ","Все виды работ, связанные с повышенным напряжением зрения: б) зрительно напряженные работы - работы Ш и 1У (с объектом 0,5-1 мм) разрядов точности по СНИП и работы, связанные со слежением за экраном дисплеев и другими средствами отображения информации"]
["Физические перегрузки ","Работы, связанные с перемещением грузов вручную (груз в кг) или с приложением усилий (в Н; 1Н=0,1 кгс) в течение смены (для мужчин):выполняемые постоянно - более 30 кг (или более 300 Н);величина массы груза, перемещаемого или поднимаемого вручную за смену (сменный грузооборот) при подъеме с рабочей поверхности - более 12 т,при подъеме с пола или уровня значительно ниже рабочей поверхности - более 5 т"]
["Физические перегрузки ","Работы, связанные с длительным пребыванием в вынужденной позе, в том числе стоя"]
["Физические перегрузки ","Работы, связанные с локальным мышечным напряжением, преимущественно мышц кисти и предплечья"]
["Физические перегрузки ","Периодическое удержание на весу обеими руками груза массой более 10 кг или одной рукой более 5 кг (для мужчин)"]
["Физические перегрузки ","Работы, связанные с периодическими выраженными наклонами тела (по визуальной оценке более 30 градусов от вертикали) более 300 раз за смену;"]
["Физические перегрузки ","пребывание более 50% времени смены в вынужденной рабочей позе (на коленях, на корточках, лежа, с наклоном вперед, в подвеске, стоя)"]
["Физические перегрузки ","Работы, связанные с перенапряжением голосового аппарата: преподавательская, дикторская, вокально-разговорные виды актерской работы, работа на телефонной станции "]